DepartmentFamily,Entity,Date,ExpenseType,ExpenseArea,Supplier,PaymentNumber,InvoiceDistributionAmount,InvoiceDescription,SupplierPostCode,TransactionType
FOOD STANDARDS AGENCY - Westminster,FOOD STANDARDS AGENCY - Westminster,2019-10-03,EXP - PURCHASE OF GOODS/SERVICES - OTHER - PROGRAMME EXPENDITURE,Risk Assessment ??? research and development,UNIVERSITY OF LIVERPOOL,1011710786,447455,RETENTION.,L69 7ZX,PROGRAMME
FOOD STANDARDS AGENCY - Westminster,FOOD STANDARDS AGENCY - Westminster,2019-10-24,EXP - RENTALS UNDER NON PFI OPERATING LEASES -OTHER RENTAL- RENT OUTSIDE LONDON,Security & Estates,MONTAGU EVANS LLP,1011710987,186971.89,FOSS HOUSE UTILITIES ,EH3 8EG,ADMIN
FOOD STANDARDS AGENCY - Westminster,FOOD STANDARDS AGENCY - Westminster,2019-10-24,EXP - RENTALS UNDER NON PFI OPERATING LEASES -OTHER RENTAL- RENT OUTSIDE LONDON,Security & Estates,MONTAGU EVANS LLP,1011710987,186971.89,FOSS HOUSE UTILITIES  ,EH3 8EG,ADMIN
FOOD STANDARDS AGENCY - Westminster,FOOD STANDARDS AGENCY - Westminster,2019-10-29,EXP - PURCHASE OF GOODS/SERVICES - TELECOMS - TELEPHONE,IT Service Delivery,EXPONENTIAL E LTD,1011711015,169318.64,WAN Provision ,E1 8EU,ADMIN
FOOD STANDARDS AGENCY - Westminster,FOOD STANDARDS AGENCY - Westminster,2019-10-21,EXP - PURCHASE OF GOODS/SERVICES - OTHER TRAVEL,Finance Director & Branch,H M REVENUE & CUSTOMS,10000179,167637.46,PSA AGREEMENT 1819 REF XV0000100210772,BD98 1YY,ADMIN
FOOD STANDARDS AGENCY - Westminster,FOOD STANDARDS AGENCY - Westminster,2019-10-23,EXP - PURCHASE OF GOODS/SERVICES - SHARED SERV OUTSRCG- CIVIL SERV PENSION ADMIN,Finance Director & Branch,LONDON PENSIONS FUND AUTHORITY,1011710982,124568.58,2019-20 LPFA pension deficit reduction,EC3N 4LP,ADMIN
FOOD STANDARDS AGENCY - Westminster,FOOD STANDARDS AGENCY - Westminster,2019-10-22,EXP - PURCHASE OF GOODS/SERVICES - OTHER - PROGRAMME EXPENDITURE,Chemical Contaminants and Residues,PREMIER ANALYTICAL SERVICES,1011710969,87200.6,FS102075 Survey of Acrylamide & Furan Levels in UK Retail Products (D 04/05: Delivery of Final Report *RETENTION*),HP12 3QR,PROGRAMME
FOOD STANDARDS AGENCY - Westminster,FOOD STANDARDS AGENCY - Westminster,2019-10-24,EXP - PURCHASE OF GOODS/SERVICES - OTHER - PROGRAMME EXPENDITURE,Scientific Methods & Laboratory Policy,PUBLIC HEALTH ENGLAND,2012700692,80478.4,FS516010 - National Reference Laboratory for Microbiology,NW9 5EQ,PROGRAMME
FOOD STANDARDS AGENCY - Westminster,FOOD STANDARDS AGENCY - Westminster,2019-10-21,EXP - PURCHASE OF GOODS/SERVICES - OTHER - PROGRAMME EXPENDITURE,Digital,NOT BINARY LTD,1011710947,53970.65,Discovery to understand implications and impact on moving the service from GOV.UK into food.gov.uk.,E1 6JE,PROGRAMME
FOOD STANDARDS AGENCY - Westminster,FOOD STANDARDS AGENCY - Westminster,2019-10-14,EXP - PURCHASE OF GOODS/SERVICES - OTHER - PROGRAMME EXPENDITURE,Digital,ACQUIA INC,1011710882,46180,Futher funding for Drupal Application hosting.,EC2A 1BR,PROGRAMME
FOOD STANDARDS AGENCY - Westminster,FOOD STANDARDS AGENCY - Westminster,2019-10-07,EXP - PURCHASE OF GOODS/SERVICES - OTHER ICT COSTS - COMPUTER HARDWARE,IT Service Delivery,COREAZURE LTD,1011710810,39715.67,IT24 Var 2 - Azure CSP ?? Consumption Jul 19 ?? Jun 20,EC1A 4EN,ADMIN
FOOD STANDARDS AGENCY - Westminster,FOOD STANDARDS AGENCY - Westminster,2019-10-07,EXP - PURCHASE OF GOODS/SERVICES - OTHER ICT COSTS - COMPUTER HARDWARE,IT Service Delivery,COREAZURE LTD,1011710810,37275.56,IT24 Var 2 - Azure CSP ?? Consumption Jul 19 ?? Jun 20,EC1A 4EN,ADMIN
FOOD STANDARDS AGENCY - Westminster,FOOD STANDARDS AGENCY - Westminster,2019-10-03,EXP - PURCHASE OF GOODS/SERVICES - OTHER - PROGRAMME EXPENDITURE,Regulatory Delivery,C E F A S,2012700686,36022.5,Shellfish biotoxin analysis costs 2019/20,NR33 0HT,PROGRAMME
FOOD STANDARDS AGENCY - Westminster,FOOD STANDARDS AGENCY - Westminster,2019-10-07,EXP - PURCHASE OF GOODS/SERVICES - OTHER ICT COSTS - COMPUTER SOFTWARE,IT Strategy,PHOENIX SOFTWARE LIMITED,1011710811,34979,Airwatch License Renewal,YO42 1NS,ADMIN
FOOD STANDARDS AGENCY - Westminster,FOOD STANDARDS AGENCY - Westminster,2019-10-29,EXP - PURCHASE OF GOODS/SERVICES - TELECOMS - TELEPHONE,IT Service Delivery,EXPONENTIAL E LTD,1011711015,33863.73,SMART WIRES,E1 8EU,ADMIN
FOOD STANDARDS AGENCY - Westminster,FOOD STANDARDS AGENCY - Westminster,2019-10-29,EXP - PURCHASE OF GOODS/SERVICES - MARKETING & MEDIA,NFCU Phase 2,METHODS BUSINESS AND DIGITAL TECHNOLOGY LTD,1011711014,27072.5,"Methods SOW4 to work further on Memex migration, PND integration and DAM requirements",EC1A 4EN,PROGRAMME
FOOD STANDARDS AGENCY - Westminster,FOOD STANDARDS AGENCY - Westminster,2019-10-17,EXP - PURCHASE OF GOODS/SERV - SUPPORT - IT SUPPORT SERVICES,IT Service Delivery,LITTLE FISH UK LTD,1011710920,24611,Littlefish - End user monthly service charge ,NG1 1LS,ADMIN
FOOD STANDARDS AGENCY - Westminster,FOOD STANDARDS AGENCY - Westminster,2019-10-28,EXP - PURCHASE OF GOODS/SERV - SUPPORT - IT SUPPORT SERVICES,IT Service Delivery,LITTLE FISH UK LTD,1011711005,24611,Littlefish - End user monthly service charge ,NG1 1LS,ADMIN
FOOD STANDARDS AGENCY - Westminster,FOOD STANDARDS AGENCY - Westminster,2019-10-10,EXP - PURCHASE OF GOODS/SERV - SUPPORT - IT SUPPORT SERVICES,Finance Director & Branch,SHARED SERVICES CONNECTED LTD,1011710860,24452.07,SSCL Core charge management services ,HP2 7AH,ADMIN
FOOD STANDARDS AGENCY - Westminster,FOOD STANDARDS AGENCY - Westminster,2019-10-08,EXP - PURCHASE OF GOODS/SERVICES -ACCOMM & BLDNG MGMT - MAINTENANCE & REPAIRS,Security & Estates,NATIONAL LOTTERY COMMUNITY FUND,1011710824,23085.16,"rent charge re 2nd floor, apex hse, birmingham for the periods Redacted under s.43 of the FOI Act			",B15 1TR,ADMIN
FOOD STANDARDS AGENCY - Westminster,FOOD STANDARDS AGENCY - Westminster,2019-10-23,EXP - PURCHASE OF GOODS/SERVICES - OTHER PROFESSIONAL SERVICES,Operational Delivery,ARCO UK LTD,1011710983,22140.24,Funds for 2019/20 Bulk PO11770002606 to fulfill operations delivery,HU1 2SJ,PROGRAMME
FOOD STANDARDS AGENCY - Westminster,FOOD STANDARDS AGENCY - Westminster,2019-10-03,EXP - PURCHASE OF GOODS/SERVICES - OTHER - PROGRAMME EXPENDITURE,Regulatory Delivery,C E F A S,2012700686,21771,Shellfish classification management E&W 2019-20,NR33 0HT,PROGRAMME
FOOD STANDARDS AGENCY - Westminster,FOOD STANDARDS AGENCY - Westminster,2019-10-03,EXP - PURCHASE OF GOODS/SERVICES - OTHER - PROGRAMME EXPENDITURE,Regulatory Delivery,C E F A S,2012700686,21454.17,Shellfish official control phytoplankton analysis E&W 2019/20,NR33 0HT,PROGRAMME
FOOD STANDARDS AGENCY - Westminster,FOOD STANDARDS AGENCY - Westminster,2019-10-08,EXP - PURCHASE OF GOODS/SERVICES -ACCOMM & BLDNG MGMT - MAINTENANCE & REPAIRS,Security & Estates,NATIONAL LOTTERY COMMUNITY FUND,1011710824,21007.5,"rent charge re 2nd floor, apex hse, birmingham for the periods; Redacted under s.43 of the FOI Act	",B15 1TR,ADMIN
FOOD STANDARDS AGENCY - Westminster,FOOD STANDARDS AGENCY - Westminster,2019-10-25,EXP - SHORT-TERM CONTRACT & AGENCY STAFF - FULL COST,Digital,ALEXANDER MANN SOLUTIONS LTD-2WM,1011710994,13858.56,TEMPORARY STAFF,EC2N 3AQ,ADMIN
FOOD STANDARDS AGENCY - Westminster,FOOD STANDARDS AGENCY - Westminster,2019-10-07,EXP - PURCHASE OF GOODS/SERVICES - OTHER ICT COSTS - COMPUTER SOFTWARE,IT Strategy,PHOENIX SOFTWARE LIMITED,1011710811,6995.8,WSD-AWOAP-12PT0-,YO42 1NS,ADMIN
FOOD STANDARDS AGENCY - Westminster,FOOD STANDARDS AGENCY - Westminster,2019-10-16,EXP - PURCHASE OF GOODS/SERVICES - OTHER FACILITIES COSTS - MEETING ROOM HIRE,Chair & Deputy Chair,CALDER CONFERENCES LTD,1011710912,6855.42,CONFERENCE COSTS,LS16 6RF,ADMIN
FOOD STANDARDS AGENCY - Westminster,FOOD STANDARDS AGENCY - Westminster,2019-10-25,EXP - SHORT-TERM CONTRACT & AGENCY STAFF - FULL COST,Finance Director & Branch,ALEXANDER MANN SOLUTIONS LTD-2WM,1011710994,6039.24,TEMPORARY STAFF,EC2N 3AQ,ADMIN
FOOD STANDARDS AGENCY - Westminster,FOOD STANDARDS AGENCY - Westminster,2019-10-16,EXP - PURCHASE OF GOODS/SERVICES - OTHER FACILITIES COSTS - MEETING ROOM HIRE,Chief Scientific Advisors team,CALDER CONFERENCES LTD,1011710912,5606.21,CONFERENCE COSTS,LS16 6RF,ADMIN
FOOD STANDARDS AGENCY - Westminster,FOOD STANDARDS AGENCY - Westminster,2019-10-04,EXP - SHORT-TERM CONTRACT & AGENCY STAFF - FULL COST,Operational Delivery,ALEXANDER MANN SOLUTIONS LTD-2WM,1011710802,5296.98,TEMPORARY STAFF,EC2N 3AQ,PROGRAMME
FOOD STANDARDS AGENCY - Westminster,FOOD STANDARDS AGENCY - Westminster,2019-10-25,EXP - SHORT-TERM CONTRACT & AGENCY STAFF - FULL COST,Operational Delivery,ALEXANDER MANN SOLUTIONS LTD-2WM,1011710994,5296.98,TEMPORARY STAFF,EC2N 3AQ,PROGRAMME
FOOD STANDARDS AGENCY - Westminster,FOOD STANDARDS AGENCY - Westminster,2019-10-16,EXP - PURCHASE OF GOODS/SERVICES - OTHER FACILITIES COSTS - MEETING ROOM HIRE,Operational Delivery,CALDER CONFERENCES LTD,1011710912,4963.13,CONFERENCE COSTS,LS16 6RF,PROGRAMME
FOOD STANDARDS AGENCY - Westminster,FOOD STANDARDS AGENCY - Westminster,2019-10-15,EXP - PURCHASE OF GOODS/SERVICES - RAIL TRAVEL,Operational Delivery,CORPORATE TRAVEL MANAGEMENT NORTH LTD,1011710897,4783.1,Travel & Subsistence Week 40,BD1 5HQ,PROGRAMME
FOOD STANDARDS AGENCY - Westminster,FOOD STANDARDS AGENCY - Westminster,2019-10-04,EXP - SHORT-TERM CONTRACT & AGENCY STAFF - FULL COST,Digital,ALEXANDER MANN SOLUTIONS LTD-2WM,1011710802,4619.52,TEMPORARY STAFF,EC2N 3AQ,ADMIN
FOOD STANDARDS AGENCY - Westminster,FOOD STANDARDS AGENCY - Westminster,2019-10-08,EXP - PURCHASE OF GOODS/SERVICES -ACCOMM & BLDNG MGMT - MAINTENANCE & REPAIRS,Security & Estates,NATIONAL LOTTERY COMMUNITY FUND,1011710824,4617.03,UK VAT - UK VAT,B15 1TR,ADMIN
FOOD STANDARDS AGENCY - Westminster,FOOD STANDARDS AGENCY - Westminster,2019-10-08,EXP - PURCHASE OF GOODS/SERVICES -ACCOMM & BLDNG MGMT - MAINTENANCE & REPAIRS,Security & Estates,NATIONAL LOTTERY COMMUNITY FUND,1011710824,4201.5,UK VAT - UK VAT,B15 1TR,ADMIN
FOOD STANDARDS AGENCY - Westminster,FOOD STANDARDS AGENCY - Westminster,2019-10-28,EXP - PURCHASE OF GOODS/SERVICES - RAIL TRAVEL,Operational Delivery,CORPORATE TRAVEL MANAGEMENT NORTH LTD,1011711008,3672.9,Travel & Subsistence Week 42,BD1 5HQ,PROGRAMME
FOOD STANDARDS AGENCY - Westminster,FOOD STANDARDS AGENCY - Westminster,2019-10-21,EXP - PURCHASE OF GOODS/SERVICES - RAIL TRAVEL,NFCU Phase 2,CORPORATE TRAVEL MANAGEMENT NORTH LTD,1011710958,3409.1,Travel & Subsistence Week 41,BD1 5HQ,PROGRAMME
FOOD STANDARDS AGENCY - Westminster,FOOD STANDARDS AGENCY - Westminster,2019-10-21,EXP - PURCHASE OF GOODS/SERVICES - RAIL TRAVEL,Operational Delivery,CORPORATE TRAVEL MANAGEMENT NORTH LTD,1011710958,3346.65,Travel & Subsistence Week 41,BD1 5HQ,PROGRAMME
FOOD STANDARDS AGENCY - Westminster,FOOD STANDARDS AGENCY - Westminster,2019-10-04,EXP - PURCHASE OF GOODS/SERVICES - RAIL TRAVEL,Operational Delivery,CORPORATE TRAVEL MANAGEMENT NORTH LTD,1011710806,3098.6,Travel & Subsistence Week 38,BD1 5HQ,PROGRAMME
FOOD STANDARDS AGENCY - Westminster,FOOD STANDARDS AGENCY - Westminster,2019-10-04,EXP - SHORT-TERM CONTRACT & AGENCY STAFF - FULL COST,Finance Director & Branch,ALEXANDER MANN SOLUTIONS LTD-2WM,1011710802,3019.62,TEMPORARY STAFF,EC2N 3AQ,ADMIN
FOOD STANDARDS AGENCY - Westminster,FOOD STANDARDS AGENCY - Westminster,2019-10-07,EXP - PURCHASE OF GOODS/SERVICES - SUBSISTENCE,Operational Delivery,CORPORATE TRAVEL MANAGEMENT NORTH LTD,1011710814,2964.34,Travel & Subsistence Week 39,BD1 5HQ,PROGRAMME
FOOD STANDARDS AGENCY - Westminster,FOOD STANDARDS AGENCY - Westminster,2019-10-04,EXP - SHORT-TERM CONTRACT & AGENCY STAFF - FULL COST,IT Service Delivery,ALEXANDER MANN SOLUTIONS LTD-2WM,1011710802,2956.44,TEMPORARY STAFF,EC2N 3AQ,ADMIN
FOOD STANDARDS AGENCY - Westminster,FOOD STANDARDS AGENCY - Westminster,2019-10-16,EXP - PURCHASE OF GOODS/SERVICES - OTHER FACILITIES COSTS - MEETING ROOM HIRE,Operations Assurance ,CALDER CONFERENCES LTD,1011710912,2922.67,CONFERENCE COSTS,LS16 6RF,PROGRAMME
FOOD STANDARDS AGENCY - Westminster,FOOD STANDARDS AGENCY - Westminster,2019-10-07,EXP - PURCHASE OF GOODS/SERVICES - RAIL TRAVEL,Operational Delivery,CORPORATE TRAVEL MANAGEMENT NORTH LTD,1011710814,2862.4,Travel & Subsistence Week 39,BD1 5HQ,PROGRAMME
FOOD STANDARDS AGENCY - Westminster,FOOD STANDARDS AGENCY - Westminster,2019-10-28,EXP - PURCHASE OF GOODS/SERVICES - RAIL TRAVEL,Regulatory Delivery,CORPORATE TRAVEL MANAGEMENT NORTH LTD,1011711008,2772.56,Travel & Subsistence Week 42,BD1 5HQ,ADMIN
FOOD STANDARDS AGENCY - Westminster,FOOD STANDARDS AGENCY - Westminster,2019-10-28,EXP - PURCHASE OF GOODS/SERVICES - SUBSISTENCE,NFCU Phase 2,CORPORATE TRAVEL MANAGEMENT NORTH LTD,1011711008,2545.67,Travel & Subsistence Week 42,BD1 5HQ,PROGRAMME
FOOD STANDARDS AGENCY - Westminster,FOOD STANDARDS AGENCY - Westminster,2019-10-21,EXP - PURCHASE OF GOODS/SERVICES - RAIL TRAVEL,Regulatory Delivery,CORPORATE TRAVEL MANAGEMENT NORTH LTD,1011710958,2491.96,Travel & Subsistence Week 41,BD1 5HQ,ADMIN
FOOD STANDARDS AGENCY - Westminster,FOOD STANDARDS AGENCY - Westminster,2019-10-28,EXP - PURCHASE OF GOODS/SERVICES - RAIL TRAVEL,RDOT,CORPORATE TRAVEL MANAGEMENT NORTH LTD,1011711008,2459.95,Travel & Subsistence Week 42,BD1 5HQ,PROGRAMME
FOOD STANDARDS AGENCY - Westminster,FOOD STANDARDS AGENCY - Westminster,2019-10-15,EXP - PURCHASE OF GOODS/SERVICES - RAIL TRAVEL,RDOT,CORPORATE TRAVEL MANAGEMENT NORTH LTD,1011710897,2325.8,Travel & Subsistence Week 40,BD1 5HQ,PROGRAMME
FOOD STANDARDS AGENCY - Westminster,FOOD STANDARDS AGENCY - Westminster,2019-10-07,EXP - PURCHASE OF GOODS/SERVICES - RAIL TRAVEL,IT Information & Knowledge Management,CORPORATE TRAVEL MANAGEMENT NORTH LTD,1011710814,2206.65,Travel & Subsistence Week 39,BD1 5HQ,ADMIN
FOOD STANDARDS AGENCY - Westminster,FOOD STANDARDS AGENCY - Westminster,2019-10-28,EXP - PURCHASE OF GOODS/SERVICES - RAIL TRAVEL,NFCU Phase 2,CORPORATE TRAVEL MANAGEMENT NORTH LTD,1011711008,2164,Travel & Subsistence Week 42,BD1 5HQ,PROGRAMME
FOOD STANDARDS AGENCY - Westminster,FOOD STANDARDS AGENCY - Westminster,2019-10-16,EXP - PURCHASE OF GOODS/SERVICES - OTHER FACILITIES COSTS - MEETING ROOM HIRE,Risk Assessment - operations,CALDER CONFERENCES LTD,1011710912,2161.25,CONFERENCE COSTS,LS16 6RF,ADMIN
FOOD STANDARDS AGENCY - Westminster,FOOD STANDARDS AGENCY - Westminster,2019-10-07,EXP - PURCHASE OF GOODS/SERVICES - RAIL TRAVEL,NFCU Phase 2,CORPORATE TRAVEL MANAGEMENT NORTH LTD,1011710814,2160.75,Travel & Subsistence Week 39,BD1 5HQ,PROGRAMME
FOOD STANDARDS AGENCY - Westminster,FOOD STANDARDS AGENCY - Westminster,2019-10-07,EXP - PURCHASE OF GOODS/SERVICES - RAIL TRAVEL,Regulatory Delivery,CORPORATE TRAVEL MANAGEMENT NORTH LTD,1011710814,2120.85,Travel & Subsistence Week 39,BD1 5HQ,ADMIN
FOOD STANDARDS AGENCY - Westminster,FOOD STANDARDS AGENCY - Westminster,2019-10-04,EXP - PURCHASE OF GOODS/SERVICES - RAIL TRAVEL,IT Information & Knowledge Management,CORPORATE TRAVEL MANAGEMENT NORTH LTD,1011710806,2085.18,Travel & Subsistence Week 38,BD1 5HQ,ADMIN
FOOD STANDARDS AGENCY - Westminster,FOOD STANDARDS AGENCY - Westminster,2019-10-04,EXP - PURCHASE OF GOODS/SERVICES - RAIL TRAVEL,NFCU Phase 2,CORPORATE TRAVEL MANAGEMENT NORTH LTD,1011710806,2054,Travel & Subsistence Week 38,BD1 5HQ,PROGRAMME
FOOD STANDARDS AGENCY - Westminster,FOOD STANDARDS AGENCY - Westminster,2019-10-16,EXP - PURCHASE OF GOODS/SERVICES - OTHER FACILITIES COSTS - MEETING ROOM HIRE,"Novel Foods, GM, Radiological and Feed Additives",CALDER CONFERENCES LTD,1011710912,1977,CONFERENCE COSTS,LS16 6RF,ADMIN
FOOD STANDARDS AGENCY - Westminster,FOOD STANDARDS AGENCY - Westminster,2019-10-15,EXP - PURCHASE OF GOODS/SERVICES - RAIL TRAVEL,Corporate Support Unit,CORPORATE TRAVEL MANAGEMENT NORTH LTD,1011710897,1945.35,Travel & Subsistence Week 40,BD1 5HQ,ADMIN
FOOD STANDARDS AGENCY - Westminster,FOOD STANDARDS AGENCY - Westminster,2019-10-07,EXP - PURCHASE OF GOODS/SERVICES - RAIL TRAVEL,RDOT,CORPORATE TRAVEL MANAGEMENT NORTH LTD,1011710814,1813.7,Travel & Subsistence Week 39,BD1 5HQ,PROGRAMME
FOOD STANDARDS AGENCY - Westminster,FOOD STANDARDS AGENCY - Westminster,2019-10-07,EXP - PURCHASE OF GOODS/SERVICES - RAIL TRAVEL,Organisational Development,CORPORATE TRAVEL MANAGEMENT NORTH LTD,1011710814,1728.3,Travel & Subsistence Week 39,BD1 5HQ,ADMIN
FOOD STANDARDS AGENCY - Westminster,FOOD STANDARDS AGENCY - Westminster,2019-10-04,EXP - PURCHASE OF GOODS/SERVICES - RAIL TRAVEL,Organisational Development,CORPORATE TRAVEL MANAGEMENT NORTH LTD,1011710806,1680.45,Travel & Subsistence Week 38,BD1 5HQ,ADMIN
FOOD STANDARDS AGENCY - Westminster,FOOD STANDARDS AGENCY - Westminster,2019-10-04,EXP - PURCHASE OF GOODS/SERVICES - RAIL TRAVEL,Regulatory Delivery,CORPORATE TRAVEL MANAGEMENT NORTH LTD,1011710806,1594.41,Travel & Subsistence Week 38,BD1 5HQ,ADMIN
FOOD STANDARDS AGENCY - Westminster,FOOD STANDARDS AGENCY - Westminster,2019-10-21,EXP - PURCHASE OF GOODS/SERVICES -  FOREIGN AIR TRAVEL,General Food Hygiene,CORPORATE TRAVEL MANAGEMENT NORTH LTD,1011710958,1558.38,Travel & Subsistence Week 41,BD1 5HQ,ADMIN
FOOD STANDARDS AGENCY - Westminster,FOOD STANDARDS AGENCY - Westminster,2019-10-21,EXP - PURCHASE OF GOODS/SERVICES - SUBSISTENCE,NFCU Phase 2,CORPORATE TRAVEL MANAGEMENT NORTH LTD,1011710958,1522.42,Travel & Subsistence Week 41,BD1 5HQ,PROGRAMME
FOOD STANDARDS AGENCY - Westminster,FOOD STANDARDS AGENCY - Westminster,2019-10-07,EXP - PURCHASE OF GOODS/SERVICES - SUBSISTENCE,NFCU Phase 2,CORPORATE TRAVEL MANAGEMENT NORTH LTD,1011710814,1509.38,Travel & Subsistence Week 39,BD1 5HQ,PROGRAMME
FOOD STANDARDS AGENCY - Westminster,FOOD STANDARDS AGENCY - Westminster,2019-10-16,EXP - PURCHASE OF GOODS/SERVICES - OTHER FACILITIES COSTS - MEETING ROOM HIRE,Regulatory Delivery,CALDER CONFERENCES LTD,1011710912,1501,CONFERENCE COSTS,LS16 6RF,ADMIN
FOOD STANDARDS AGENCY - Westminster,FOOD STANDARDS AGENCY - Westminster,2019-10-15,EXP - PURCHASE OF GOODS/SERVICES - SUBSISTENCE,Operational Delivery,CORPORATE TRAVEL MANAGEMENT NORTH LTD,1011710897,1477.35,Travel & Subsistence Week 40,BD1 5HQ,PROGRAMME
FOOD STANDARDS AGENCY - Westminster,FOOD STANDARDS AGENCY - Westminster,2019-10-04,EXP - SHORT-TERM CONTRACT & AGENCY STAFF - FULL COST,Comms Directors Office,ALEXANDER MANN SOLUTIONS LTD-2WM,1011710802,1417.62,TEMPORARY STAFF,EC2N 3AQ,ADMIN
FOOD STANDARDS AGENCY - Westminster,FOOD STANDARDS AGENCY - Westminster,2019-10-16,EXP - PURCHASE OF GOODS/SERVICES - OTHER FACILITIES COSTS - MEETING ROOM HIRE,Finance Director & Branch,CALDER CONFERENCES LTD,1011710912,1416.67,CONFERENCE COSTS,LS16 6RF,ADMIN
FOOD STANDARDS AGENCY - Westminster,FOOD STANDARDS AGENCY - Westminster,2019-10-21,EXP - PURCHASE OF GOODS/SERVICES - RAIL TRAVEL,Organisational Development,CORPORATE TRAVEL MANAGEMENT NORTH LTD,1011710958,1384.3,Travel & Subsistence Week 41,BD1 5HQ,ADMIN
FOOD STANDARDS AGENCY - Westminster,FOOD STANDARDS AGENCY - Westminster,2019-10-15,EXP - PURCHASE OF GOODS/SERVICES - RAIL TRAVEL,NFCU Phase 2,CORPORATE TRAVEL MANAGEMENT NORTH LTD,1011710897,1379.65,Travel & Subsistence Week 40,BD1 5HQ,PROGRAMME
FOOD STANDARDS AGENCY - Westminster,FOOD STANDARDS AGENCY - Westminster,2019-10-28,EXP - PURCHASE OF GOODS/SERVICES -  FOREIGN AIR TRAVEL,Chief Scientific Advisors team,CORPORATE TRAVEL MANAGEMENT NORTH LTD,1011711008,1365.72,Travel & Subsistence Week 42,BD1 5HQ,ADMIN
FOOD STANDARDS AGENCY - Westminster,FOOD STANDARDS AGENCY - Westminster,2019-10-15,EXP - PURCHASE OF GOODS/SERVICES - RAIL TRAVEL,Chief Scientific Advisors team,CORPORATE TRAVEL MANAGEMENT NORTH LTD,1011710897,1359.35,Travel & Subsistence Week 40,BD1 5HQ,ADMIN
FOOD STANDARDS AGENCY - Westminster,FOOD STANDARDS AGENCY - Westminster,2019-10-04,EXP - PURCHASE OF GOODS/SERVICES - RAIL TRAVEL,RDOT,CORPORATE TRAVEL MANAGEMENT NORTH LTD,1011710806,1359.2,Travel & Subsistence Week 38,BD1 5HQ,PROGRAMME
FOOD STANDARDS AGENCY - Westminster,FOOD STANDARDS AGENCY - Westminster,2019-10-07,EXP - PURCHASE OF GOODS/SERVICES - SUBSISTENCE,Regulatory Delivery,CORPORATE TRAVEL MANAGEMENT NORTH LTD,1011710814,1339.52,Travel & Subsistence Week 39,BD1 5HQ,ADMIN
FOOD STANDARDS AGENCY - Westminster,FOOD STANDARDS AGENCY - Westminster,2019-10-04,EXP - PURCHASE OF GOODS/SERVICES - SUBSISTENCE,Regulatory Delivery,CORPORATE TRAVEL MANAGEMENT NORTH LTD,1011710806,1337.17,Travel & Subsistence Week 38,BD1 5HQ,ADMIN
FOOD STANDARDS AGENCY - Westminster,FOOD STANDARDS AGENCY - Westminster,2019-10-21,EXP - PURCHASE OF GOODS/SERVICES - RAIL TRAVEL,RDOT,CORPORATE TRAVEL MANAGEMENT NORTH LTD,1011710958,1326.65,Travel & Subsistence Week 41,BD1 5HQ,PROGRAMME
FOOD STANDARDS AGENCY - Westminster,FOOD STANDARDS AGENCY - Westminster,2019-10-04,EXP - PURCHASE OF GOODS/SERVICES - RAIL TRAVEL,Comms Directors Office,CORPORATE TRAVEL MANAGEMENT NORTH LTD,1011710806,1320.6,Travel & Subsistence Week 38,BD1 5HQ,ADMIN
FOOD STANDARDS AGENCY - Westminster,FOOD STANDARDS AGENCY - Westminster,2019-10-21,EXP - PURCHASE OF GOODS/SERVICES - RAIL TRAVEL,IT Service Delivery,CORPORATE TRAVEL MANAGEMENT NORTH LTD,1011710958,1311.13,Travel & Subsistence Week 41,BD1 5HQ,ADMIN
FOOD STANDARDS AGENCY - Westminster,FOOD STANDARDS AGENCY - Westminster,2019-10-04,EXP - PURCHASE OF GOODS/SERVICES - SUBSISTENCE,IT Information & Knowledge Management,CORPORATE TRAVEL MANAGEMENT NORTH LTD,1011710806,1284.19,Travel & Subsistence Week 38,BD1 5HQ,ADMIN
FOOD STANDARDS AGENCY - Westminster,FOOD STANDARDS AGENCY - Westminster,2019-10-04,EXP - PURCHASE OF GOODS/SERVICES - SUBSISTENCE,Operational Delivery,CORPORATE TRAVEL MANAGEMENT NORTH LTD,1011710806,1274.08,Travel & Subsistence Week 38,BD1 5HQ,PROGRAMME
FOOD STANDARDS AGENCY - Westminster,FOOD STANDARDS AGENCY - Westminster,2019-10-21,EXP - PURCHASE OF GOODS/SERVICES - SUBSISTENCE,Operational Delivery,CORPORATE TRAVEL MANAGEMENT NORTH LTD,1011710958,1273.72,Travel & Subsistence Week 41,BD1 5HQ,PROGRAMME
FOOD STANDARDS AGENCY - Westminster,FOOD STANDARDS AGENCY - Westminster,2019-10-28,EXP - PURCHASE OF GOODS/SERVICES - AIR TRAVEL,Regulatory Delivery,CORPORATE TRAVEL MANAGEMENT NORTH LTD,1011711008,1260.94,Travel & Subsistence Week 42,BD1 5HQ,ADMIN
FOOD STANDARDS AGENCY - Westminster,FOOD STANDARDS AGENCY - Westminster,2019-10-15,EXP - PURCHASE OF GOODS/SERVICES - RAIL TRAVEL,"Novel Foods, GM, Radiological and Feed Additives",CORPORATE TRAVEL MANAGEMENT NORTH LTD,1011710897,1260.65,Travel & Subsistence Week 40,BD1 5HQ,ADMIN
FOOD STANDARDS AGENCY - Westminster,FOOD STANDARDS AGENCY - Westminster,2019-10-04,EXP - SHORT-TERM CONTRACT & AGENCY STAFF - FULL COST,Legal Branch A & Investigations,ALEXANDER MANN SOLUTIONS LTD-2WM,1011710802,1190.97,TEMPORARY STAFF,EC2N 3AQ,ADMIN
FOOD STANDARDS AGENCY - Westminster,FOOD STANDARDS AGENCY - Westminster,2019-10-28,EXP - PURCHASE OF GOODS/SERVICES - SUBSISTENCE,Regulatory Delivery,CORPORATE TRAVEL MANAGEMENT NORTH LTD,1011711008,1182.66,Travel & Subsistence Week 42,BD1 5HQ,ADMIN
FOOD STANDARDS AGENCY - Westminster,FOOD STANDARDS AGENCY - Westminster,2019-10-15,EXP - PURCHASE OF GOODS/SERVICES - SUBSISTENCE,NFCU Phase 2,CORPORATE TRAVEL MANAGEMENT NORTH LTD,1011710897,1168.47,Travel & Subsistence Week 40,BD1 5HQ,PROGRAMME
FOOD STANDARDS AGENCY - Westminster,FOOD STANDARDS AGENCY - Westminster,2019-10-28,EXP - PURCHASE OF GOODS/SERVICES - RAIL TRAVEL,Finance Director & Branch,CORPORATE TRAVEL MANAGEMENT NORTH LTD,1011711008,1105.95,Travel & Subsistence Week 42,BD1 5HQ,ADMIN
FOOD STANDARDS AGENCY - Westminster,FOOD STANDARDS AGENCY - Westminster,2019-10-07,EXP - PURCHASE OF GOODS/SERVICES -  FOREIGN AIR TRAVEL,Chief Scientific Advisors team,CORPORATE TRAVEL MANAGEMENT NORTH LTD,1011710814,1073.9,Travel & Subsistence Week 39,BD1 5HQ,ADMIN
FOOD STANDARDS AGENCY - Westminster,FOOD STANDARDS AGENCY - Westminster,2019-10-15,EXP - PURCHASE OF GOODS/SERVICES - RAIL TRAVEL,Regulatory Delivery,CORPORATE TRAVEL MANAGEMENT NORTH LTD,1011710897,1063,Travel & Subsistence Week 40,BD1 5HQ,ADMIN
FOOD STANDARDS AGENCY - Westminster,FOOD STANDARDS AGENCY - Westminster,2019-10-07,EXP - PURCHASE OF GOODS/SERVICES - RAIL TRAVEL,Comms Directors Office,CORPORATE TRAVEL MANAGEMENT NORTH LTD,1011710814,1041.8,Travel & Subsistence Week 39,BD1 5HQ,ADMIN
FOOD STANDARDS AGENCY - Westminster,FOOD STANDARDS AGENCY - Westminster,2019-10-28,EXP - PURCHASE OF GOODS/SERVICES - RAIL TRAVEL,IT Information & Knowledge Management,CORPORATE TRAVEL MANAGEMENT NORTH LTD,1011711008,1041.45,Travel & Subsistence Week 42,BD1 5HQ,ADMIN
FOOD STANDARDS AGENCY - Westminster,FOOD STANDARDS AGENCY - Westminster,2019-10-04,EXP - PURCHASE OF GOODS/SERVICES - RAIL TRAVEL,Finance Director & Branch,CORPORATE TRAVEL MANAGEMENT NORTH LTD,1011710806,1035.71,Travel & Subsistence Week 38,BD1 5HQ,ADMIN
FOOD STANDARDS AGENCY - Westminster,FOOD STANDARDS AGENCY - Westminster,2019-10-04,EXP - PURCHASE OF GOODS/SERVICES - SUBSISTENCE,NFCU Phase 2,CORPORATE TRAVEL MANAGEMENT NORTH LTD,1011710806,1010.54,Travel & Subsistence Week 38,BD1 5HQ,PROGRAMME
FOOD STANDARDS AGENCY - Westminster,FOOD STANDARDS AGENCY - Westminster,2019-10-28,EXP - PURCHASE OF GOODS/SERVICES - SUBSISTENCE,Chief Scientific Advisors team,CORPORATE TRAVEL MANAGEMENT NORTH LTD,1011711008,977.42,Travel & Subsistence Week 42,BD1 5HQ,ADMIN
FOOD STANDARDS AGENCY - Westminster,FOOD STANDARDS AGENCY - Westminster,2019-10-21,EXP - PURCHASE OF GOODS/SERVICES - SUBSISTENCE,Regulatory Delivery,CORPORATE TRAVEL MANAGEMENT NORTH LTD,1011710958,971.24,Travel & Subsistence Week 41,BD1 5HQ,ADMIN
FOOD STANDARDS AGENCY - Westminster,FOOD STANDARDS AGENCY - Westminster,2019-10-28,EXP - PURCHASE OF GOODS/SERVICES - RAIL TRAVEL,Legal Branch A & Investigations,CORPORATE TRAVEL MANAGEMENT NORTH LTD,1011711008,966.3,Travel & Subsistence Week 42,BD1 5HQ,ADMIN
FOOD STANDARDS AGENCY - Westminster,FOOD STANDARDS AGENCY - Westminster,2019-10-15,EXP - PURCHASE OF GOODS/SERVICES - SUBSISTENCE,Regulatory Delivery,CORPORATE TRAVEL MANAGEMENT NORTH LTD,1011710897,962.63,Travel & Subsistence Week 40,BD1 5HQ,ADMIN
FOOD STANDARDS AGENCY - Westminster,FOOD STANDARDS AGENCY - Westminster,2019-10-04,EXP - PURCHASE OF GOODS/SERVICES - RAIL TRAVEL,Wales and West 4 ,CORPORATE TRAVEL MANAGEMENT NORTH LTD,1011710806,950.65,Travel & Subsistence Week 38,BD1 5HQ,PROGRAMME
FOOD STANDARDS AGENCY - Westminster,FOOD STANDARDS AGENCY - Westminster,2019-10-21,EXP - PURCHASE OF GOODS/SERVICES - RAIL TRAVEL,Corporate Support Unit,CORPORATE TRAVEL MANAGEMENT NORTH LTD,1011710958,930.81,Travel & Subsistence Week 41,BD1 5HQ,ADMIN
FOOD STANDARDS AGENCY - Westminster,FOOD STANDARDS AGENCY - Westminster,2019-10-21,EXP - PURCHASE OF GOODS/SERVICES - RAIL TRAVEL,Comms Directors Office,CORPORATE TRAVEL MANAGEMENT NORTH LTD,1011710958,916.2,Travel & Subsistence Week 41,BD1 5HQ,ADMIN
FOOD STANDARDS AGENCY - Westminster,FOOD STANDARDS AGENCY - Westminster,2019-10-16,EXP - PURCHASE OF GOODS/SERVICES - OTHER FACILITIES COSTS - MEETING ROOM HIRE,Comms Directors Office,CALDER CONFERENCES LTD,1011710912,915,CONFERENCE COSTS,LS16 6RF,ADMIN
FOOD STANDARDS AGENCY - Westminster,FOOD STANDARDS AGENCY - Westminster,2019-10-21,EXP - PURCHASE OF GOODS/SERVICES - SUBSISTENCE,RDOT,CORPORATE TRAVEL MANAGEMENT NORTH LTD,1011710958,900.98,Travel & Subsistence Week 41,BD1 5HQ,PROGRAMME
FOOD STANDARDS AGENCY - Westminster,FOOD STANDARDS AGENCY - Westminster,2019-10-28,EXP - PURCHASE OF GOODS/SERVICES - RAIL TRAVEL,Chief Scientific Advisors team,CORPORATE TRAVEL MANAGEMENT NORTH LTD,1011711008,891.6,Travel & Subsistence Week 42,BD1 5HQ,ADMIN
FOOD STANDARDS AGENCY - Westminster,FOOD STANDARDS AGENCY - Westminster,2019-10-15,EXP - PURCHASE OF GOODS/SERVICES - SUBSISTENCE,Internal Audit,CORPORATE TRAVEL MANAGEMENT NORTH LTD,1011710897,879.6,Travel & Subsistence Week 40,BD1 5HQ,ADMIN
FOOD STANDARDS AGENCY - Westminster,FOOD STANDARDS AGENCY - Westminster,2019-10-21,EXP - PURCHASE OF GOODS/SERVICES - RAIL TRAVEL,Analytics Unit,CORPORATE TRAVEL MANAGEMENT NORTH LTD,1011710958,872.15,Travel & Subsistence Week 41,BD1 5HQ,ADMIN
FOOD STANDARDS AGENCY - Westminster,FOOD STANDARDS AGENCY - Westminster,2019-10-04,EXP - PURCHASE OF GOODS/SERVICES - AIR TRAVEL,Regulatory Delivery,CORPORATE TRAVEL MANAGEMENT NORTH LTD,1011710806,856.21,Travel & Subsistence Week 38,BD1 5HQ,ADMIN
FOOD STANDARDS AGENCY - Westminster,FOOD STANDARDS AGENCY - Westminster,2019-10-15,EXP - PURCHASE OF GOODS/SERVICES - SUBSISTENCE,IT Information & Knowledge Management,CORPORATE TRAVEL MANAGEMENT NORTH LTD,1011710897,853,Travel & Subsistence Week 40,BD1 5HQ,ADMIN
FOOD STANDARDS AGENCY - Westminster,FOOD STANDARDS AGENCY - Westminster,2019-10-15,EXP - PURCHASE OF GOODS/SERVICES - RAIL TRAVEL,Digital,CORPORATE TRAVEL MANAGEMENT NORTH LTD,1011710897,852.75,Travel & Subsistence Week 40,BD1 5HQ,ADMIN
FOOD STANDARDS AGENCY - Westminster,FOOD STANDARDS AGENCY - Westminster,2019-10-15,EXP - PURCHASE OF GOODS/SERVICES - SUBSISTENCE,Wales and West 2 (Wales),CORPORATE TRAVEL MANAGEMENT NORTH LTD,1011710897,851.35,Travel & Subsistence Week 40,BD1 5HQ,PROGRAMME
FOOD STANDARDS AGENCY - Westminster,FOOD STANDARDS AGENCY - Westminster,2019-10-28,EXP - PURCHASE OF GOODS/SERVICES - SUBSISTENCE,RDOT,CORPORATE TRAVEL MANAGEMENT NORTH LTD,1011711008,829.27,Travel & Subsistence Week 42,BD1 5HQ,PROGRAMME
FOOD STANDARDS AGENCY - Westminster,FOOD STANDARDS AGENCY - Westminster,2019-10-07,EXP - PURCHASE OF GOODS/SERVICES - SUBSISTENCE,Organisational Development,CORPORATE TRAVEL MANAGEMENT NORTH LTD,1011710814,826.23,Travel & Subsistence Week 39,BD1 5HQ,ADMIN
FOOD STANDARDS AGENCY - Westminster,FOOD STANDARDS AGENCY - Westminster,2019-10-28,EXP - PURCHASE OF GOODS/SERVICES - SUBSISTENCE,Operational Delivery,CORPORATE TRAVEL MANAGEMENT NORTH LTD,1011711008,809.98,Travel & Subsistence Week 42,BD1 5HQ,PROGRAMME
FOOD STANDARDS AGENCY - Westminster,FOOD STANDARDS AGENCY - Westminster,2019-10-04,EXP - PURCHASE OF GOODS/SERVICES - RAIL TRAVEL,Legal Branch A & Investigations,CORPORATE TRAVEL MANAGEMENT NORTH LTD,1011710806,775.75,Travel & Subsistence Week 38,BD1 5HQ,ADMIN
FOOD STANDARDS AGENCY - Westminster,FOOD STANDARDS AGENCY - Westminster,2019-10-25,EXP - SHORT-TERM CONTRACT & AGENCY STAFF - FULL COST,Programme and project delivery,ALEXANDER MANN SOLUTIONS LTD-2WM,1011710994,764.47,TEMPORARY STAFF,EC2N 3AQ,ADMIN
FOOD STANDARDS AGENCY - Westminster,FOOD STANDARDS AGENCY - Westminster,2019-10-07,EXP - PURCHASE OF GOODS/SERVICES - AIR TRAVEL,Organisational Development,CORPORATE TRAVEL MANAGEMENT NORTH LTD,1011710814,757.39,Travel & Subsistence Week 39,BD1 5HQ,ADMIN
FOOD STANDARDS AGENCY - Westminster,FOOD STANDARDS AGENCY - Westminster,2019-10-16,EXP - PURCHASE OF GOODS/SERVICES - OTHER FACILITIES COSTS - MEETING ROOM HIRE,Planning and Performance,CALDER CONFERENCES LTD,1011710912,755,CONFERENCE COSTS,LS16 6RF,ADMIN
FOOD STANDARDS AGENCY - Westminster,FOOD STANDARDS AGENCY - Westminster,2019-10-21,EXP - PURCHASE OF GOODS/SERVICES - RAIL TRAVEL,Planning and Performance,CORPORATE TRAVEL MANAGEMENT NORTH LTD,1011710958,745.94,Travel & Subsistence Week 41,BD1 5HQ,ADMIN
FOOD STANDARDS AGENCY - Westminster,FOOD STANDARDS AGENCY - Westminster,2019-10-04,EXP - SHORT-TERM CONTRACT & AGENCY STAFF - FULL COST,Programme and project delivery,ALEXANDER MANN SOLUTIONS LTD-2WM,1011710802,742.37,TEMPORARY STAFF,EC2N 3AQ,ADMIN
FOOD STANDARDS AGENCY - Westminster,FOOD STANDARDS AGENCY - Westminster,2019-10-28,EXP - PURCHASE OF GOODS/SERVICES - RAIL TRAVEL,Organisational Development,CORPORATE TRAVEL MANAGEMENT NORTH LTD,1011711008,740.6,Travel & Subsistence Week 42,BD1 5HQ,ADMIN
FOOD STANDARDS AGENCY - Westminster,FOOD STANDARDS AGENCY - Westminster,2019-10-07,EXP - PURCHASE OF GOODS/SERVICES - RAIL TRAVEL,Internal Audit,CORPORATE TRAVEL MANAGEMENT NORTH LTD,1011710814,705.9,Travel & Subsistence Week 39,BD1 5HQ,ADMIN
FOOD STANDARDS AGENCY - Westminster,FOOD STANDARDS AGENCY - Westminster,2019-10-15,EXP - PURCHASE OF GOODS/SERVICES - RAIL TRAVEL,Planning and Performance,CORPORATE TRAVEL MANAGEMENT NORTH LTD,1011710897,704.65,Travel & Subsistence Week 40,BD1 5HQ,ADMIN
FOOD STANDARDS AGENCY - Westminster,FOOD STANDARDS AGENCY - Westminster,2019-10-07,EXP - PURCHASE OF GOODS/SERVICES - RAIL TRAVEL,Imports & Exports Team (Admin),CORPORATE TRAVEL MANAGEMENT NORTH LTD,1011710814,701,Travel & Subsistence Week 39,BD1 5HQ,ADMIN
FOOD STANDARDS AGENCY - Westminster,FOOD STANDARDS AGENCY - Westminster,2019-10-04,EXP - PURCHASE OF GOODS/SERVICES - SUBSISTENCE,"Meat Hygiene, ABP, TSE",CORPORATE TRAVEL MANAGEMENT NORTH LTD,1011710806,699.9,Travel & Subsistence Week 38,BD1 5HQ,ADMIN
FOOD STANDARDS AGENCY - Westminster,FOOD STANDARDS AGENCY - Westminster,2019-10-28,EXP - PURCHASE OF GOODS/SERVICES - SUBSISTENCE,Corporate Support Unit,CORPORATE TRAVEL MANAGEMENT NORTH LTD,1011711008,690.29,Travel & Subsistence Week 42,BD1 5HQ,ADMIN
FOOD STANDARDS AGENCY - Westminster,FOOD STANDARDS AGENCY - Westminster,2019-10-07,EXP - PURCHASE OF GOODS/SERVICES - RAIL TRAVEL,"Animal Feed, Foodborne Disease and Allergy (AFFDA)",CORPORATE TRAVEL MANAGEMENT NORTH LTD,1011710814,684.2,Travel & Subsistence Week 39,BD1 5HQ,ADMIN
FOOD STANDARDS AGENCY - Westminster,FOOD STANDARDS AGENCY - Westminster,2019-10-04,EXP - PURCHASE OF GOODS/SERVICES - AIR TRAVEL,"Novel Foods, GM, Radiological and Feed Additives",CORPORATE TRAVEL MANAGEMENT NORTH LTD,1011710806,673.06,Travel & Subsistence Week 38,BD1 5HQ,ADMIN
FOOD STANDARDS AGENCY - Westminster,FOOD STANDARDS AGENCY - Westminster,2019-10-04,EXP - SHORT-TERM CONTRACT & AGENCY STAFF - FULL COST,Corporate Support Unit,ALEXANDER MANN SOLUTIONS LTD-2WM,1011710802,672.14,TEMPORARY STAFF,EC2N 3AQ,ADMIN
FOOD STANDARDS AGENCY - Westminster,FOOD STANDARDS AGENCY - Westminster,2019-10-15,EXP - PURCHASE OF GOODS/SERVICES - RAIL TRAVEL,Organisational Development,CORPORATE TRAVEL MANAGEMENT NORTH LTD,1011710897,648.35,Travel & Subsistence Week 40,BD1 5HQ,ADMIN
FOOD STANDARDS AGENCY - Westminster,FOOD STANDARDS AGENCY - Westminster,2019-10-28,EXP - PURCHASE OF GOODS/SERVICES - SUBSISTENCE,Chair & Deputy Chair,CORPORATE TRAVEL MANAGEMENT NORTH LTD,1011711008,648,Travel & Subsistence Week 42,BD1 5HQ,ADMIN
FOOD STANDARDS AGENCY - Westminster,FOOD STANDARDS AGENCY - Westminster,2019-10-21,EXP - PURCHASE OF GOODS/SERVICES - RAIL TRAVEL,Chief Scientific Advisors team,CORPORATE TRAVEL MANAGEMENT NORTH LTD,1011710958,647.13,Travel & Subsistence Week 41,BD1 5HQ,ADMIN
FOOD STANDARDS AGENCY - Westminster,FOOD STANDARDS AGENCY - Westminster,2019-10-15,EXP - PURCHASE OF GOODS/SERVICES - RAIL TRAVEL,Legal Branch A & Investigations,CORPORATE TRAVEL MANAGEMENT NORTH LTD,1011710897,644.7,Travel & Subsistence Week 40,BD1 5HQ,ADMIN
FOOD STANDARDS AGENCY - Westminster,FOOD STANDARDS AGENCY - Westminster,2019-10-28,EXP - PURCHASE OF GOODS/SERVICES - RAIL TRAVEL,"Novel Foods, GM, Radiological and Feed Additives",CORPORATE TRAVEL MANAGEMENT NORTH LTD,1011711008,644.5,Travel & Subsistence Week 42,BD1 5HQ,ADMIN
FOOD STANDARDS AGENCY - Westminster,FOOD STANDARDS AGENCY - Westminster,2019-10-15,EXP - PURCHASE OF GOODS/SERVICES - RAIL TRAVEL,Regulatory & International,CORPORATE TRAVEL MANAGEMENT NORTH LTD,1011710897,643.3,Travel & Subsistence Week 40,BD1 5HQ,ADMIN
FOOD STANDARDS AGENCY - Westminster,FOOD STANDARDS AGENCY - Westminster,2019-10-07,EXP - PURCHASE OF GOODS/SERVICES - SUBSISTENCE,RDOT,CORPORATE TRAVEL MANAGEMENT NORTH LTD,1011710814,641.15,Travel & Subsistence Week 39,BD1 5HQ,PROGRAMME
FOOD STANDARDS AGENCY - Westminster,FOOD STANDARDS AGENCY - Westminster,2019-10-28,EXP - PURCHASE OF GOODS/SERVICES - RAIL TRAVEL,Wales and West 4 ,CORPORATE TRAVEL MANAGEMENT NORTH LTD,1011711008,634.95,Travel & Subsistence Week 42,BD1 5HQ,PROGRAMME
FOOD STANDARDS AGENCY - Westminster,FOOD STANDARDS AGENCY - Westminster,2019-10-15,EXP - PURCHASE OF GOODS/SERVICES - RAIL TRAVEL,Comms Directors Office,CORPORATE TRAVEL MANAGEMENT NORTH LTD,1011710897,632.41,Travel & Subsistence Week 40,BD1 5HQ,ADMIN
FOOD STANDARDS AGENCY - Westminster,FOOD STANDARDS AGENCY - Westminster,2019-10-16,EXP - PURCHASE OF GOODS/SERVICES - OTHER FACILITIES COSTS - MEETING ROOM HIRE,Organisational Development,CALDER CONFERENCES LTD,1011710912,629.17,CONFERENCE COSTS,LS16 6RF,ADMIN
FOOD STANDARDS AGENCY - Westminster,FOOD STANDARDS AGENCY - Westminster,2019-10-21,EXP - PURCHASE OF GOODS/SERVICES - RAIL TRAVEL,IT Information & Knowledge Management,CORPORATE TRAVEL MANAGEMENT NORTH LTD,1011710958,624.42,Travel & Subsistence Week 41,BD1 5HQ,ADMIN
FOOD STANDARDS AGENCY - Westminster,FOOD STANDARDS AGENCY - Westminster,2019-10-25,EXP - SHORT-TERM CONTRACT & AGENCY STAFF - FULL COST,Legal Branch A & Investigations,ALEXANDER MANN SOLUTIONS LTD-2WM,1011710994,622.13,TEMPORARY STAFF,EC2N 3AQ,ADMIN
FOOD STANDARDS AGENCY - Westminster,FOOD STANDARDS AGENCY - Westminster,2019-10-07,EXP - PURCHASE OF GOODS/SERVICES - RAIL TRAVEL,Digital,CORPORATE TRAVEL MANAGEMENT NORTH LTD,1011710814,620.5,Travel & Subsistence Week 39,BD1 5HQ,ADMIN
FOOD STANDARDS AGENCY - Westminster,FOOD STANDARDS AGENCY - Westminster,2019-10-04,EXP - PURCHASE OF GOODS/SERVICES - RAIL TRAVEL,Corporate Support Unit,CORPORATE TRAVEL MANAGEMENT NORTH LTD,1011710806,606,Travel & Subsistence Week 38,BD1 5HQ,ADMIN
FOOD STANDARDS AGENCY - Westminster,FOOD STANDARDS AGENCY - Westminster,2019-10-28,EXP - PURCHASE OF GOODS/SERVICES - SUBSISTENCE,Organisational Development,CORPORATE TRAVEL MANAGEMENT NORTH LTD,1011711008,594.73,Travel & Subsistence Week 42,BD1 5HQ,ADMIN
FOOD STANDARDS AGENCY - Westminster,FOOD STANDARDS AGENCY - Westminster,2019-10-04,EXP - PURCHASE OF GOODS/SERVICES - SUBSISTENCE,Risk Assessment ??? research and development,CORPORATE TRAVEL MANAGEMENT NORTH LTD,1011710806,594.63,Travel & Subsistence Week 38,BD1 5HQ,ADMIN
FOOD STANDARDS AGENCY - Westminster,FOOD STANDARDS AGENCY - Westminster,2019-10-28,EXP - PURCHASE OF GOODS/SERVICES - SUBSISTENCE,Food Incidents & Resilience - Prog,CORPORATE TRAVEL MANAGEMENT NORTH LTD,1011711008,582.6,Travel & Subsistence Week 42,BD1 5HQ,PROGRAMME
FOOD STANDARDS AGENCY - Westminster,FOOD STANDARDS AGENCY - Westminster,2019-10-07,EXP - PURCHASE OF GOODS/SERVICES - SUBSISTENCE,Comms Directors Office,CORPORATE TRAVEL MANAGEMENT NORTH LTD,1011710814,580.3,Travel & Subsistence Week 39,BD1 5HQ,ADMIN
FOOD STANDARDS AGENCY - Westminster,FOOD STANDARDS AGENCY - Westminster,2019-10-21,EXP - PURCHASE OF GOODS/SERVICES - RAIL TRAVEL,"Novel Foods, GM, Radiological and Feed Additives",CORPORATE TRAVEL MANAGEMENT NORTH LTD,1011710958,579.15,Travel & Subsistence Week 41,BD1 5HQ,ADMIN
FOOD STANDARDS AGENCY - Westminster,FOOD STANDARDS AGENCY - Westminster,2019-10-28,EXP - PURCHASE OF GOODS/SERVICES - RAIL TRAVEL,Imports & Exports Team (Admin),CORPORATE TRAVEL MANAGEMENT NORTH LTD,1011711008,577,Travel & Subsistence Week 42,BD1 5HQ,ADMIN
FOOD STANDARDS AGENCY - Westminster,FOOD STANDARDS AGENCY - Westminster,2019-10-21,EXP - PURCHASE OF GOODS/SERVICES - SUBSISTENCE,Comms Directors Office,CORPORATE TRAVEL MANAGEMENT NORTH LTD,1011710958,575.74,Travel & Subsistence Week 41,BD1 5HQ,ADMIN
FOOD STANDARDS AGENCY - Westminster,FOOD STANDARDS AGENCY - Westminster,2019-10-04,EXP - PURCHASE OF GOODS/SERVICES - AIR TRAVEL,Food Incidents & Resilience - Prog,CORPORATE TRAVEL MANAGEMENT NORTH LTD,1011710806,572.91,Travel & Subsistence Week 38,BD1 5HQ,PROGRAMME
FOOD STANDARDS AGENCY - Westminster,FOOD STANDARDS AGENCY - Westminster,2019-10-04,EXP - PURCHASE OF GOODS/SERVICES - SUBSISTENCE,Resilience - Admin,CORPORATE TRAVEL MANAGEMENT NORTH LTD,1011710806,570.9,Travel & Subsistence Week 38,BD1 5HQ,ADMIN
FOOD STANDARDS AGENCY - Westminster,FOOD STANDARDS AGENCY - Westminster,2019-10-15,EXP - PURCHASE OF GOODS/SERVICES - SUBSISTENCE,RDOT,CORPORATE TRAVEL MANAGEMENT NORTH LTD,1011710897,566.57,Travel & Subsistence Week 40,BD1 5HQ,PROGRAMME
FOOD STANDARDS AGENCY - Westminster,FOOD STANDARDS AGENCY - Westminster,2019-10-04,EXP - PURCHASE OF GOODS/SERVICES - RAIL TRAVEL,East 1,CORPORATE TRAVEL MANAGEMENT NORTH LTD,1011710806,544.4,Travel & Subsistence Week 38,BD1 5HQ,PROGRAMME
FOOD STANDARDS AGENCY - Westminster,FOOD STANDARDS AGENCY - Westminster,2019-10-07,EXP - PURCHASE OF GOODS/SERVICES - SUBSISTENCE,Food Incidents & Resilience - Prog,CORPORATE TRAVEL MANAGEMENT NORTH LTD,1011710814,541.55,Travel & Subsistence Week 39,BD1 5HQ,PROGRAMME
FOOD STANDARDS AGENCY - Westminster,FOOD STANDARDS AGENCY - Westminster,2019-10-21,EXP - PURCHASE OF GOODS/SERVICES - RAIL TRAVEL,Regulatory & International,CORPORATE TRAVEL MANAGEMENT NORTH LTD,1011710958,541.2,Travel & Subsistence Week 41,BD1 5HQ,ADMIN
FOOD STANDARDS AGENCY - Westminster,FOOD STANDARDS AGENCY - Westminster,2019-10-21,EXP - PURCHASE OF GOODS/SERVICES - RAIL TRAVEL,Risk Assessment ??? research and development,CORPORATE TRAVEL MANAGEMENT NORTH LTD,1011710958,537.32,Travel & Subsistence Week 41,BD1 5HQ,ADMIN
FOOD STANDARDS AGENCY - Westminster,FOOD STANDARDS AGENCY - Westminster,2019-10-15,EXP - PURCHASE OF GOODS/SERVICES - SUBSISTENCE,Legal Branch A & Investigations,CORPORATE TRAVEL MANAGEMENT NORTH LTD,1011710897,535.8,Travel & Subsistence Week 40,BD1 5HQ,ADMIN
FOOD STANDARDS AGENCY - Westminster,FOOD STANDARDS AGENCY - Westminster,2019-10-15,EXP - PURCHASE OF GOODS/SERVICES - SUBSISTENCE,"Novel Foods, GM, Radiological and Feed Additives",CORPORATE TRAVEL MANAGEMENT NORTH LTD,1011710897,535.55,Travel & Subsistence Week 40,BD1 5HQ,ADMIN
FOOD STANDARDS AGENCY - Westminster,FOOD STANDARDS AGENCY - Westminster,2019-10-15,EXP - PURCHASE OF GOODS/SERVICES - SUBSISTENCE,Comms Directors Office,CORPORATE TRAVEL MANAGEMENT NORTH LTD,1011710897,531.4,Travel & Subsistence Week 40,BD1 5HQ,ADMIN
FOOD STANDARDS AGENCY - Westminster,FOOD STANDARDS AGENCY - Westminster,2019-10-15,EXP - PURCHASE OF GOODS/SERVICES - SUBSISTENCE,Digital,CORPORATE TRAVEL MANAGEMENT NORTH LTD,1011710897,526.13,Travel & Subsistence Week 40,BD1 5HQ,ADMIN
FOOD STANDARDS AGENCY - Westminster,FOOD STANDARDS AGENCY - Westminster,2019-10-28,EXP - PURCHASE OF GOODS/SERVICES - RAIL TRAVEL,Corporate Support Unit,CORPORATE TRAVEL MANAGEMENT NORTH LTD,1011711008,521.65,Travel & Subsistence Week 42,BD1 5HQ,ADMIN
FOOD STANDARDS AGENCY - Westminster,FOOD STANDARDS AGENCY - Westminster,2019-10-04,EXP - PURCHASE OF GOODS/SERVICES - RAIL TRAVEL,Food Incidents & Resilience - Prog,CORPORATE TRAVEL MANAGEMENT NORTH LTD,1011710806,519.45,Travel & Subsistence Week 38,BD1 5HQ,PROGRAMME
FOOD STANDARDS AGENCY - Westminster,FOOD STANDARDS AGENCY - Westminster,2019-10-28,EXP - PURCHASE OF GOODS/SERVICES - RAIL TRAVEL,Procurement,CORPORATE TRAVEL MANAGEMENT NORTH LTD,1011711008,504.05,Travel & Subsistence Week 42,BD1 5HQ,ADMIN
FOOD STANDARDS AGENCY - Westminster,FOOD STANDARDS AGENCY - Westminster,2019-10-07,EXP - PURCHASE OF GOODS/SERVICES - SUBSISTENCE,Digital,CORPORATE TRAVEL MANAGEMENT NORTH LTD,1011710814,501.2,Travel & Subsistence Week 39,BD1 5HQ,ADMIN
FOOD STANDARDS AGENCY - Westminster,FOOD STANDARDS AGENCY - Westminster,2019-10-15,EXP - PURCHASE OF GOODS/SERVICES - SUBSISTENCE,Non Meat Field Ops,CORPORATE TRAVEL MANAGEMENT NORTH LTD,1011710897,500.02,Travel & Subsistence Week 40,BD1 5HQ,PROGRAMME
FOOD STANDARDS AGENCY - Westminster,FOOD STANDARDS AGENCY - Westminster,2019-10-15,EXP - PURCHASE OF GOODS/SERVICES - SUBSISTENCE,Food Incidents & Resilience - Prog,CORPORATE TRAVEL MANAGEMENT NORTH LTD,1011710897,496,Travel & Subsistence Week 40,BD1 5HQ,PROGRAMME
FOOD STANDARDS AGENCY - Westminster,FOOD STANDARDS AGENCY - Westminster,2019-10-16,EXP - PURCHASE OF GOODS/SERVICES - OTHER FACILITIES COSTS - MEETING ROOM HIRE,Analytics Unit,CALDER CONFERENCES LTD,1011710912,495,CONFERENCE COSTS,LS16 6RF,ADMIN
FOOD STANDARDS AGENCY - Westminster,FOOD STANDARDS AGENCY - Westminster,2019-10-21,EXP - PURCHASE OF GOODS/SERVICES - RAIL TRAVEL,East 4,CORPORATE TRAVEL MANAGEMENT NORTH LTD,1011710958,493.3,Travel & Subsistence Week 41,BD1 5HQ,PROGRAMME
FOOD STANDARDS AGENCY - Westminster,FOOD STANDARDS AGENCY - Westminster,2019-10-07,EXP - PURCHASE OF GOODS/SERVICES - RAIL TRAVEL,"Novel Foods, GM, Radiological and Feed Additives",CORPORATE TRAVEL MANAGEMENT NORTH LTD,1011710814,489.86,Travel & Subsistence Week 39,BD1 5HQ,ADMIN
FOOD STANDARDS AGENCY - Westminster,FOOD STANDARDS AGENCY - Westminster,2019-10-16,EXP - PURCHASE OF GOODS/SERVICES - OTHER FACILITIES COSTS - MEETING ROOM HIRE,Risk Assessment ??? research and development,CALDER CONFERENCES LTD,1011710912,484.69,CONFERENCE COSTS,LS16 6RF,ADMIN
FOOD STANDARDS AGENCY - Westminster,FOOD STANDARDS AGENCY - Westminster,2019-10-28,EXP - PURCHASE OF GOODS/SERVICES - FOREIGN SUBSISTENCE,"Food Additives, Flavourings, and Food Contact Materials",CORPORATE TRAVEL MANAGEMENT NORTH LTD,1011711008,484.29,Travel & Subsistence Week 42,BD1 5HQ,ADMIN
FOOD STANDARDS AGENCY - Westminster,FOOD STANDARDS AGENCY - Westminster,2019-10-07,EXP - PURCHASE OF GOODS/SERVICES - RAIL TRAVEL,Regulatory & International,CORPORATE TRAVEL MANAGEMENT NORTH LTD,1011710814,483.2,Travel & Subsistence Week 39,BD1 5HQ,ADMIN
FOOD STANDARDS AGENCY - Westminster,FOOD STANDARDS AGENCY - Westminster,2019-10-28,EXP - PURCHASE OF GOODS/SERVICES - RAIL TRAVEL,Analytics Unit,CORPORATE TRAVEL MANAGEMENT NORTH LTD,1011711008,474.3,Travel & Subsistence Week 42,BD1 5HQ,ADMIN
FOOD STANDARDS AGENCY - Westminster,FOOD STANDARDS AGENCY - Westminster,2019-10-04,EXP - PURCHASE OF GOODS/SERVICES - RAIL TRAVEL,Digital,CORPORATE TRAVEL MANAGEMENT NORTH LTD,1011710806,466.9,Travel & Subsistence Week 38,BD1 5HQ,ADMIN
FOOD STANDARDS AGENCY - Westminster,FOOD STANDARDS AGENCY - Westminster,2019-10-15,EXP - PURCHASE OF GOODS/SERVICES - RAIL TRAVEL,Wales and West 2 (Wales),CORPORATE TRAVEL MANAGEMENT NORTH LTD,1011710897,463.2,Travel & Subsistence Week 40,BD1 5HQ,PROGRAMME
FOOD STANDARDS AGENCY - Westminster,FOOD STANDARDS AGENCY - Westminster,2019-10-07,EXP - PURCHASE OF GOODS/SERVICES - RAIL TRAVEL,General Food Hygiene,CORPORATE TRAVEL MANAGEMENT NORTH LTD,1011710814,462,Travel & Subsistence Week 39,BD1 5HQ,ADMIN
FOOD STANDARDS AGENCY - Westminster,FOOD STANDARDS AGENCY - Westminster,2019-10-15,EXP - PURCHASE OF GOODS/SERVICES - RAIL TRAVEL,IT Service Delivery,CORPORATE TRAVEL MANAGEMENT NORTH LTD,1011710897,461.9,Travel & Subsistence Week 40,BD1 5HQ,ADMIN
FOOD STANDARDS AGENCY - Westminster,FOOD STANDARDS AGENCY - Westminster,2019-10-28,EXP - PURCHASE OF GOODS/SERVICES - SUBSISTENCE,IT Service Delivery,CORPORATE TRAVEL MANAGEMENT NORTH LTD,1011711008,461.2,Travel & Subsistence Week 42,BD1 5HQ,ADMIN
FOOD STANDARDS AGENCY - Westminster,FOOD STANDARDS AGENCY - Westminster,2019-10-28,EXP - PURCHASE OF GOODS/SERVICES -  FOREIGN AIR TRAVEL,"Novel Foods, GM, Radiological and Feed Additives",CORPORATE TRAVEL MANAGEMENT NORTH LTD,1011711008,457.98,Travel & Subsistence Week 42,BD1 5HQ,ADMIN
FOOD STANDARDS AGENCY - Westminster,FOOD STANDARDS AGENCY - Westminster,2019-10-04,EXP - PURCHASE OF GOODS/SERVICES - SUBSISTENCE,Chief Scientific Advisors team,CORPORATE TRAVEL MANAGEMENT NORTH LTD,1011710806,456.9,Travel & Subsistence Week 38,BD1 5HQ,ADMIN
FOOD STANDARDS AGENCY - Westminster,FOOD STANDARDS AGENCY - Westminster,2019-10-07,EXP - PURCHASE OF GOODS/SERVICES - SUBSISTENCE,IT Information & Knowledge Management,CORPORATE TRAVEL MANAGEMENT NORTH LTD,1011710814,456.4,Travel & Subsistence Week 39,BD1 5HQ,ADMIN
FOOD STANDARDS AGENCY - Westminster,FOOD STANDARDS AGENCY - Westminster,2019-10-28,EXP - PURCHASE OF GOODS/SERVICES - RAIL TRAVEL,Food Incidents & Resilience - Prog,CORPORATE TRAVEL MANAGEMENT NORTH LTD,1011711008,455.3,Travel & Subsistence Week 42,BD1 5HQ,PROGRAMME
FOOD STANDARDS AGENCY - Westminster,FOOD STANDARDS AGENCY - Westminster,2019-10-07,EXP - PURCHASE OF GOODS/SERVICES - AIR TRAVEL,RDOT,CORPORATE TRAVEL MANAGEMENT NORTH LTD,1011710814,451.74,Travel & Subsistence Week 39,BD1 5HQ,PROGRAMME
FOOD STANDARDS AGENCY - Westminster,FOOD STANDARDS AGENCY - Westminster,2019-10-15,EXP - PURCHASE OF GOODS/SERVICES - RAIL TRAVEL,East 1,CORPORATE TRAVEL MANAGEMENT NORTH LTD,1011710897,451.25,Travel & Subsistence Week 40,BD1 5HQ,PROGRAMME
FOOD STANDARDS AGENCY - Westminster,FOOD STANDARDS AGENCY - Westminster,2019-10-07,EXP - PURCHASE OF GOODS/SERVICES -  FOREIGN AIR TRAVEL,"Novel Foods, GM, Radiological and Feed Additives",CORPORATE TRAVEL MANAGEMENT NORTH LTD,1011710814,446.2,Travel & Subsistence Week 39,BD1 5HQ,ADMIN
FOOD STANDARDS AGENCY - Westminster,FOOD STANDARDS AGENCY - Westminster,2019-10-15,EXP - PURCHASE OF GOODS/SERVICES -  FOREIGN AIR TRAVEL,Chief Scientific Advisors team,CORPORATE TRAVEL MANAGEMENT NORTH LTD,1011710897,442.27,Travel & Subsistence Week 40,BD1 5HQ,ADMIN
FOOD STANDARDS AGENCY - Westminster,FOOD STANDARDS AGENCY - Westminster,2019-10-28,EXP - PURCHASE OF GOODS/SERVICES - RAIL TRAVEL,Programme and project delivery,CORPORATE TRAVEL MANAGEMENT NORTH LTD,1011711008,439.5,Travel & Subsistence Week 42,BD1 5HQ,ADMIN
FOOD STANDARDS AGENCY - Westminster,FOOD STANDARDS AGENCY - Westminster,2019-10-07,EXP - PURCHASE OF GOODS/SERVICES - RAIL TRAVEL,Non Meat Field Ops,CORPORATE TRAVEL MANAGEMENT NORTH LTD,1011710814,438.41,Travel & Subsistence Week 39,BD1 5HQ,PROGRAMME
FOOD STANDARDS AGENCY - Westminster,FOOD STANDARDS AGENCY - Westminster,2019-10-28,EXP - PURCHASE OF GOODS/SERVICES - RAIL TRAVEL,Wales and West 2 (England),CORPORATE TRAVEL MANAGEMENT NORTH LTD,1011711008,437.2,Travel & Subsistence Week 42,BD1 5HQ,PROGRAMME
FOOD STANDARDS AGENCY - Westminster,FOOD STANDARDS AGENCY - Westminster,2019-10-21,EXP - PURCHASE OF GOODS/SERVICES - FOREIGN SUBSISTENCE,Chief Scientific Advisors team,CORPORATE TRAVEL MANAGEMENT NORTH LTD,1011710958,432.88,Travel & Subsistence Week 41,BD1 5HQ,ADMIN
FOOD STANDARDS AGENCY - Westminster,FOOD STANDARDS AGENCY - Westminster,2019-10-28,EXP - PURCHASE OF GOODS/SERVICES - SUBSISTENCE,"Novel Foods, GM, Radiological and Feed Additives",CORPORATE TRAVEL MANAGEMENT NORTH LTD,1011711008,430.61,Travel & Subsistence Week 42,BD1 5HQ,ADMIN
FOOD STANDARDS AGENCY - Westminster,FOOD STANDARDS AGENCY - Westminster,2019-10-04,EXP - PURCHASE OF GOODS/SERVICES - SUBSISTENCE,Organisational Development,CORPORATE TRAVEL MANAGEMENT NORTH LTD,1011710806,425.59,Travel & Subsistence Week 38,BD1 5HQ,ADMIN
FOOD STANDARDS AGENCY - Westminster,FOOD STANDARDS AGENCY - Westminster,2019-10-07,EXP - PURCHASE OF GOODS/SERVICES - RAIL TRAVEL,Food Crime Unit - Prog,CORPORATE TRAVEL MANAGEMENT NORTH LTD,1011710814,424.2,Travel & Subsistence Week 39,BD1 5HQ,PROGRAMME
FOOD STANDARDS AGENCY - Westminster,FOOD STANDARDS AGENCY - Westminster,2019-10-15,EXP - PURCHASE OF GOODS/SERVICES - FOREIGN SUBSISTENCE,Chemical Contaminants and Residues,CORPORATE TRAVEL MANAGEMENT NORTH LTD,1011710897,423.86,Travel & Subsistence Week 40,BD1 5HQ,ADMIN
FOOD STANDARDS AGENCY - Westminster,FOOD STANDARDS AGENCY - Westminster,2019-10-04,EXP - PURCHASE OF GOODS/SERVICES - SUBSISTENCE,Comms Directors Office,CORPORATE TRAVEL MANAGEMENT NORTH LTD,1011710806,423.8,Travel & Subsistence Week 38,BD1 5HQ,ADMIN
FOOD STANDARDS AGENCY - Westminster,FOOD STANDARDS AGENCY - Westminster,2019-10-15,EXP - PURCHASE OF GOODS/SERVICES - RAIL TRAVEL,Chief Executive & Private Office,CORPORATE TRAVEL MANAGEMENT NORTH LTD,1011710897,419,Travel & Subsistence Week 40,BD1 5HQ,ADMIN
FOOD STANDARDS AGENCY - Westminster,FOOD STANDARDS AGENCY - Westminster,2019-10-04,EXP - PURCHASE OF GOODS/SERVICES - RAIL TRAVEL,Internal Audit,CORPORATE TRAVEL MANAGEMENT NORTH LTD,1011710806,413.5,Travel & Subsistence Week 38,BD1 5HQ,ADMIN
FOOD STANDARDS AGENCY - Westminster,FOOD STANDARDS AGENCY - Westminster,2019-10-04,EXP - PURCHASE OF GOODS/SERVICES - RAIL TRAVEL,Non Meat Field Ops,CORPORATE TRAVEL MANAGEMENT NORTH LTD,1011710806,412,Travel & Subsistence Week 38,BD1 5HQ,PROGRAMME
FOOD STANDARDS AGENCY - Westminster,FOOD STANDARDS AGENCY - Westminster,2019-10-28,EXP - PURCHASE OF GOODS/SERVICES - OTHER TRAVEL,Regulatory Delivery,CORPORATE TRAVEL MANAGEMENT NORTH LTD,1011711008,411.4,Travel & Subsistence Week 42,BD1 5HQ,ADMIN
FOOD STANDARDS AGENCY - Westminster,FOOD STANDARDS AGENCY - Westminster,2019-10-04,EXP - PURCHASE OF GOODS/SERVICES - RAIL TRAVEL,"Novel Foods, GM, Radiological and Feed Additives",CORPORATE TRAVEL MANAGEMENT NORTH LTD,1011710806,411.3,Travel & Subsistence Week 38,BD1 5HQ,ADMIN
FOOD STANDARDS AGENCY - Westminster,FOOD STANDARDS AGENCY - Westminster,2019-10-21,EXP - PURCHASE OF GOODS/SERVICES - SUBSISTENCE,Internal Audit,CORPORATE TRAVEL MANAGEMENT NORTH LTD,1011710958,410.9,Travel & Subsistence Week 41,BD1 5HQ,ADMIN
FOOD STANDARDS AGENCY - Westminster,FOOD STANDARDS AGENCY - Westminster,2019-10-28,EXP - PURCHASE OF GOODS/SERVICES - SUBSISTENCE,Chemical Contaminants and Residues,CORPORATE TRAVEL MANAGEMENT NORTH LTD,1011711008,408.2,Travel & Subsistence Week 42,BD1 5HQ,ADMIN
FOOD STANDARDS AGENCY - Westminster,FOOD STANDARDS AGENCY - Westminster,2019-10-07,EXP - PURCHASE OF GOODS/SERVICES - FOREIGN SUBSISTENCE,"Animal Feed, Foodborne Disease and Allergy (AFFDA)",CORPORATE TRAVEL MANAGEMENT NORTH LTD,1011710814,408.11,Travel & Subsistence Week 39,BD1 5HQ,ADMIN
FOOD STANDARDS AGENCY - Westminster,FOOD STANDARDS AGENCY - Westminster,2019-10-04,EXP - PURCHASE OF GOODS/SERVICES - RAIL TRAVEL,Programme and project delivery,CORPORATE TRAVEL MANAGEMENT NORTH LTD,1011710806,406.55,Travel & Subsistence Week 38,BD1 5HQ,ADMIN
FOOD STANDARDS AGENCY - Westminster,FOOD STANDARDS AGENCY - Westminster,2019-10-07,EXP - PURCHASE OF GOODS/SERVICES - FOREIGN SUBSISTENCE,Chief Scientific Advisors team,CORPORATE TRAVEL MANAGEMENT NORTH LTD,1011710814,401.97,Travel & Subsistence Week 39,BD1 5HQ,ADMIN
FOOD STANDARDS AGENCY - Westminster,FOOD STANDARDS AGENCY - Westminster,2019-10-28,EXP - PURCHASE OF GOODS/SERVICES - RAIL TRAVEL,"Animal Feed, Foodborne Disease and Allergy (AFFDA)",CORPORATE TRAVEL MANAGEMENT NORTH LTD,1011711008,397,Travel & Subsistence Week 42,BD1 5HQ,ADMIN
FOOD STANDARDS AGENCY - Westminster,FOOD STANDARDS AGENCY - Westminster,2019-10-07,EXP - PURCHASE OF GOODS/SERVICES - RAIL TRAVEL,Resilience - Admin,CORPORATE TRAVEL MANAGEMENT NORTH LTD,1011710814,393.7,Travel & Subsistence Week 39,BD1 5HQ,ADMIN
FOOD STANDARDS AGENCY - Westminster,FOOD STANDARDS AGENCY - Westminster,2019-10-21,EXP - PURCHASE OF GOODS/SERVICES - AIR TRAVEL,Comms Directors Office,CORPORATE TRAVEL MANAGEMENT NORTH LTD,1011710958,392.13,Travel & Subsistence Week 41,BD1 5HQ,ADMIN
FOOD STANDARDS AGENCY - Westminster,FOOD STANDARDS AGENCY - Westminster,2019-10-28,EXP - PURCHASE OF GOODS/SERVICES - RAIL TRAVEL,Internal Audit,CORPORATE TRAVEL MANAGEMENT NORTH LTD,1011711008,387.25,Travel & Subsistence Week 42,BD1 5HQ,ADMIN
FOOD STANDARDS AGENCY - Westminster,FOOD STANDARDS AGENCY - Westminster,2019-10-28,EXP - PURCHASE OF GOODS/SERVICES - AIR TRAVEL,RDOT,CORPORATE TRAVEL MANAGEMENT NORTH LTD,1011711008,386.79,Travel & Subsistence Week 42,BD1 5HQ,PROGRAMME
FOOD STANDARDS AGENCY - Westminster,FOOD STANDARDS AGENCY - Westminster,2019-10-15,EXP - PURCHASE OF GOODS/SERVICES - RAIL TRAVEL,IT Information & Knowledge Management,CORPORATE TRAVEL MANAGEMENT NORTH LTD,1011710897,382.5,Travel & Subsistence Week 40,BD1 5HQ,ADMIN
FOOD STANDARDS AGENCY - Westminster,FOOD STANDARDS AGENCY - Westminster,2019-10-07,EXP - PURCHASE OF GOODS/SERVICES - AIR TRAVEL,Food Incidents & Resilience - Prog,CORPORATE TRAVEL MANAGEMENT NORTH LTD,1011710814,381.47,Travel & Subsistence Week 39,BD1 5HQ,PROGRAMME
FOOD STANDARDS AGENCY - Westminster,FOOD STANDARDS AGENCY - Westminster,2019-10-07,EXP - PURCHASE OF GOODS/SERVICES - RAIL TRAVEL,Regulating our Future,CORPORATE TRAVEL MANAGEMENT NORTH LTD,1011710814,376.8,Travel & Subsistence Week 39,BD1 5HQ,ADMIN
FOOD STANDARDS AGENCY - Westminster,FOOD STANDARDS AGENCY - Westminster,2019-10-21,EXP - PURCHASE OF GOODS/SERVICES - RAIL TRAVEL,Food Crime Unit - Prog,CORPORATE TRAVEL MANAGEMENT NORTH LTD,1011710958,372.55,Travel & Subsistence Week 41,BD1 5HQ,PROGRAMME
FOOD STANDARDS AGENCY - Westminster,FOOD STANDARDS AGENCY - Westminster,2019-10-15,EXP - PURCHASE OF GOODS/SERVICES - RAIL TRAVEL,General Food Hygiene,CORPORATE TRAVEL MANAGEMENT NORTH LTD,1011710897,369.5,Travel & Subsistence Week 40,BD1 5HQ,ADMIN
FOOD STANDARDS AGENCY - Westminster,FOOD STANDARDS AGENCY - Westminster,2019-10-04,EXP - PURCHASE OF GOODS/SERVICES - SUBSISTENCE,RDOT,CORPORATE TRAVEL MANAGEMENT NORTH LTD,1011710806,366.92,Travel & Subsistence Week 38,BD1 5HQ,PROGRAMME
FOOD STANDARDS AGENCY - Westminster,FOOD STANDARDS AGENCY - Westminster,2019-10-21,EXP - PURCHASE OF GOODS/SERVICES - AIR TRAVEL,Internal Audit,CORPORATE TRAVEL MANAGEMENT NORTH LTD,1011710958,363.9,Travel & Subsistence Week 41,BD1 5HQ,ADMIN
FOOD STANDARDS AGENCY - Westminster,FOOD STANDARDS AGENCY - Westminster,2019-10-07,EXP - PURCHASE OF GOODS/SERVICES - RAIL TRAVEL,Programme and project delivery,CORPORATE TRAVEL MANAGEMENT NORTH LTD,1011710814,361.3,Travel & Subsistence Week 39,BD1 5HQ,ADMIN
FOOD STANDARDS AGENCY - Westminster,FOOD STANDARDS AGENCY - Westminster,2019-10-07,EXP - PURCHASE OF GOODS/SERVICES - RAIL TRAVEL,Food Incidents & Resilience - Prog,CORPORATE TRAVEL MANAGEMENT NORTH LTD,1011710814,359.5,Travel & Subsistence Week 39,BD1 5HQ,PROGRAMME
FOOD STANDARDS AGENCY - Westminster,FOOD STANDARDS AGENCY - Westminster,2019-10-28,EXP - PURCHASE OF GOODS/SERVICES - SUBSISTENCE,IT Information & Knowledge Management,CORPORATE TRAVEL MANAGEMENT NORTH LTD,1011711008,356.6,Travel & Subsistence Week 42,BD1 5HQ,ADMIN
FOOD STANDARDS AGENCY - Westminster,FOOD STANDARDS AGENCY - Westminster,2019-10-07,EXP - PURCHASE OF GOODS/SERVICES -  FOREIGN AIR TRAVEL,Food Incidents & Resilience - Prog,CORPORATE TRAVEL MANAGEMENT NORTH LTD,1011710814,356,Travel & Subsistence Week 39,BD1 5HQ,PROGRAMME
FOOD STANDARDS AGENCY - Westminster,FOOD STANDARDS AGENCY - Westminster,2019-10-21,EXP - PURCHASE OF GOODS/SERVICES - RAIL TRAVEL,"Animal Feed, Foodborne Disease and Allergy (AFFDA)",CORPORATE TRAVEL MANAGEMENT NORTH LTD,1011710958,354.2,Travel & Subsistence Week 41,BD1 5HQ,ADMIN
FOOD STANDARDS AGENCY - Westminster,FOOD STANDARDS AGENCY - Westminster,2019-10-04,EXP - PURCHASE OF GOODS/SERVICES - RAIL TRAVEL,Resilience - Admin,CORPORATE TRAVEL MANAGEMENT NORTH LTD,1011710806,351.3,Travel & Subsistence Week 38,BD1 5HQ,ADMIN
FOOD STANDARDS AGENCY - Westminster,FOOD STANDARDS AGENCY - Westminster,2019-10-28,EXP - PURCHASE OF GOODS/SERVICES - RAIL TRAVEL,Planning and Performance,CORPORATE TRAVEL MANAGEMENT NORTH LTD,1011711008,351.2,Travel & Subsistence Week 42,BD1 5HQ,ADMIN
FOOD STANDARDS AGENCY - Westminster,FOOD STANDARDS AGENCY - Westminster,2019-10-07,EXP - PURCHASE OF GOODS/SERVICES - RAIL TRAVEL,East 4,CORPORATE TRAVEL MANAGEMENT NORTH LTD,1011710814,350.8,Travel & Subsistence Week 39,BD1 5HQ,PROGRAMME
FOOD STANDARDS AGENCY - Westminster,FOOD STANDARDS AGENCY - Westminster,2019-10-21,EXP - PURCHASE OF GOODS/SERVICES - RAIL TRAVEL,North 1,CORPORATE TRAVEL MANAGEMENT NORTH LTD,1011710958,350.3,Travel & Subsistence Week 41,BD1 5HQ,PROGRAMME
FOOD STANDARDS AGENCY - Westminster,FOOD STANDARDS AGENCY - Westminster,2019-10-28,EXP - PURCHASE OF GOODS/SERVICES - SUBSISTENCE,Finance Director & Branch,CORPORATE TRAVEL MANAGEMENT NORTH LTD,1011711008,349.8,Travel & Subsistence Week 42,BD1 5HQ,ADMIN
FOOD STANDARDS AGENCY - Westminster,FOOD STANDARDS AGENCY - Westminster,2019-10-21,EXP - PURCHASE OF GOODS/SERVICES - RAIL TRAVEL,Food Incidents & Resilience - Prog,CORPORATE TRAVEL MANAGEMENT NORTH LTD,1011710958,348.5,Travel & Subsistence Week 41,BD1 5HQ,PROGRAMME
FOOD STANDARDS AGENCY - Westminster,FOOD STANDARDS AGENCY - Westminster,2019-10-28,EXP - PURCHASE OF GOODS/SERVICES - AIR TRAVEL,Organisational Development,CORPORATE TRAVEL MANAGEMENT NORTH LTD,1011711008,346.63,Travel & Subsistence Week 42,BD1 5HQ,ADMIN
FOOD STANDARDS AGENCY - Westminster,FOOD STANDARDS AGENCY - Westminster,2019-10-04,EXP - PURCHASE OF GOODS/SERVICES - RAIL TRAVEL,Chief Executive & Private Office,CORPORATE TRAVEL MANAGEMENT NORTH LTD,1011710806,344,Travel & Subsistence Week 38,BD1 5HQ,ADMIN
FOOD STANDARDS AGENCY - Westminster,FOOD STANDARDS AGENCY - Westminster,2019-10-28,EXP - PURCHASE OF GOODS/SERVICES - AIR TRAVEL,Chief Scientific Advisors team,CORPORATE TRAVEL MANAGEMENT NORTH LTD,1011711008,343.8,Travel & Subsistence Week 42,BD1 5HQ,ADMIN
FOOD STANDARDS AGENCY - Westminster,FOOD STANDARDS AGENCY - Westminster,2019-10-21,EXP - PURCHASE OF GOODS/SERVICES - RAIL TRAVEL,Finance Director & Branch,CORPORATE TRAVEL MANAGEMENT NORTH LTD,1011710958,343.75,Travel & Subsistence Week 41,BD1 5HQ,ADMIN
FOOD STANDARDS AGENCY - Westminster,FOOD STANDARDS AGENCY - Westminster,2019-10-04,EXP - PURCHASE OF GOODS/SERVICES - RAIL TRAVEL,IT Service Delivery,CORPORATE TRAVEL MANAGEMENT NORTH LTD,1011710806,342.93,Travel & Subsistence Week 38,BD1 5HQ,ADMIN
FOOD STANDARDS AGENCY - Westminster,FOOD STANDARDS AGENCY - Westminster,2019-10-04,EXP - PURCHASE OF GOODS/SERVICES - RAIL TRAVEL,Regulatory & International,CORPORATE TRAVEL MANAGEMENT NORTH LTD,1011710806,339.3,Travel & Subsistence Week 38,BD1 5HQ,ADMIN
FOOD STANDARDS AGENCY - Westminster,FOOD STANDARDS AGENCY - Westminster,2019-10-04,EXP - PURCHASE OF GOODS/SERVICES - SUBSISTENCE,Regulatory & International,CORPORATE TRAVEL MANAGEMENT NORTH LTD,1011710806,337.18,Travel & Subsistence Week 38,BD1 5HQ,ADMIN
FOOD STANDARDS AGENCY - Westminster,FOOD STANDARDS AGENCY - Westminster,2019-10-15,EXP - PURCHASE OF GOODS/SERVICES - RAIL TRAVEL,Non Meat Field Ops,CORPORATE TRAVEL MANAGEMENT NORTH LTD,1011710897,335.56,Travel & Subsistence Week 40,BD1 5HQ,PROGRAMME
FOOD STANDARDS AGENCY - Westminster,FOOD STANDARDS AGENCY - Westminster,2019-10-28,EXP - PURCHASE OF GOODS/SERVICES - RAIL TRAVEL,Food Crime Unit - Prog,CORPORATE TRAVEL MANAGEMENT NORTH LTD,1011711008,335.05,Travel & Subsistence Week 42,BD1 5HQ,PROGRAMME
FOOD STANDARDS AGENCY - Westminster,FOOD STANDARDS AGENCY - Westminster,2019-10-07,EXP - PURCHASE OF GOODS/SERVICES - RAIL TRAVEL,Procurement,CORPORATE TRAVEL MANAGEMENT NORTH LTD,1011710814,333.5,Travel & Subsistence Week 39,BD1 5HQ,ADMIN
FOOD STANDARDS AGENCY - Westminster,FOOD STANDARDS AGENCY - Westminster,2019-10-04,EXP - PURCHASE OF GOODS/SERVICES - SUBSISTENCE,Food Incidents & Resilience - Prog,CORPORATE TRAVEL MANAGEMENT NORTH LTD,1011710806,332.38,Travel & Subsistence Week 38,BD1 5HQ,PROGRAMME
FOOD STANDARDS AGENCY - Westminster,FOOD STANDARDS AGENCY - Westminster,2019-10-07,EXP - PURCHASE OF GOODS/SERVICES - SUBSISTENCE,Regulatory & International,CORPORATE TRAVEL MANAGEMENT NORTH LTD,1011710814,332.3,Travel & Subsistence Week 39,BD1 5HQ,ADMIN
FOOD STANDARDS AGENCY - Westminster,FOOD STANDARDS AGENCY - Westminster,2019-10-28,EXP - PURCHASE OF GOODS/SERVICES - SUBSISTENCE,Risk Assessment ??? research and development,CORPORATE TRAVEL MANAGEMENT NORTH LTD,1011711008,329.2,Travel & Subsistence Week 42,BD1 5HQ,ADMIN
FOOD STANDARDS AGENCY - Westminster,FOOD STANDARDS AGENCY - Westminster,2019-10-04,EXP - PURCHASE OF GOODS/SERVICES - RAIL TRAVEL,General Food Hygiene,CORPORATE TRAVEL MANAGEMENT NORTH LTD,1011710806,325.3,Travel & Subsistence Week 38,BD1 5HQ,ADMIN
FOOD STANDARDS AGENCY - Westminster,FOOD STANDARDS AGENCY - Westminster,2019-10-15,EXP - PURCHASE OF GOODS/SERVICES - AIR TRAVEL,RDOT,CORPORATE TRAVEL MANAGEMENT NORTH LTD,1011710897,324.84,Travel & Subsistence Week 40,BD1 5HQ,PROGRAMME
FOOD STANDARDS AGENCY - Westminster,FOOD STANDARDS AGENCY - Westminster,2019-10-15,EXP - PURCHASE OF GOODS/SERVICES - SUBSISTENCE,Regulatory & International,CORPORATE TRAVEL MANAGEMENT NORTH LTD,1011710897,323.05,Travel & Subsistence Week 40,BD1 5HQ,ADMIN
FOOD STANDARDS AGENCY - Westminster,FOOD STANDARDS AGENCY - Westminster,2019-10-07,EXP - PURCHASE OF GOODS/SERVICES - SUBSISTENCE,Resilience - Admin,CORPORATE TRAVEL MANAGEMENT NORTH LTD,1011710814,320.1,Travel & Subsistence Week 39,BD1 5HQ,ADMIN
FOOD STANDARDS AGENCY - Westminster,FOOD STANDARDS AGENCY - Westminster,2019-10-15,EXP - PURCHASE OF GOODS/SERVICES - SUBSISTENCE,Wales and West 4 ,CORPORATE TRAVEL MANAGEMENT NORTH LTD,1011710897,317.91,Travel & Subsistence Week 40,BD1 5HQ,PROGRAMME
FOOD STANDARDS AGENCY - Westminster,FOOD STANDARDS AGENCY - Westminster,2019-10-15,EXP - PURCHASE OF GOODS/SERVICES - OTHER TRAVEL,Organisational Development,CORPORATE TRAVEL MANAGEMENT NORTH LTD,1011710897,316.8,Travel & Subsistence Week 40,BD1 5HQ,ADMIN
FOOD STANDARDS AGENCY - Westminster,FOOD STANDARDS AGENCY - Westminster,2019-10-21,EXP - PURCHASE OF GOODS/SERVICES - RAIL TRAVEL,Legal Branch A & Investigations,CORPORATE TRAVEL MANAGEMENT NORTH LTD,1011710958,313.87,Travel & Subsistence Week 41,BD1 5HQ,ADMIN
FOOD STANDARDS AGENCY - Westminster,FOOD STANDARDS AGENCY - Westminster,2019-10-07,EXP - PURCHASE OF GOODS/SERVICES - RAIL TRAVEL,North 1,CORPORATE TRAVEL MANAGEMENT NORTH LTD,1011710814,312.1,Travel & Subsistence Week 39,BD1 5HQ,PROGRAMME
FOOD STANDARDS AGENCY - Westminster,FOOD STANDARDS AGENCY - Westminster,2019-10-21,EXP - PURCHASE OF GOODS/SERVICES - SUBSISTENCE,"Novel Foods, GM, Radiological and Feed Additives",CORPORATE TRAVEL MANAGEMENT NORTH LTD,1011710958,310.03,Travel & Subsistence Week 41,BD1 5HQ,ADMIN
FOOD STANDARDS AGENCY - Westminster,FOOD STANDARDS AGENCY - Westminster,2019-10-28,EXP - PURCHASE OF GOODS/SERVICES - SUBSISTENCE,Comms Directors Office,CORPORATE TRAVEL MANAGEMENT NORTH LTD,1011711008,308.7,Travel & Subsistence Week 42,BD1 5HQ,ADMIN
FOOD STANDARDS AGENCY - Westminster,FOOD STANDARDS AGENCY - Westminster,2019-10-15,EXP - PURCHASE OF GOODS/SERVICES - OTHER TRAVEL,Regulatory Delivery,CORPORATE TRAVEL MANAGEMENT NORTH LTD,1011710897,305.9,Travel & Subsistence Week 40,BD1 5HQ,ADMIN
FOOD STANDARDS AGENCY - Westminster,FOOD STANDARDS AGENCY - Westminster,2019-10-28,EXP - PURCHASE OF GOODS/SERVICES - AIR TRAVEL,IT Information & Knowledge Management,CORPORATE TRAVEL MANAGEMENT NORTH LTD,1011711008,304.61,Travel & Subsistence Week 42,BD1 5HQ,ADMIN
FOOD STANDARDS AGENCY - Westminster,FOOD STANDARDS AGENCY - Westminster,2019-10-07,EXP - PURCHASE OF GOODS/SERVICES - FOREIGN SUBSISTENCE,"Novel Foods, GM, Radiological and Feed Additives",CORPORATE TRAVEL MANAGEMENT NORTH LTD,1011710814,298.99,Travel & Subsistence Week 39,BD1 5HQ,ADMIN
FOOD STANDARDS AGENCY - Westminster,FOOD STANDARDS AGENCY - Westminster,2019-10-21,EXP - PURCHASE OF GOODS/SERVICES - RAIL TRAVEL,East 1,CORPORATE TRAVEL MANAGEMENT NORTH LTD,1011710958,297.4,Travel & Subsistence Week 41,BD1 5HQ,PROGRAMME
FOOD STANDARDS AGENCY - Westminster,FOOD STANDARDS AGENCY - Westminster,2019-10-28,EXP - PURCHASE OF GOODS/SERVICES - RAIL TRAVEL,Non Meat Field Ops,CORPORATE TRAVEL MANAGEMENT NORTH LTD,1011711008,295.9,Travel & Subsistence Week 42,BD1 5HQ,PROGRAMME
FOOD STANDARDS AGENCY - Westminster,FOOD STANDARDS AGENCY - Westminster,2019-10-07,EXP - PURCHASE OF GOODS/SERVICES - RAIL TRAVEL,Risk Assessment - operations,CORPORATE TRAVEL MANAGEMENT NORTH LTD,1011710814,295.35,Travel & Subsistence Week 39,BD1 5HQ,ADMIN
FOOD STANDARDS AGENCY - Westminster,FOOD STANDARDS AGENCY - Westminster,2019-10-15,EXP - PURCHASE OF GOODS/SERVICES - RAIL TRAVEL,North 4,CORPORATE TRAVEL MANAGEMENT NORTH LTD,1011710897,294.6,Travel & Subsistence Week 40,BD1 5HQ,PROGRAMME
FOOD STANDARDS AGENCY - Westminster,FOOD STANDARDS AGENCY - Westminster,2019-10-04,EXP - PURCHASE OF GOODS/SERVICES - SUBSISTENCE,Legal Branch A & Investigations,CORPORATE TRAVEL MANAGEMENT NORTH LTD,1011710806,292.05,Travel & Subsistence Week 38,BD1 5HQ,ADMIN
FOOD STANDARDS AGENCY - Westminster,FOOD STANDARDS AGENCY - Westminster,2019-10-04,EXP - PURCHASE OF GOODS/SERVICES - RAIL TRAVEL,Risk Assessment - operations,CORPORATE TRAVEL MANAGEMENT NORTH LTD,1011710806,291.1,Travel & Subsistence Week 38,BD1 5HQ,ADMIN
FOOD STANDARDS AGENCY - Westminster,FOOD STANDARDS AGENCY - Westminster,2019-10-15,EXP - PURCHASE OF GOODS/SERVICES - AIR TRAVEL,NFCU Phase 2,CORPORATE TRAVEL MANAGEMENT NORTH LTD,1011710897,288.4,Travel & Subsistence Week 40,BD1 5HQ,PROGRAMME
FOOD STANDARDS AGENCY - Westminster,FOOD STANDARDS AGENCY - Westminster,2019-10-21,EXP - PURCHASE OF GOODS/SERVICES - FOREIGN SUBSISTENCE,"Food Additives, Flavourings, and Food Contact Materials",CORPORATE TRAVEL MANAGEMENT NORTH LTD,1011710958,287.02,Travel & Subsistence Week 41,BD1 5HQ,ADMIN
FOOD STANDARDS AGENCY - Westminster,FOOD STANDARDS AGENCY - Westminster,2019-10-28,EXP - PURCHASE OF GOODS/SERVICES - SUBSISTENCE,Regulating our Future,CORPORATE TRAVEL MANAGEMENT NORTH LTD,1011711008,286.44,Travel & Subsistence Week 42,BD1 5HQ,ADMIN
FOOD STANDARDS AGENCY - Westminster,FOOD STANDARDS AGENCY - Westminster,2019-10-21,EXP - PURCHASE OF GOODS/SERVICES - SUBSISTENCE,Non Meat Field Ops,CORPORATE TRAVEL MANAGEMENT NORTH LTD,1011710958,285.37,Travel & Subsistence Week 41,BD1 5HQ,PROGRAMME
FOOD STANDARDS AGENCY - Westminster,FOOD STANDARDS AGENCY - Westminster,2019-10-15,EXP - PURCHASE OF GOODS/SERVICES - RAIL TRAVEL,Analytics Unit,CORPORATE TRAVEL MANAGEMENT NORTH LTD,1011710897,284.45,Travel & Subsistence Week 40,BD1 5HQ,ADMIN
FOOD STANDARDS AGENCY - Westminster,FOOD STANDARDS AGENCY - Westminster,2019-10-21,EXP - PURCHASE OF GOODS/SERVICES - SUBSISTENCE,Wales and West 2 (Wales),CORPORATE TRAVEL MANAGEMENT NORTH LTD,1011710958,284.4,Travel & Subsistence Week 41,BD1 5HQ,PROGRAMME
FOOD STANDARDS AGENCY - Westminster,FOOD STANDARDS AGENCY - Westminster,2019-10-28,EXP - PURCHASE OF GOODS/SERVICES - RAIL TRAVEL,Regulatory & International,CORPORATE TRAVEL MANAGEMENT NORTH LTD,1011711008,283.65,Travel & Subsistence Week 42,BD1 5HQ,ADMIN
FOOD STANDARDS AGENCY - Westminster,FOOD STANDARDS AGENCY - Westminster,2019-10-16,EXP - PURCHASE OF GOODS/SERVICES - OTHER FACILITIES COSTS - MEETING ROOM HIRE,Wales and West 3 ,CALDER CONFERENCES LTD,1011710912,282.08,CONFERENCE COSTS,LS16 6RF,PROGRAMME
FOOD STANDARDS AGENCY - Westminster,FOOD STANDARDS AGENCY - Westminster,2019-10-07,EXP - PURCHASE OF GOODS/SERVICES - SUBSISTENCE,"Novel Foods, GM, Radiological and Feed Additives",CORPORATE TRAVEL MANAGEMENT NORTH LTD,1011710814,280.33,Travel & Subsistence Week 39,BD1 5HQ,ADMIN
FOOD STANDARDS AGENCY - Westminster,FOOD STANDARDS AGENCY - Westminster,2019-10-07,EXP - PURCHASE OF GOODS/SERVICES - SUBSISTENCE,Chair & Deputy Chair,CORPORATE TRAVEL MANAGEMENT NORTH LTD,1011710814,273.84,Travel & Subsistence Week 39,BD1 5HQ,ADMIN
FOOD STANDARDS AGENCY - Westminster,FOOD STANDARDS AGENCY - Westminster,2019-10-21,EXP - PURCHASE OF GOODS/SERVICES - SUBSISTENCE,Chief Scientific Advisors team,CORPORATE TRAVEL MANAGEMENT NORTH LTD,1011710958,273.1,Travel & Subsistence Week 41,BD1 5HQ,ADMIN
FOOD STANDARDS AGENCY - Westminster,FOOD STANDARDS AGENCY - Westminster,2019-10-15,EXP - PURCHASE OF GOODS/SERVICES - RAIL TRAVEL,Procurement,CORPORATE TRAVEL MANAGEMENT NORTH LTD,1011710897,273,Travel & Subsistence Week 40,BD1 5HQ,ADMIN
FOOD STANDARDS AGENCY - Westminster,FOOD STANDARDS AGENCY - Westminster,2019-10-15,EXP - PURCHASE OF GOODS/SERVICES - SUBSISTENCE,Organisational Development,CORPORATE TRAVEL MANAGEMENT NORTH LTD,1011710897,272.15,Travel & Subsistence Week 40,BD1 5HQ,ADMIN
FOOD STANDARDS AGENCY - Westminster,FOOD STANDARDS AGENCY - Westminster,2019-10-21,EXP - PURCHASE OF GOODS/SERVICES - RAIL TRAVEL,Imports & Exports Team (Admin),CORPORATE TRAVEL MANAGEMENT NORTH LTD,1011710958,270.65,Travel & Subsistence Week 41,BD1 5HQ,ADMIN
FOOD STANDARDS AGENCY - Westminster,FOOD STANDARDS AGENCY - Westminster,2019-10-07,EXP - PURCHASE OF GOODS/SERVICES - RAIL TRAVEL,Finance Director & Branch,CORPORATE TRAVEL MANAGEMENT NORTH LTD,1011710814,269.1,Travel & Subsistence Week 39,BD1 5HQ,ADMIN
FOOD STANDARDS AGENCY - Westminster,FOOD STANDARDS AGENCY - Westminster,2019-10-04,EXP - PURCHASE OF GOODS/SERVICES - SUBSISTENCE,Food Crime Unit - Prog,CORPORATE TRAVEL MANAGEMENT NORTH LTD,1011710806,268.2,Travel & Subsistence Week 38,BD1 5HQ,PROGRAMME
FOOD STANDARDS AGENCY - Westminster,FOOD STANDARDS AGENCY - Westminster,2019-10-04,EXP - PURCHASE OF GOODS/SERVICES - SUBSISTENCE,Non Meat Field Ops,CORPORATE TRAVEL MANAGEMENT NORTH LTD,1011710806,265.89,Travel & Subsistence Week 38,BD1 5HQ,PROGRAMME
FOOD STANDARDS AGENCY - Westminster,FOOD STANDARDS AGENCY - Westminster,2019-10-21,EXP - PURCHASE OF GOODS/SERVICES - AIR TRAVEL,Regulatory Delivery,CORPORATE TRAVEL MANAGEMENT NORTH LTD,1011710958,263.52,Travel & Subsistence Week 41,BD1 5HQ,ADMIN
FOOD STANDARDS AGENCY - Westminster,FOOD STANDARDS AGENCY - Westminster,2019-10-07,EXP - PURCHASE OF GOODS/SERVICES - RAIL TRAVEL,Wales and West 4 ,CORPORATE TRAVEL MANAGEMENT NORTH LTD,1011710814,263.5,Travel & Subsistence Week 39,BD1 5HQ,PROGRAMME
FOOD STANDARDS AGENCY - Westminster,FOOD STANDARDS AGENCY - Westminster,2019-10-21,EXP - PURCHASE OF GOODS/SERVICES - RAIL TRAVEL,"Meat Hygiene, ABP, TSE",CORPORATE TRAVEL MANAGEMENT NORTH LTD,1011710958,261.35,Travel & Subsistence Week 41,BD1 5HQ,ADMIN
FOOD STANDARDS AGENCY - Westminster,FOOD STANDARDS AGENCY - Westminster,2019-10-15,EXP - PURCHASE OF GOODS/SERVICES - RAIL TRAVEL,East 3,CORPORATE TRAVEL MANAGEMENT NORTH LTD,1011710897,256.7,Travel & Subsistence Week 40,BD1 5HQ,PROGRAMME
FOOD STANDARDS AGENCY - Westminster,FOOD STANDARDS AGENCY - Westminster,2019-10-21,EXP - PURCHASE OF GOODS/SERVICES - OTHER TRAVEL,Corporate Support Unit,CORPORATE TRAVEL MANAGEMENT NORTH LTD,1011710958,255.75,Travel & Subsistence Week 41,BD1 5HQ,ADMIN
FOOD STANDARDS AGENCY - Westminster,FOOD STANDARDS AGENCY - Westminster,2019-10-21,EXP - PURCHASE OF GOODS/SERVICES - SUBSISTENCE,Legal Branch A & Investigations,CORPORATE TRAVEL MANAGEMENT NORTH LTD,1011710958,248.88,Travel & Subsistence Week 41,BD1 5HQ,ADMIN
FOOD STANDARDS AGENCY - Westminster,FOOD STANDARDS AGENCY - Westminster,2019-10-21,EXP - PURCHASE OF GOODS/SERVICES - SUBSISTENCE,IT Service Delivery,CORPORATE TRAVEL MANAGEMENT NORTH LTD,1011710958,244.51,Travel & Subsistence Week 41,BD1 5HQ,ADMIN
FOOD STANDARDS AGENCY - Westminster,FOOD STANDARDS AGENCY - Westminster,2019-10-04,EXP - PURCHASE OF GOODS/SERVICES - AIR TRAVEL,Chief Executive & Private Office,CORPORATE TRAVEL MANAGEMENT NORTH LTD,1011710806,238.2,Travel & Subsistence Week 38,BD1 5HQ,ADMIN
FOOD STANDARDS AGENCY - Westminster,FOOD STANDARDS AGENCY - Westminster,2019-10-07,EXP - PURCHASE OF GOODS/SERVICES - RAIL TRAVEL,East 1,CORPORATE TRAVEL MANAGEMENT NORTH LTD,1011710814,234.4,Travel & Subsistence Week 39,BD1 5HQ,PROGRAMME
FOOD STANDARDS AGENCY - Westminster,FOOD STANDARDS AGENCY - Westminster,2019-10-04,EXP - PURCHASE OF GOODS/SERVICES - RAIL TRAVEL,Chief Scientific Advisors team,CORPORATE TRAVEL MANAGEMENT NORTH LTD,1011710806,233.2,Travel & Subsistence Week 38,BD1 5HQ,ADMIN
FOOD STANDARDS AGENCY - Westminster,FOOD STANDARDS AGENCY - Westminster,2019-10-15,EXP - PURCHASE OF GOODS/SERVICES - OTHER TRAVEL,Regulatory & International,CORPORATE TRAVEL MANAGEMENT NORTH LTD,1011710897,231.16,Travel & Subsistence Week 40,BD1 5HQ,ADMIN
FOOD STANDARDS AGENCY - Westminster,FOOD STANDARDS AGENCY - Westminster,2019-10-07,EXP - PURCHASE OF GOODS/SERVICES - SUBSISTENCE,Wales and West 2 (Wales),CORPORATE TRAVEL MANAGEMENT NORTH LTD,1011710814,226.94,Travel & Subsistence Week 39,BD1 5HQ,PROGRAMME
FOOD STANDARDS AGENCY - Westminster,FOOD STANDARDS AGENCY - Westminster,2019-10-21,EXP - PURCHASE OF GOODS/SERVICES - OTHER TRAVEL,NFCU Phase 2,CORPORATE TRAVEL MANAGEMENT NORTH LTD,1011710958,224.25,Travel & Subsistence Week 41,BD1 5HQ,PROGRAMME
FOOD STANDARDS AGENCY - Westminster,FOOD STANDARDS AGENCY - Westminster,2019-10-07,EXP - PURCHASE OF GOODS/SERVICES -  FOREIGN AIR TRAVEL,Analytics Unit,CORPORATE TRAVEL MANAGEMENT NORTH LTD,1011710814,223,Travel & Subsistence Week 39,BD1 5HQ,ADMIN
FOOD STANDARDS AGENCY - Westminster,FOOD STANDARDS AGENCY - Westminster,2019-10-04,EXP - PURCHASE OF GOODS/SERVICES - SUBSISTENCE,Wales and West 4 ,CORPORATE TRAVEL MANAGEMENT NORTH LTD,1011710806,222.28,Travel & Subsistence Week 38,BD1 5HQ,PROGRAMME
FOOD STANDARDS AGENCY - Westminster,FOOD STANDARDS AGENCY - Westminster,2019-10-21,EXP - PURCHASE OF GOODS/SERVICES - RAIL TRAVEL,Food Crime Unit - Admin,CORPORATE TRAVEL MANAGEMENT NORTH LTD,1011710958,221.05,Travel & Subsistence Week 41,BD1 5HQ,ADMIN
FOOD STANDARDS AGENCY - Westminster,FOOD STANDARDS AGENCY - Westminster,2019-10-07,EXP - PURCHASE OF GOODS/SERVICES - SUBSISTENCE,East 2,CORPORATE TRAVEL MANAGEMENT NORTH LTD,1011710814,220.92,Travel & Subsistence Week 39,BD1 5HQ,PROGRAMME
FOOD STANDARDS AGENCY - Westminster,FOOD STANDARDS AGENCY - Westminster,2019-10-15,EXP - PURCHASE OF GOODS/SERVICES - RAIL TRAVEL,North 1,CORPORATE TRAVEL MANAGEMENT NORTH LTD,1011710897,218.4,Travel & Subsistence Week 40,BD1 5HQ,PROGRAMME
FOOD STANDARDS AGENCY - Westminster,FOOD STANDARDS AGENCY - Westminster,2019-10-07,EXP - PURCHASE OF GOODS/SERVICES - RAIL TRAVEL,East 3,CORPORATE TRAVEL MANAGEMENT NORTH LTD,1011710814,211.15,Travel & Subsistence Week 39,BD1 5HQ,PROGRAMME
FOOD STANDARDS AGENCY - Westminster,FOOD STANDARDS AGENCY - Westminster,2019-10-28,EXP - PURCHASE OF GOODS/SERVICES - SUBSISTENCE,Analytics Unit,CORPORATE TRAVEL MANAGEMENT NORTH LTD,1011711008,210.78,Travel & Subsistence Week 42,BD1 5HQ,ADMIN
FOOD STANDARDS AGENCY - Westminster,FOOD STANDARDS AGENCY - Westminster,2019-10-04,EXP - PURCHASE OF GOODS/SERVICES - RAIL TRAVEL,East 2,CORPORATE TRAVEL MANAGEMENT NORTH LTD,1011710806,210.25,Travel & Subsistence Week 38,BD1 5HQ,PROGRAMME
FOOD STANDARDS AGENCY - Westminster,FOOD STANDARDS AGENCY - Westminster,2019-10-04,EXP - PURCHASE OF GOODS/SERVICES - AIR TRAVEL,Wales and West 4 ,CORPORATE TRAVEL MANAGEMENT NORTH LTD,1011710806,209.13,Travel & Subsistence Week 38,BD1 5HQ,PROGRAMME
FOOD STANDARDS AGENCY - Westminster,FOOD STANDARDS AGENCY - Westminster,2019-10-28,EXP - PURCHASE OF GOODS/SERVICES - SUBSISTENCE,Internal Audit,CORPORATE TRAVEL MANAGEMENT NORTH LTD,1011711008,206.88,Travel & Subsistence Week 42,BD1 5HQ,ADMIN
FOOD STANDARDS AGENCY - Westminster,FOOD STANDARDS AGENCY - Westminster,2019-10-04,EXP - PURCHASE OF GOODS/SERVICES - SUBSISTENCE,"Animal Feed, Foodborne Disease and Allergy (AFFDA)",CORPORATE TRAVEL MANAGEMENT NORTH LTD,1011710806,205.45,Travel & Subsistence Week 38,BD1 5HQ,ADMIN
FOOD STANDARDS AGENCY - Westminster,FOOD STANDARDS AGENCY - Westminster,2019-10-15,EXP - PURCHASE OF GOODS/SERVICES - RAIL TRAVEL,Food Incidents & Resilience - Prog,CORPORATE TRAVEL MANAGEMENT NORTH LTD,1011710897,203.6,Travel & Subsistence Week 40,BD1 5HQ,PROGRAMME
FOOD STANDARDS AGENCY - Westminster,FOOD STANDARDS AGENCY - Westminster,2019-10-15,EXP - PURCHASE OF GOODS/SERVICES - RAIL TRAVEL,East 4,CORPORATE TRAVEL MANAGEMENT NORTH LTD,1011710897,196.8,Travel & Subsistence Week 40,BD1 5HQ,PROGRAMME
FOOD STANDARDS AGENCY - Westminster,FOOD STANDARDS AGENCY - Westminster,2019-10-28,EXP - PURCHASE OF GOODS/SERVICES - RAIL TRAVEL,North 3,CORPORATE TRAVEL MANAGEMENT NORTH LTD,1011711008,196.5,Travel & Subsistence Week 42,BD1 5HQ,PROGRAMME
FOOD STANDARDS AGENCY - Westminster,FOOD STANDARDS AGENCY - Westminster,2019-10-15,EXP - PURCHASE OF GOODS/SERVICES - AIR TRAVEL,Analytics Unit,CORPORATE TRAVEL MANAGEMENT NORTH LTD,1011710897,196.33,Travel & Subsistence Week 40,BD1 5HQ,ADMIN
FOOD STANDARDS AGENCY - Westminster,FOOD STANDARDS AGENCY - Westminster,2019-10-07,EXP - PURCHASE OF GOODS/SERVICES - RAIL TRAVEL,Wales and West 2 (England),CORPORATE TRAVEL MANAGEMENT NORTH LTD,1011710814,195.8,Travel & Subsistence Week 39,BD1 5HQ,PROGRAMME
FOOD STANDARDS AGENCY - Westminster,FOOD STANDARDS AGENCY - Westminster,2019-10-28,EXP - PURCHASE OF GOODS/SERVICES - SUBSISTENCE,Planning and Performance,CORPORATE TRAVEL MANAGEMENT NORTH LTD,1011711008,192.7,Travel & Subsistence Week 42,BD1 5HQ,ADMIN
FOOD STANDARDS AGENCY - Westminster,FOOD STANDARDS AGENCY - Westminster,2019-10-28,EXP - PURCHASE OF GOODS/SERVICES - SUBSISTENCE,Non Meat Field Ops,CORPORATE TRAVEL MANAGEMENT NORTH LTD,1011711008,191.05,Travel & Subsistence Week 42,BD1 5HQ,PROGRAMME
FOOD STANDARDS AGENCY - Westminster,FOOD STANDARDS AGENCY - Westminster,2019-10-21,EXP - PURCHASE OF GOODS/SERVICES - SUBSISTENCE,Planning and Performance,CORPORATE TRAVEL MANAGEMENT NORTH LTD,1011710958,190.35,Travel & Subsistence Week 41,BD1 5HQ,ADMIN
FOOD STANDARDS AGENCY - Westminster,FOOD STANDARDS AGENCY - Westminster,2019-10-07,EXP - PURCHASE OF GOODS/SERVICES - AIR TRAVEL,Regulatory Delivery,CORPORATE TRAVEL MANAGEMENT NORTH LTD,1011710814,189.8,Travel & Subsistence Week 39,BD1 5HQ,ADMIN
FOOD STANDARDS AGENCY - Westminster,FOOD STANDARDS AGENCY - Westminster,2019-10-21,EXP - PURCHASE OF GOODS/SERVICES - SUBSISTENCE,Food Incidents & Resilience - Prog,CORPORATE TRAVEL MANAGEMENT NORTH LTD,1011710958,187.06,Travel & Subsistence Week 41,BD1 5HQ,PROGRAMME
FOOD STANDARDS AGENCY - Westminster,FOOD STANDARDS AGENCY - Westminster,2019-10-15,EXP - PURCHASE OF GOODS/SERVICES - AIR TRAVEL,Chemical Contaminants and Residues,CORPORATE TRAVEL MANAGEMENT NORTH LTD,1011710897,183.4,Travel & Subsistence Week 40,BD1 5HQ,ADMIN
FOOD STANDARDS AGENCY - Westminster,FOOD STANDARDS AGENCY - Westminster,2019-10-07,EXP - PURCHASE OF GOODS/SERVICES - RAIL TRAVEL,IT Service Delivery,CORPORATE TRAVEL MANAGEMENT NORTH LTD,1011710814,183.1,Travel & Subsistence Week 39,BD1 5HQ,ADMIN
FOOD STANDARDS AGENCY - Westminster,FOOD STANDARDS AGENCY - Westminster,2019-10-04,EXP - PURCHASE OF GOODS/SERVICES - SUBSISTENCE,Planning and Performance,CORPORATE TRAVEL MANAGEMENT NORTH LTD,1011710806,182.42,Travel & Subsistence Week 38,BD1 5HQ,ADMIN
FOOD STANDARDS AGENCY - Westminster,FOOD STANDARDS AGENCY - Westminster,2019-10-07,EXP - PURCHASE OF GOODS/SERVICES - AIR TRAVEL,Comms Directors Office,CORPORATE TRAVEL MANAGEMENT NORTH LTD,1011710814,180.98,Travel & Subsistence Week 39,BD1 5HQ,ADMIN
FOOD STANDARDS AGENCY - Westminster,FOOD STANDARDS AGENCY - Westminster,2019-10-28,EXP - PURCHASE OF GOODS/SERVICES - RAIL TRAVEL,East 4,CORPORATE TRAVEL MANAGEMENT NORTH LTD,1011711008,180.3,Travel & Subsistence Week 42,BD1 5HQ,PROGRAMME
FOOD STANDARDS AGENCY - Westminster,FOOD STANDARDS AGENCY - Westminster,2019-10-04,EXP - PURCHASE OF GOODS/SERVICES - RAIL TRAVEL,East 3,CORPORATE TRAVEL MANAGEMENT NORTH LTD,1011710806,178.3,Travel & Subsistence Week 38,BD1 5HQ,PROGRAMME
FOOD STANDARDS AGENCY - Westminster,FOOD STANDARDS AGENCY - Westminster,2019-10-15,EXP - PURCHASE OF GOODS/SERVICES - AIR TRAVEL,Regulatory & International,CORPORATE TRAVEL MANAGEMENT NORTH LTD,1011710897,176.98,Travel & Subsistence Week 40,BD1 5HQ,ADMIN
FOOD STANDARDS AGENCY - Westminster,FOOD STANDARDS AGENCY - Westminster,2019-10-15,EXP - PURCHASE OF GOODS/SERVICES - RAIL TRAVEL,Internal Audit,CORPORATE TRAVEL MANAGEMENT NORTH LTD,1011710897,176.4,Travel & Subsistence Week 40,BD1 5HQ,ADMIN
FOOD STANDARDS AGENCY - Westminster,FOOD STANDARDS AGENCY - Westminster,2019-10-21,#N/A,"Food Additives, Flavourings, and Food Contact Materials",CORPORATE TRAVEL MANAGEMENT NORTH LTD,1011710958,175.69,Travel & Subsistence Week 41,BD1 5HQ,ADMIN
FOOD STANDARDS AGENCY - Westminster,FOOD STANDARDS AGENCY - Westminster,2019-10-04,EXP - PURCHASE OF GOODS/SERVICES -  FOREIGN AIR TRAVEL,"Novel Foods, GM, Radiological and Feed Additives",CORPORATE TRAVEL MANAGEMENT NORTH LTD,1011710806,174,Travel & Subsistence Week 38,BD1 5HQ,ADMIN
FOOD STANDARDS AGENCY - Westminster,FOOD STANDARDS AGENCY - Westminster,2019-10-04,EXP - PURCHASE OF GOODS/SERVICES - SUBSISTENCE,East 2,CORPORATE TRAVEL MANAGEMENT NORTH LTD,1011710806,172.66,Travel & Subsistence Week 38,BD1 5HQ,PROGRAMME
FOOD STANDARDS AGENCY - Westminster,FOOD STANDARDS AGENCY - Westminster,2019-10-28,EXP - PURCHASE OF GOODS/SERVICES - SUBSISTENCE,Wales and West 4 ,CORPORATE TRAVEL MANAGEMENT NORTH LTD,1011711008,171.37,Travel & Subsistence Week 42,BD1 5HQ,PROGRAMME
FOOD STANDARDS AGENCY - Westminster,FOOD STANDARDS AGENCY - Westminster,2019-10-04,EXP - PURCHASE OF GOODS/SERVICES - FOREIGN SUBSISTENCE,Non Meat Field Ops,CORPORATE TRAVEL MANAGEMENT NORTH LTD,1011710806,170.33,Travel & Subsistence Week 38,BD1 5HQ,PROGRAMME
FOOD STANDARDS AGENCY - Westminster,FOOD STANDARDS AGENCY - Westminster,2019-10-04,EXP - PURCHASE OF GOODS/SERVICES - RAIL TRAVEL,North 4,CORPORATE TRAVEL MANAGEMENT NORTH LTD,1011710806,170.3,Travel & Subsistence Week 38,BD1 5HQ,PROGRAMME
FOOD STANDARDS AGENCY - Westminster,FOOD STANDARDS AGENCY - Westminster,2019-10-21,EXP - PURCHASE OF GOODS/SERVICES - SUBSISTENCE,Finance Director & Branch,CORPORATE TRAVEL MANAGEMENT NORTH LTD,1011710958,169.6,Travel & Subsistence Week 41,BD1 5HQ,ADMIN
FOOD STANDARDS AGENCY - Westminster,FOOD STANDARDS AGENCY - Westminster,2019-10-28,EXP - PURCHASE OF GOODS/SERVICES - RAIL TRAVEL,Comms Directors Office,CORPORATE TRAVEL MANAGEMENT NORTH LTD,1011711008,168.25,Travel & Subsistence Week 42,BD1 5HQ,ADMIN
FOOD STANDARDS AGENCY - Westminster,FOOD STANDARDS AGENCY - Westminster,2019-10-04,EXP - PURCHASE OF GOODS/SERVICES - RAIL TRAVEL,Analytics Unit,CORPORATE TRAVEL MANAGEMENT NORTH LTD,1011710806,167.7,Travel & Subsistence Week 38,BD1 5HQ,ADMIN
FOOD STANDARDS AGENCY - Westminster,FOOD STANDARDS AGENCY - Westminster,2019-10-15,EXP - PURCHASE OF GOODS/SERVICES - SUBSISTENCE,Corporate Support Unit,CORPORATE TRAVEL MANAGEMENT NORTH LTD,1011710897,166.02,Travel & Subsistence Week 40,BD1 5HQ,ADMIN
FOOD STANDARDS AGENCY - Westminster,FOOD STANDARDS AGENCY - Westminster,2019-10-21,EXP - PURCHASE OF GOODS/SERVICES - RAIL TRAVEL,Chemical Contaminants and Residues,CORPORATE TRAVEL MANAGEMENT NORTH LTD,1011710958,163.65,Travel & Subsistence Week 41,BD1 5HQ,ADMIN
FOOD STANDARDS AGENCY - Westminster,FOOD STANDARDS AGENCY - Westminster,2019-10-21,EXP - PURCHASE OF GOODS/SERVICES - SUBSISTENCE,Resilience - Admin,CORPORATE TRAVEL MANAGEMENT NORTH LTD,1011710958,163.5,Travel & Subsistence Week 41,BD1 5HQ,ADMIN
FOOD STANDARDS AGENCY - Westminster,FOOD STANDARDS AGENCY - Westminster,2019-10-21,EXP - PURCHASE OF GOODS/SERVICES - RAIL TRAVEL,East 3,CORPORATE TRAVEL MANAGEMENT NORTH LTD,1011710958,162.25,Travel & Subsistence Week 41,BD1 5HQ,PROGRAMME
FOOD STANDARDS AGENCY - Westminster,FOOD STANDARDS AGENCY - Westminster,2019-10-21,EXP - PURCHASE OF GOODS/SERVICES - RAIL TRAVEL,Risk Assessment - operations,CORPORATE TRAVEL MANAGEMENT NORTH LTD,1011710958,159.95,Travel & Subsistence Week 41,BD1 5HQ,ADMIN
FOOD STANDARDS AGENCY - Westminster,FOOD STANDARDS AGENCY - Westminster,2019-10-04,EXP - PURCHASE OF GOODS/SERVICES - SUBSISTENCE,North 1,CORPORATE TRAVEL MANAGEMENT NORTH LTD,1011710806,158.4,Travel & Subsistence Week 38,BD1 5HQ,PROGRAMME
FOOD STANDARDS AGENCY - Westminster,FOOD STANDARDS AGENCY - Westminster,2019-10-21,EXP - PURCHASE OF GOODS/SERVICES - SUBSISTENCE,IT Information & Knowledge Management,CORPORATE TRAVEL MANAGEMENT NORTH LTD,1011710958,156.26,Travel & Subsistence Week 41,BD1 5HQ,ADMIN
FOOD STANDARDS AGENCY - Westminster,FOOD STANDARDS AGENCY - Westminster,2019-10-15,EXP - PURCHASE OF GOODS/SERVICES - RAIL TRAVEL,"Meat Hygiene, ABP, TSE",CORPORATE TRAVEL MANAGEMENT NORTH LTD,1011710897,153.7,Travel & Subsistence Week 40,BD1 5HQ,ADMIN
FOOD STANDARDS AGENCY - Westminster,FOOD STANDARDS AGENCY - Westminster,2019-10-15,EXP - PURCHASE OF GOODS/SERVICES - RAIL TRAVEL,Programme and project delivery,CORPORATE TRAVEL MANAGEMENT NORTH LTD,1011710897,153.55,Travel & Subsistence Week 40,BD1 5HQ,ADMIN
FOOD STANDARDS AGENCY - Westminster,FOOD STANDARDS AGENCY - Westminster,2019-10-21,EXP - PURCHASE OF GOODS/SERVICES - FOREIGN SUBSISTENCE,General Food Hygiene,CORPORATE TRAVEL MANAGEMENT NORTH LTD,1011710958,151.53,Travel & Subsistence Week 41,BD1 5HQ,ADMIN
FOOD STANDARDS AGENCY - Westminster,FOOD STANDARDS AGENCY - Westminster,2019-10-21,EXP - PURCHASE OF GOODS/SERVICES - FOREIGN SUBSISTENCE,General Food Hygiene,CORPORATE TRAVEL MANAGEMENT NORTH LTD,1011710958,151.53,Travel & Subsistence Week 41,BD1 5HQ,ADMIN
FOOD STANDARDS AGENCY - Westminster,FOOD STANDARDS AGENCY - Westminster,2019-10-04,EXP - PURCHASE OF GOODS/SERVICES - AIR TRAVEL,IT Information & Knowledge Management,CORPORATE TRAVEL MANAGEMENT NORTH LTD,1011710806,151.5,Travel & Subsistence Week 38,BD1 5HQ,ADMIN
FOOD STANDARDS AGENCY - Westminster,FOOD STANDARDS AGENCY - Westminster,2019-10-28,EXP - PURCHASE OF GOODS/SERVICES - AIR TRAVEL,Food Incidents & Resilience - Prog,CORPORATE TRAVEL MANAGEMENT NORTH LTD,1011711008,151.44,Travel & Subsistence Week 42,BD1 5HQ,PROGRAMME
FOOD STANDARDS AGENCY - Westminster,FOOD STANDARDS AGENCY - Westminster,2019-10-04,EXP - PURCHASE OF GOODS/SERVICES - SUBSISTENCE,Procurement,CORPORATE TRAVEL MANAGEMENT NORTH LTD,1011710806,150.6,Travel & Subsistence Week 38,BD1 5HQ,ADMIN
FOOD STANDARDS AGENCY - Westminster,FOOD STANDARDS AGENCY - Westminster,2019-10-28,EXP - PURCHASE OF GOODS/SERVICES - SUBSISTENCE,Food Crime Unit - Prog,CORPORATE TRAVEL MANAGEMENT NORTH LTD,1011711008,150.6,Travel & Subsistence Week 42,BD1 5HQ,PROGRAMME
FOOD STANDARDS AGENCY - Westminster,FOOD STANDARDS AGENCY - Westminster,2019-10-15,EXP - PURCHASE OF GOODS/SERVICES - FOREIGN SUBSISTENCE,General Food Hygiene,CORPORATE TRAVEL MANAGEMENT NORTH LTD,1011710897,150.52,Travel & Subsistence Week 40,BD1 5HQ,ADMIN
FOOD STANDARDS AGENCY - Westminster,FOOD STANDARDS AGENCY - Westminster,2019-10-07,EXP - PURCHASE OF GOODS/SERVICES - SUBSISTENCE,Internal Audit,CORPORATE TRAVEL MANAGEMENT NORTH LTD,1011710814,149.37,Travel & Subsistence Week 39,BD1 5HQ,ADMIN
FOOD STANDARDS AGENCY - Westminster,FOOD STANDARDS AGENCY - Westminster,2019-10-15,EXP - PURCHASE OF GOODS/SERVICES - RAIL TRAVEL,Risk Assessment - operations,CORPORATE TRAVEL MANAGEMENT NORTH LTD,1011710897,148.85,Travel & Subsistence Week 40,BD1 5HQ,ADMIN
FOOD STANDARDS AGENCY - Westminster,FOOD STANDARDS AGENCY - Westminster,2019-10-04,EXP - PURCHASE OF GOODS/SERVICES - RAIL TRAVEL,Scientific Methods & Laboratory Policy,CORPORATE TRAVEL MANAGEMENT NORTH LTD,1011710806,148.45,Travel & Subsistence Week 38,BD1 5HQ,ADMIN
FOOD STANDARDS AGENCY - Westminster,FOOD STANDARDS AGENCY - Westminster,2019-10-15,EXP - PURCHASE OF GOODS/SERVICES - RAIL TRAVEL,North 2,CORPORATE TRAVEL MANAGEMENT NORTH LTD,1011710897,148.35,Travel & Subsistence Week 40,BD1 5HQ,PROGRAMME
FOOD STANDARDS AGENCY - Westminster,FOOD STANDARDS AGENCY - Westminster,2019-10-21,EXP - PURCHASE OF GOODS/SERVICES - AIR TRAVEL,Food Incidents & Resilience - Prog,CORPORATE TRAVEL MANAGEMENT NORTH LTD,1011710958,148.13,Travel & Subsistence Week 41,BD1 5HQ,PROGRAMME
FOOD STANDARDS AGENCY - Westminster,FOOD STANDARDS AGENCY - Westminster,2019-10-04,EXP - PURCHASE OF GOODS/SERVICES - SUBSISTENCE,Analytics Unit,CORPORATE TRAVEL MANAGEMENT NORTH LTD,1011710806,145.36,Travel & Subsistence Week 38,BD1 5HQ,ADMIN
FOOD STANDARDS AGENCY - Westminster,FOOD STANDARDS AGENCY - Westminster,2019-10-15,EXP - PURCHASE OF GOODS/SERVICES - RAIL TRAVEL,North 3,CORPORATE TRAVEL MANAGEMENT NORTH LTD,1011710897,145.25,Travel & Subsistence Week 40,BD1 5HQ,PROGRAMME
FOOD STANDARDS AGENCY - Westminster,FOOD STANDARDS AGENCY - Westminster,2019-10-04,EXP - PURCHASE OF GOODS/SERVICES - RAIL TRAVEL,Wales and West 2 (Wales),CORPORATE TRAVEL MANAGEMENT NORTH LTD,1011710806,144.85,Travel & Subsistence Week 38,BD1 5HQ,PROGRAMME
FOOD STANDARDS AGENCY - Westminster,FOOD STANDARDS AGENCY - Westminster,2019-10-28,EXP - PURCHASE OF GOODS/SERVICES - RAIL TRAVEL,East 1,CORPORATE TRAVEL MANAGEMENT NORTH LTD,1011711008,144.4,Travel & Subsistence Week 42,BD1 5HQ,PROGRAMME
FOOD STANDARDS AGENCY - Westminster,FOOD STANDARDS AGENCY - Westminster,2019-10-28,EXP - PURCHASE OF GOODS/SERVICES - SUBSISTENCE,Legal Branch A & Investigations,CORPORATE TRAVEL MANAGEMENT NORTH LTD,1011711008,143.8,Travel & Subsistence Week 42,BD1 5HQ,ADMIN
FOOD STANDARDS AGENCY - Westminster,FOOD STANDARDS AGENCY - Westminster,2019-10-15,EXP - PURCHASE OF GOODS/SERVICES - RAIL TRAVEL,Food Crime Unit - Prog,CORPORATE TRAVEL MANAGEMENT NORTH LTD,1011710897,143.15,Travel & Subsistence Week 40,BD1 5HQ,PROGRAMME
FOOD STANDARDS AGENCY - Westminster,FOOD STANDARDS AGENCY - Westminster,2019-10-15,EXP - PURCHASE OF GOODS/SERVICES - AIR TRAVEL,Chief Scientific Advisors team,CORPORATE TRAVEL MANAGEMENT NORTH LTD,1011710897,142.33,Travel & Subsistence Week 40,BD1 5HQ,ADMIN
FOOD STANDARDS AGENCY - Westminster,FOOD STANDARDS AGENCY - Westminster,2019-10-07,EXP - PURCHASE OF GOODS/SERVICES - FOREIGN SUBSISTENCE,Regulatory Delivery,CORPORATE TRAVEL MANAGEMENT NORTH LTD,1011710814,136.9,Travel & Subsistence Week 39,BD1 5HQ,ADMIN
FOOD STANDARDS AGENCY - Westminster,FOOD STANDARDS AGENCY - Westminster,2019-10-15,EXP - PURCHASE OF GOODS/SERVICES - SUBSISTENCE,Chief Scientific Advisors team,CORPORATE TRAVEL MANAGEMENT NORTH LTD,1011710897,134.6,Travel & Subsistence Week 40,BD1 5HQ,ADMIN
FOOD STANDARDS AGENCY - Westminster,FOOD STANDARDS AGENCY - Westminster,2019-10-04,EXP - PURCHASE OF GOODS/SERVICES - SUBSISTENCE,North 4,CORPORATE TRAVEL MANAGEMENT NORTH LTD,1011710806,133.42,Travel & Subsistence Week 38,BD1 5HQ,PROGRAMME
FOOD STANDARDS AGENCY - Westminster,FOOD STANDARDS AGENCY - Westminster,2019-10-28,EXP - PURCHASE OF GOODS/SERVICES - SUBSISTENCE,East 2,CORPORATE TRAVEL MANAGEMENT NORTH LTD,1011711008,133.14,Travel & Subsistence Week 42,BD1 5HQ,PROGRAMME
FOOD STANDARDS AGENCY - Westminster,FOOD STANDARDS AGENCY - Westminster,2019-10-07,EXP - PURCHASE OF GOODS/SERVICES - RAIL TRAVEL,East 2,CORPORATE TRAVEL MANAGEMENT NORTH LTD,1011710814,131.35,Travel & Subsistence Week 39,BD1 5HQ,PROGRAMME
FOOD STANDARDS AGENCY - Westminster,FOOD STANDARDS AGENCY - Westminster,2019-10-15,EXP - PURCHASE OF GOODS/SERVICES - SUBSISTENCE,Finance Director & Branch,CORPORATE TRAVEL MANAGEMENT NORTH LTD,1011710897,128.6,Travel & Subsistence Week 40,BD1 5HQ,ADMIN
FOOD STANDARDS AGENCY - Westminster,FOOD STANDARDS AGENCY - Westminster,2019-10-15,EXP - PURCHASE OF GOODS/SERVICES - RAIL TRAVEL,Wales and West 1 (England),CORPORATE TRAVEL MANAGEMENT NORTH LTD,1011710897,126.85,Travel & Subsistence Week 40,BD1 5HQ,PROGRAMME
FOOD STANDARDS AGENCY - Westminster,FOOD STANDARDS AGENCY - Westminster,2019-10-16,EXP - PURCHASE OF GOODS/SERVICES - OTHER FACILITIES COSTS - MEETING ROOM HIRE,North 1,CALDER CONFERENCES LTD,1011710912,125,CONFERENCE COSTS,LS16 6RF,PROGRAMME
FOOD STANDARDS AGENCY - Westminster,FOOD STANDARDS AGENCY - Westminster,2019-10-28,EXP - PURCHASE OF GOODS/SERVICES - RAIL TRAVEL,Wales and West 2 (Wales),CORPORATE TRAVEL MANAGEMENT NORTH LTD,1011711008,124.85,Travel & Subsistence Week 42,BD1 5HQ,PROGRAMME
FOOD STANDARDS AGENCY - Westminster,FOOD STANDARDS AGENCY - Westminster,2019-10-04,EXP - PURCHASE OF GOODS/SERVICES - SUBSISTENCE,Risk Assessment - operations,CORPORATE TRAVEL MANAGEMENT NORTH LTD,1011710806,124.15,Travel & Subsistence Week 38,BD1 5HQ,ADMIN
FOOD STANDARDS AGENCY - Westminster,FOOD STANDARDS AGENCY - Westminster,2019-10-28,EXP - PURCHASE OF GOODS/SERVICES - SUBSISTENCE,"Animal Feed, Foodborne Disease and Allergy (AFFDA)",CORPORATE TRAVEL MANAGEMENT NORTH LTD,1011711008,121.56,Travel & Subsistence Week 42,BD1 5HQ,ADMIN
FOOD STANDARDS AGENCY - Westminster,FOOD STANDARDS AGENCY - Westminster,2019-10-21,EXP - PURCHASE OF GOODS/SERVICES - AIR TRAVEL,Operational Delivery,CORPORATE TRAVEL MANAGEMENT NORTH LTD,1011710958,121.03,Travel & Subsistence Week 41,BD1 5HQ,PROGRAMME
FOOD STANDARDS AGENCY - Westminster,FOOD STANDARDS AGENCY - Westminster,2019-10-21,EXP - PURCHASE OF GOODS/SERVICES - SUBSISTENCE,Wales and West 3 ,CORPORATE TRAVEL MANAGEMENT NORTH LTD,1011710958,120.25,Travel & Subsistence Week 41,BD1 5HQ,PROGRAMME
FOOD STANDARDS AGENCY - Westminster,FOOD STANDARDS AGENCY - Westminster,2019-10-28,EXP - PURCHASE OF GOODS/SERVICES - RAIL TRAVEL,East 2,CORPORATE TRAVEL MANAGEMENT NORTH LTD,1011711008,120.15,Travel & Subsistence Week 42,BD1 5HQ,PROGRAMME
FOOD STANDARDS AGENCY - Westminster,FOOD STANDARDS AGENCY - Westminster,2019-10-07,EXP - PURCHASE OF GOODS/SERVICES - RAIL TRAVEL,Corporate Support Unit,CORPORATE TRAVEL MANAGEMENT NORTH LTD,1011710814,119.85,Travel & Subsistence Week 39,BD1 5HQ,ADMIN
FOOD STANDARDS AGENCY - Westminster,FOOD STANDARDS AGENCY - Westminster,2019-10-21,EXP - PURCHASE OF GOODS/SERVICES - SUBSISTENCE,Food Crime Unit - Prog,CORPORATE TRAVEL MANAGEMENT NORTH LTD,1011710958,119.65,Travel & Subsistence Week 41,BD1 5HQ,PROGRAMME
FOOD STANDARDS AGENCY - Westminster,FOOD STANDARDS AGENCY - Westminster,2019-10-15,EXP - PURCHASE OF GOODS/SERVICES - SUBSISTENCE,Analytics Unit,CORPORATE TRAVEL MANAGEMENT NORTH LTD,1011710897,119.1,Travel & Subsistence Week 40,BD1 5HQ,ADMIN
FOOD STANDARDS AGENCY - Westminster,FOOD STANDARDS AGENCY - Westminster,2019-10-21,EXP - PURCHASE OF GOODS/SERVICES - SUBSISTENCE,Chemical Contaminants and Residues,CORPORATE TRAVEL MANAGEMENT NORTH LTD,1011710958,114.21,Travel & Subsistence Week 41,BD1 5HQ,ADMIN
FOOD STANDARDS AGENCY - Westminster,FOOD STANDARDS AGENCY - Westminster,2019-10-04,EXP - PURCHASE OF GOODS/SERVICES - SUBSISTENCE,"Novel Foods, GM, Radiological and Feed Additives",CORPORATE TRAVEL MANAGEMENT NORTH LTD,1011710806,113.85,Travel & Subsistence Week 38,BD1 5HQ,ADMIN
FOOD STANDARDS AGENCY - Westminster,FOOD STANDARDS AGENCY - Westminster,2019-10-07,EXP - PURCHASE OF GOODS/SERVICES - SUBSISTENCE,"Animal Feed, Foodborne Disease and Allergy (AFFDA)",CORPORATE TRAVEL MANAGEMENT NORTH LTD,1011710814,113.85,Travel & Subsistence Week 39,BD1 5HQ,ADMIN
FOOD STANDARDS AGENCY - Westminster,FOOD STANDARDS AGENCY - Westminster,2019-10-07,EXP - PURCHASE OF GOODS/SERVICES - SUBSISTENCE,"Meat Hygiene, ABP, TSE",CORPORATE TRAVEL MANAGEMENT NORTH LTD,1011710814,113.85,Travel & Subsistence Week 39,BD1 5HQ,ADMIN
FOOD STANDARDS AGENCY - Westminster,FOOD STANDARDS AGENCY - Westminster,2019-10-04,EXP - PURCHASE OF GOODS/SERVICES - OTHER TRAVEL,Comms Directors Office,CORPORATE TRAVEL MANAGEMENT NORTH LTD,1011710806,113.25,Travel & Subsistence Week 38,BD1 5HQ,ADMIN
FOOD STANDARDS AGENCY - Westminster,FOOD STANDARDS AGENCY - Westminster,2019-10-04,EXP - PURCHASE OF GOODS/SERVICES - RAIL TRAVEL,Imports & Exports Team (Admin),CORPORATE TRAVEL MANAGEMENT NORTH LTD,1011710806,113.1,Travel & Subsistence Week 38,BD1 5HQ,ADMIN
FOOD STANDARDS AGENCY - Westminster,FOOD STANDARDS AGENCY - Westminster,2019-10-15,EXP - PURCHASE OF GOODS/SERVICES - RAIL TRAVEL,Imports & Exports Team (Admin),CORPORATE TRAVEL MANAGEMENT NORTH LTD,1011710897,112.9,Travel & Subsistence Week 40,BD1 5HQ,ADMIN
FOOD STANDARDS AGENCY - Westminster,FOOD STANDARDS AGENCY - Westminster,2019-10-28,EXP - PURCHASE OF GOODS/SERVICES - AIR TRAVEL,Digital,CORPORATE TRAVEL MANAGEMENT NORTH LTD,1011711008,111,Travel & Subsistence Week 42,BD1 5HQ,ADMIN
FOOD STANDARDS AGENCY - Westminster,FOOD STANDARDS AGENCY - Westminster,2019-10-07,EXP - PURCHASE OF GOODS/SERVICES - SUBSISTENCE,Chemical Contaminants and Residues,CORPORATE TRAVEL MANAGEMENT NORTH LTD,1011710814,109.6,Travel & Subsistence Week 39,BD1 5HQ,ADMIN
FOOD STANDARDS AGENCY - Westminster,FOOD STANDARDS AGENCY - Westminster,2019-10-21,EXP - PURCHASE OF GOODS/SERVICES - RAIL TRAVEL,Chief Executive & Private Office,CORPORATE TRAVEL MANAGEMENT NORTH LTD,1011710958,108.25,Travel & Subsistence Week 41,BD1 5HQ,ADMIN
FOOD STANDARDS AGENCY - Westminster,FOOD STANDARDS AGENCY - Westminster,2019-10-07,EXP - PURCHASE OF GOODS/SERVICES - RAIL TRAVEL,Planning and Performance,CORPORATE TRAVEL MANAGEMENT NORTH LTD,1011710814,107.3,Travel & Subsistence Week 39,BD1 5HQ,ADMIN
FOOD STANDARDS AGENCY - Westminster,FOOD STANDARDS AGENCY - Westminster,2019-10-07,EXP - PURCHASE OF GOODS/SERVICES - SUBSISTENCE,Wales and West 1 (England),CORPORATE TRAVEL MANAGEMENT NORTH LTD,1011710814,107.17,Travel & Subsistence Week 39,BD1 5HQ,PROGRAMME
FOOD STANDARDS AGENCY - Westminster,FOOD STANDARDS AGENCY - Westminster,2019-10-04,EXP - PURCHASE OF GOODS/SERVICES - RAIL TRAVEL,Wales and West 2 (England),CORPORATE TRAVEL MANAGEMENT NORTH LTD,1011710806,104.2,Travel & Subsistence Week 38,BD1 5HQ,PROGRAMME
FOOD STANDARDS AGENCY - Westminster,FOOD STANDARDS AGENCY - Westminster,2019-10-07,EXP - PURCHASE OF GOODS/SERVICES - RAIL TRAVEL,Legal Branch A & Investigations,CORPORATE TRAVEL MANAGEMENT NORTH LTD,1011710814,102.9,Travel & Subsistence Week 39,BD1 5HQ,ADMIN
FOOD STANDARDS AGENCY - Westminster,FOOD STANDARDS AGENCY - Westminster,2019-10-28,EXP - PURCHASE OF GOODS/SERVICES - RAIL TRAVEL,Regulating our Future,CORPORATE TRAVEL MANAGEMENT NORTH LTD,1011711008,102,Travel & Subsistence Week 42,BD1 5HQ,ADMIN
FOOD STANDARDS AGENCY - Westminster,FOOD STANDARDS AGENCY - Westminster,2019-10-28,EXP - PURCHASE OF GOODS/SERVICES - RAIL TRAVEL,Digital,CORPORATE TRAVEL MANAGEMENT NORTH LTD,1011711008,99.95,Travel & Subsistence Week 42,BD1 5HQ,ADMIN
FOOD STANDARDS AGENCY - Westminster,FOOD STANDARDS AGENCY - Westminster,2019-10-15,EXP - PURCHASE OF GOODS/SERVICES - SUBSISTENCE,North 2,CORPORATE TRAVEL MANAGEMENT NORTH LTD,1011710897,99.84,Travel & Subsistence Week 40,BD1 5HQ,PROGRAMME
FOOD STANDARDS AGENCY - Westminster,FOOD STANDARDS AGENCY - Westminster,2019-10-21,EXP - PURCHASE OF GOODS/SERVICES - SUBSISTENCE,General Food Hygiene,CORPORATE TRAVEL MANAGEMENT NORTH LTD,1011710958,98.96,Travel & Subsistence Week 41,BD1 5HQ,ADMIN
FOOD STANDARDS AGENCY - Westminster,FOOD STANDARDS AGENCY - Westminster,2019-10-04,EXP - PURCHASE OF GOODS/SERVICES - SUBSISTENCE,Finance Director & Branch,CORPORATE TRAVEL MANAGEMENT NORTH LTD,1011710806,98.27,Travel & Subsistence Week 38,BD1 5HQ,ADMIN
FOOD STANDARDS AGENCY - Westminster,FOOD STANDARDS AGENCY - Westminster,2019-10-04,EXP - PURCHASE OF GOODS/SERVICES - TAXI SERVICES,Comms Directors Office,CORPORATE TRAVEL MANAGEMENT NORTH LTD,1011710806,97.96,Travel & Subsistence Week 38,BD1 5HQ,ADMIN
FOOD STANDARDS AGENCY - Westminster,FOOD STANDARDS AGENCY - Westminster,2019-10-21,EXP - PURCHASE OF GOODS/SERVICES - SUBSISTENCE,Corporate Support Unit,CORPORATE TRAVEL MANAGEMENT NORTH LTD,1011710958,96.65,Travel & Subsistence Week 41,BD1 5HQ,ADMIN
FOOD STANDARDS AGENCY - Westminster,FOOD STANDARDS AGENCY - Westminster,2019-10-28,EXP - PURCHASE OF GOODS/SERVICES - SUBSISTENCE,Wales and West 2 (England),CORPORATE TRAVEL MANAGEMENT NORTH LTD,1011711008,95.49,Travel & Subsistence Week 42,BD1 5HQ,PROGRAMME
FOOD STANDARDS AGENCY - Westminster,FOOD STANDARDS AGENCY - Westminster,2019-10-28,EXP - PURCHASE OF GOODS/SERVICES - RAIL TRAVEL,North 2,CORPORATE TRAVEL MANAGEMENT NORTH LTD,1011711008,95.25,Travel & Subsistence Week 42,BD1 5HQ,PROGRAMME
FOOD STANDARDS AGENCY - Westminster,FOOD STANDARDS AGENCY - Westminster,2019-10-28,EXP - PURCHASE OF GOODS/SERVICES - RAIL TRAVEL,General Food Hygiene,CORPORATE TRAVEL MANAGEMENT NORTH LTD,1011711008,94.85,Travel & Subsistence Week 42,BD1 5HQ,ADMIN
FOOD STANDARDS AGENCY - Westminster,FOOD STANDARDS AGENCY - Westminster,2019-10-21,EXP - PURCHASE OF GOODS/SERVICES - SUBSISTENCE,"Animal Feed, Foodborne Disease and Allergy (AFFDA)",CORPORATE TRAVEL MANAGEMENT NORTH LTD,1011710958,94.7,Travel & Subsistence Week 41,BD1 5HQ,ADMIN
FOOD STANDARDS AGENCY - Westminster,FOOD STANDARDS AGENCY - Westminster,2019-10-21,EXP - PURCHASE OF GOODS/SERVICES - TAXI SERVICES,Regulatory Delivery,CORPORATE TRAVEL MANAGEMENT NORTH LTD,1011710958,94,Travel & Subsistence Week 41,BD1 5HQ,ADMIN
FOOD STANDARDS AGENCY - Westminster,FOOD STANDARDS AGENCY - Westminster,2019-10-28,EXP - PURCHASE OF GOODS/SERVICES - RAIL TRAVEL,IT Service Delivery,CORPORATE TRAVEL MANAGEMENT NORTH LTD,1011711008,93.55,Travel & Subsistence Week 42,BD1 5HQ,ADMIN
FOOD STANDARDS AGENCY - Westminster,FOOD STANDARDS AGENCY - Westminster,2019-10-21,EXP - PURCHASE OF GOODS/SERVICES - RAIL TRAVEL,East 2,CORPORATE TRAVEL MANAGEMENT NORTH LTD,1011710958,93.25,Travel & Subsistence Week 41,BD1 5HQ,PROGRAMME
FOOD STANDARDS AGENCY - Westminster,FOOD STANDARDS AGENCY - Westminster,2019-10-21,EXP - PURCHASE OF GOODS/SERVICES - AIR TRAVEL,Regulating our Future,CORPORATE TRAVEL MANAGEMENT NORTH LTD,1011710958,93.24,Travel & Subsistence Week 41,BD1 5HQ,ADMIN
FOOD STANDARDS AGENCY - Westminster,FOOD STANDARDS AGENCY - Westminster,2019-10-15,EXP - PURCHASE OF GOODS/SERVICES - SUBSISTENCE,North 1,CORPORATE TRAVEL MANAGEMENT NORTH LTD,1011710897,92.77,Travel & Subsistence Week 40,BD1 5HQ,PROGRAMME
FOOD STANDARDS AGENCY - Westminster,FOOD STANDARDS AGENCY - Westminster,2019-10-28,EXP - PURCHASE OF GOODS/SERVICES - RAIL TRAVEL,Wales and West 1 (England),CORPORATE TRAVEL MANAGEMENT NORTH LTD,1011711008,90.15,Travel & Subsistence Week 42,BD1 5HQ,PROGRAMME
FOOD STANDARDS AGENCY - Westminster,FOOD STANDARDS AGENCY - Westminster,2019-10-04,EXP - PURCHASE OF GOODS/SERVICES - RAIL TRAVEL,North 2,CORPORATE TRAVEL MANAGEMENT NORTH LTD,1011710806,90.1,Travel & Subsistence Week 38,BD1 5HQ,PROGRAMME
FOOD STANDARDS AGENCY - Westminster,FOOD STANDARDS AGENCY - Westminster,2019-10-21,EXP - PURCHASE OF GOODS/SERVICES - SUBSISTENCE,Chair & Deputy Chair,CORPORATE TRAVEL MANAGEMENT NORTH LTD,1011710958,87.96,Travel & Subsistence Week 41,BD1 5HQ,ADMIN
FOOD STANDARDS AGENCY - Westminster,FOOD STANDARDS AGENCY - Westminster,2019-10-07,EXP - PURCHASE OF GOODS/SERVICES - AIR TRAVEL,NFCU Phase 2,CORPORATE TRAVEL MANAGEMENT NORTH LTD,1011710814,87.86,Travel & Subsistence Week 39,BD1 5HQ,PROGRAMME
FOOD STANDARDS AGENCY - Westminster,FOOD STANDARDS AGENCY - Westminster,2019-10-04,EXP - PURCHASE OF GOODS/SERVICES - RAIL TRAVEL,North 3,CORPORATE TRAVEL MANAGEMENT NORTH LTD,1011710806,86.6,Travel & Subsistence Week 38,BD1 5HQ,PROGRAMME
FOOD STANDARDS AGENCY - Westminster,FOOD STANDARDS AGENCY - Westminster,2019-10-07,EXP - PURCHASE OF GOODS/SERVICES - SUBSISTENCE,Finance Director & Branch,CORPORATE TRAVEL MANAGEMENT NORTH LTD,1011710814,86.33,Travel & Subsistence Week 39,BD1 5HQ,ADMIN
FOOD STANDARDS AGENCY - Westminster,FOOD STANDARDS AGENCY - Westminster,2019-10-28,EXP - PURCHASE OF GOODS/SERVICES - SUBSISTENCE,Imports & Exports Team (Admin),CORPORATE TRAVEL MANAGEMENT NORTH LTD,1011711008,85.96,Travel & Subsistence Week 42,BD1 5HQ,ADMIN
FOOD STANDARDS AGENCY - Westminster,FOOD STANDARDS AGENCY - Westminster,2019-10-04,EXP - PURCHASE OF GOODS/SERVICES - SUBSISTENCE,Wales and West 1 (England),CORPORATE TRAVEL MANAGEMENT NORTH LTD,1011710806,85.6,Travel & Subsistence Week 38,BD1 5HQ,PROGRAMME
FOOD STANDARDS AGENCY - Westminster,FOOD STANDARDS AGENCY - Westminster,2019-10-04,EXP - PURCHASE OF GOODS/SERVICES - RAIL TRAVEL,Wales and West 1 (England),CORPORATE TRAVEL MANAGEMENT NORTH LTD,1011710806,85.5,Travel & Subsistence Week 38,BD1 5HQ,PROGRAMME
FOOD STANDARDS AGENCY - Westminster,FOOD STANDARDS AGENCY - Westminster,2019-10-21,EXP - PURCHASE OF GOODS/SERVICES - RAIL TRAVEL,North 2,CORPORATE TRAVEL MANAGEMENT NORTH LTD,1011710958,84.4,Travel & Subsistence Week 41,BD1 5HQ,PROGRAMME
FOOD STANDARDS AGENCY - Westminster,FOOD STANDARDS AGENCY - Westminster,2019-10-21,EXP - PURCHASE OF GOODS/SERVICES - SUBSISTENCE,Programme and project delivery,CORPORATE TRAVEL MANAGEMENT NORTH LTD,1011710958,83.74,Travel & Subsistence Week 41,BD1 5HQ,ADMIN
FOOD STANDARDS AGENCY - Westminster,FOOD STANDARDS AGENCY - Westminster,2019-10-15,EXP - PURCHASE OF GOODS/SERVICES - SUBSISTENCE,Planning and Performance,CORPORATE TRAVEL MANAGEMENT NORTH LTD,1011710897,83.6,Travel & Subsistence Week 40,BD1 5HQ,ADMIN
FOOD STANDARDS AGENCY - Westminster,FOOD STANDARDS AGENCY - Westminster,2019-10-15,EXP - PURCHASE OF GOODS/SERVICES - TAXI SERVICES,Operational Delivery,CORPORATE TRAVEL MANAGEMENT NORTH LTD,1011710897,81.31,Travel & Subsistence Week 40,BD1 5HQ,PROGRAMME
FOOD STANDARDS AGENCY - Westminster,FOOD STANDARDS AGENCY - Westminster,2019-10-28,EXP - PURCHASE OF GOODS/SERVICES - RAIL TRAVEL,North 1,CORPORATE TRAVEL MANAGEMENT NORTH LTD,1011711008,80.35,Travel & Subsistence Week 42,BD1 5HQ,PROGRAMME
FOOD STANDARDS AGENCY - Westminster,FOOD STANDARDS AGENCY - Westminster,2019-10-28,EXP - PURCHASE OF GOODS/SERVICES - RAIL TRAVEL,North 4,CORPORATE TRAVEL MANAGEMENT NORTH LTD,1011711008,79.9,Travel & Subsistence Week 42,BD1 5HQ,PROGRAMME
FOOD STANDARDS AGENCY - Westminster,FOOD STANDARDS AGENCY - Westminster,2019-10-07,EXP - PURCHASE OF GOODS/SERVICES - RAIL TRAVEL,Risk Assessment ??? research and development,CORPORATE TRAVEL MANAGEMENT NORTH LTD,1011710814,78.5,Travel & Subsistence Week 39,BD1 5HQ,ADMIN
FOOD STANDARDS AGENCY - Westminster,FOOD STANDARDS AGENCY - Westminster,2019-10-07,EXP - PURCHASE OF GOODS/SERVICES - RAIL TRAVEL,North 2,CORPORATE TRAVEL MANAGEMENT NORTH LTD,1011710814,77.9,Travel & Subsistence Week 39,BD1 5HQ,PROGRAMME
FOOD STANDARDS AGENCY - Westminster,FOOD STANDARDS AGENCY - Westminster,2019-10-04,EXP - PURCHASE OF GOODS/SERVICES - SUBSISTENCE,"Food Additives, Flavourings, and Food Contact Materials",CORPORATE TRAVEL MANAGEMENT NORTH LTD,1011710806,77.6,Travel & Subsistence Week 38,BD1 5HQ,ADMIN
FOOD STANDARDS AGENCY - Westminster,FOOD STANDARDS AGENCY - Westminster,2019-10-21,EXP - PURCHASE OF GOODS/SERVICES - SUBSISTENCE,North 1,CORPORATE TRAVEL MANAGEMENT NORTH LTD,1011710958,76.98,Travel & Subsistence Week 41,BD1 5HQ,PROGRAMME
FOOD STANDARDS AGENCY - Westminster,FOOD STANDARDS AGENCY - Westminster,2019-10-21,EXP - PURCHASE OF GOODS/SERVICES - SUBSISTENCE,East 4,CORPORATE TRAVEL MANAGEMENT NORTH LTD,1011710958,76.98,Travel & Subsistence Week 41,BD1 5HQ,PROGRAMME
FOOD STANDARDS AGENCY - Westminster,FOOD STANDARDS AGENCY - Westminster,2019-10-07,EXP - PURCHASE OF GOODS/SERVICES - AIR TRAVEL,Operational Delivery,CORPORATE TRAVEL MANAGEMENT NORTH LTD,1011710814,76.53,Travel & Subsistence Week 39,BD1 5HQ,PROGRAMME
FOOD STANDARDS AGENCY - Westminster,FOOD STANDARDS AGENCY - Westminster,2019-10-04,EXP - PURCHASE OF GOODS/SERVICES - RAIL TRAVEL,Food Crime Unit - Prog,CORPORATE TRAVEL MANAGEMENT NORTH LTD,1011710806,76.3,Travel & Subsistence Week 38,BD1 5HQ,PROGRAMME
FOOD STANDARDS AGENCY - Westminster,FOOD STANDARDS AGENCY - Westminster,2019-10-04,EXP - PURCHASE OF GOODS/SERVICES - AIR TRAVEL,"Meat Hygiene, ABP, TSE",CORPORATE TRAVEL MANAGEMENT NORTH LTD,1011710806,75.98,Travel & Subsistence Week 38,BD1 5HQ,ADMIN
FOOD STANDARDS AGENCY - Westminster,FOOD STANDARDS AGENCY - Westminster,2019-10-15,EXP - PURCHASE OF GOODS/SERVICES - SUBSISTENCE,Food Crime Unit - Prog,CORPORATE TRAVEL MANAGEMENT NORTH LTD,1011710897,75.6,Travel & Subsistence Week 40,BD1 5HQ,PROGRAMME
FOOD STANDARDS AGENCY - Westminster,FOOD STANDARDS AGENCY - Westminster,2019-10-21,EXP - PURCHASE OF GOODS/SERVICES - SUBSISTENCE,Digital,CORPORATE TRAVEL MANAGEMENT NORTH LTD,1011710958,75.6,Travel & Subsistence Week 41,BD1 5HQ,ADMIN
FOOD STANDARDS AGENCY - Westminster,FOOD STANDARDS AGENCY - Westminster,2019-10-15,EXP - PURCHASE OF GOODS/SERVICES - RAIL TRAVEL,Chemical Contaminants and Residues,CORPORATE TRAVEL MANAGEMENT NORTH LTD,1011710897,74.3,Travel & Subsistence Week 40,BD1 5HQ,ADMIN
FOOD STANDARDS AGENCY - Westminster,FOOD STANDARDS AGENCY - Westminster,2019-10-15,EXP - PURCHASE OF GOODS/SERVICES - SUBSISTENCE,Resilience - Admin,CORPORATE TRAVEL MANAGEMENT NORTH LTD,1011710897,73.6,Travel & Subsistence Week 40,BD1 5HQ,ADMIN
FOOD STANDARDS AGENCY - Westminster,FOOD STANDARDS AGENCY - Westminster,2019-10-07,EXP - PURCHASE OF GOODS/SERVICES - SUBSISTENCE,North 2,CORPORATE TRAVEL MANAGEMENT NORTH LTD,1011710814,73.1,Travel & Subsistence Week 39,BD1 5HQ,PROGRAMME
FOOD STANDARDS AGENCY - Westminster,FOOD STANDARDS AGENCY - Westminster,2019-10-28,EXP - PURCHASE OF GOODS/SERVICES - SUBSISTENCE,East 4,CORPORATE TRAVEL MANAGEMENT NORTH LTD,1011711008,72.62,Travel & Subsistence Week 42,BD1 5HQ,PROGRAMME
FOOD STANDARDS AGENCY - Westminster,FOOD STANDARDS AGENCY - Westminster,2019-10-07,EXP - PURCHASE OF GOODS/SERVICES - SUBSISTENCE,Risk Assessment - operations,CORPORATE TRAVEL MANAGEMENT NORTH LTD,1011710814,71.6,Travel & Subsistence Week 39,BD1 5HQ,ADMIN
FOOD STANDARDS AGENCY - Westminster,FOOD STANDARDS AGENCY - Westminster,2019-10-07,EXP - PURCHASE OF GOODS/SERVICES - RAIL TRAVEL,"Food Additives, Flavourings, and Food Contact Materials",CORPORATE TRAVEL MANAGEMENT NORTH LTD,1011710814,70.8,Travel & Subsistence Week 39,BD1 5HQ,ADMIN
FOOD STANDARDS AGENCY - Westminster,FOOD STANDARDS AGENCY - Westminster,2019-10-04,EXP - PURCHASE OF GOODS/SERVICES - SUBSISTENCE,Corporate Support Unit,CORPORATE TRAVEL MANAGEMENT NORTH LTD,1011710806,69.18,Travel & Subsistence Week 38,BD1 5HQ,ADMIN
FOOD STANDARDS AGENCY - Westminster,FOOD STANDARDS AGENCY - Westminster,2019-10-21,EXP - PURCHASE OF GOODS/SERVICES - RAIL TRAVEL,Regulating our Future,CORPORATE TRAVEL MANAGEMENT NORTH LTD,1011710958,68.55,Travel & Subsistence Week 41,BD1 5HQ,ADMIN
FOOD STANDARDS AGENCY - Westminster,FOOD STANDARDS AGENCY - Westminster,2019-10-07,EXP - PURCHASE OF GOODS/SERVICES - SUBSISTENCE,Food Crime Unit - Prog,CORPORATE TRAVEL MANAGEMENT NORTH LTD,1011710814,67.93,Travel & Subsistence Week 39,BD1 5HQ,PROGRAMME
FOOD STANDARDS AGENCY - Westminster,FOOD STANDARDS AGENCY - Westminster,2019-10-15,EXP - PURCHASE OF GOODS/SERVICES - SUBSISTENCE,Wales and West 3 ,CORPORATE TRAVEL MANAGEMENT NORTH LTD,1011710897,67.7,Travel & Subsistence Week 40,BD1 5HQ,PROGRAMME
FOOD STANDARDS AGENCY - Westminster,FOOD STANDARDS AGENCY - Westminster,2019-10-04,EXP - PURCHASE OF GOODS/SERVICES - SUBSISTENCE,Digital,CORPORATE TRAVEL MANAGEMENT NORTH LTD,1011710806,67.6,Travel & Subsistence Week 38,BD1 5HQ,ADMIN
FOOD STANDARDS AGENCY - Westminster,FOOD STANDARDS AGENCY - Westminster,2019-10-04,EXP - PURCHASE OF GOODS/SERVICES - RAIL TRAVEL,Wales and West 3 ,CORPORATE TRAVEL MANAGEMENT NORTH LTD,1011710806,66.9,Travel & Subsistence Week 38,BD1 5HQ,PROGRAMME
FOOD STANDARDS AGENCY - Westminster,FOOD STANDARDS AGENCY - Westminster,2019-10-21,EXP - PURCHASE OF GOODS/SERVICES - OTHER TRAVEL,Chemical Contaminants and Residues,CORPORATE TRAVEL MANAGEMENT NORTH LTD,1011710958,66.25,Travel & Subsistence Week 41,BD1 5HQ,ADMIN
FOOD STANDARDS AGENCY - Westminster,FOOD STANDARDS AGENCY - Westminster,2019-10-21,EXP - PURCHASE OF GOODS/SERVICES - SUBSISTENCE,Regulatory & International,CORPORATE TRAVEL MANAGEMENT NORTH LTD,1011710958,65.6,Travel & Subsistence Week 41,BD1 5HQ,ADMIN
FOOD STANDARDS AGENCY - Westminster,FOOD STANDARDS AGENCY - Westminster,2019-10-04,EXP - PURCHASE OF GOODS/SERVICES - RAIL TRAVEL,Planning and Performance,CORPORATE TRAVEL MANAGEMENT NORTH LTD,1011710806,64,Travel & Subsistence Week 38,BD1 5HQ,ADMIN
FOOD STANDARDS AGENCY - Westminster,FOOD STANDARDS AGENCY - Westminster,2019-10-07,EXP - PURCHASE OF GOODS/SERVICES - RAIL TRAVEL,"Meat Hygiene, ABP, TSE",CORPORATE TRAVEL MANAGEMENT NORTH LTD,1011710814,60.8,Travel & Subsistence Week 39,BD1 5HQ,ADMIN
FOOD STANDARDS AGENCY - Westminster,FOOD STANDARDS AGENCY - Westminster,2019-10-15,EXP - PURCHASE OF GOODS/SERVICES - RAIL TRAVEL,East 2,CORPORATE TRAVEL MANAGEMENT NORTH LTD,1011710897,60.6,Travel & Subsistence Week 40,BD1 5HQ,PROGRAMME
FOOD STANDARDS AGENCY - Westminster,FOOD STANDARDS AGENCY - Westminster,2019-10-21,EXP - PURCHASE OF GOODS/SERVICES - SUBSISTENCE,East 2,CORPORATE TRAVEL MANAGEMENT NORTH LTD,1011710958,59.6,Travel & Subsistence Week 41,BD1 5HQ,PROGRAMME
FOOD STANDARDS AGENCY - Westminster,FOOD STANDARDS AGENCY - Westminster,2019-10-21,EXP - PURCHASE OF GOODS/SERVICES - SUBSISTENCE,Food Crime Unit - Admin,CORPORATE TRAVEL MANAGEMENT NORTH LTD,1011710958,58.71,Travel & Subsistence Week 41,BD1 5HQ,ADMIN
FOOD STANDARDS AGENCY - Westminster,FOOD STANDARDS AGENCY - Westminster,2019-10-15,EXP - PURCHASE OF GOODS/SERVICES - OTHER TRAVEL,RDOT,CORPORATE TRAVEL MANAGEMENT NORTH LTD,1011710897,57.15,Travel & Subsistence Week 40,BD1 5HQ,PROGRAMME
FOOD STANDARDS AGENCY - Westminster,FOOD STANDARDS AGENCY - Westminster,2019-10-15,EXP - PURCHASE OF GOODS/SERVICES - SUBSISTENCE,North 4,CORPORATE TRAVEL MANAGEMENT NORTH LTD,1011710897,56.82,Travel & Subsistence Week 40,BD1 5HQ,PROGRAMME
FOOD STANDARDS AGENCY - Westminster,FOOD STANDARDS AGENCY - Westminster,2019-10-15,EXP - PURCHASE OF GOODS/SERVICES - SUBSISTENCE,Imports & Exports Team (Admin),CORPORATE TRAVEL MANAGEMENT NORTH LTD,1011710897,55.85,Travel & Subsistence Week 40,BD1 5HQ,ADMIN
FOOD STANDARDS AGENCY - Westminster,FOOD STANDARDS AGENCY - Westminster,2019-10-15,EXP - PURCHASE OF GOODS/SERVICES - RAIL TRAVEL,Regulating our Future,CORPORATE TRAVEL MANAGEMENT NORTH LTD,1011710897,54.2,Travel & Subsistence Week 40,BD1 5HQ,ADMIN
FOOD STANDARDS AGENCY - Westminster,FOOD STANDARDS AGENCY - Westminster,2019-10-15,EXP - PURCHASE OF GOODS/SERVICES - RAIL TRAVEL,Food Crime Unit - Admin,CORPORATE TRAVEL MANAGEMENT NORTH LTD,1011710897,51.8,Travel & Subsistence Week 40,BD1 5HQ,ADMIN
FOOD STANDARDS AGENCY - Westminster,FOOD STANDARDS AGENCY - Westminster,2019-10-21,EXP - PURCHASE OF GOODS/SERVICES - RAIL TRAVEL,General Food Hygiene,CORPORATE TRAVEL MANAGEMENT NORTH LTD,1011710958,51.65,Travel & Subsistence Week 41,BD1 5HQ,ADMIN
FOOD STANDARDS AGENCY - Westminster,FOOD STANDARDS AGENCY - Westminster,2019-10-21,EXP - PURCHASE OF GOODS/SERVICES - RAIL TRAVEL,Wales and West 1 (Wales),CORPORATE TRAVEL MANAGEMENT NORTH LTD,1011710958,50.75,Travel & Subsistence Week 41,BD1 5HQ,PROGRAMME
FOOD STANDARDS AGENCY - Westminster,FOOD STANDARDS AGENCY - Westminster,2019-10-07,EXP - PURCHASE OF GOODS/SERVICES - SUBSISTENCE,Wales and West 4 ,CORPORATE TRAVEL MANAGEMENT NORTH LTD,1011710814,50.35,Travel & Subsistence Week 39,BD1 5HQ,PROGRAMME
FOOD STANDARDS AGENCY - Westminster,FOOD STANDARDS AGENCY - Westminster,2019-10-28,EXP - PURCHASE OF GOODS/SERVICES - SUBSISTENCE,Incident Handling and Engagement,CORPORATE TRAVEL MANAGEMENT NORTH LTD,1011711008,50.23,Travel & Subsistence Week 42,BD1 5HQ,ADMIN
FOOD STANDARDS AGENCY - Westminster,FOOD STANDARDS AGENCY - Westminster,2019-10-07,EXP - PURCHASE OF GOODS/SERVICES - SUBSISTENCE,North 4,CORPORATE TRAVEL MANAGEMENT NORTH LTD,1011710814,49.6,Travel & Subsistence Week 39,BD1 5HQ,PROGRAMME
FOOD STANDARDS AGENCY - Westminster,FOOD STANDARDS AGENCY - Westminster,2019-10-15,EXP - PURCHASE OF GOODS/SERVICES - SUBSISTENCE,IT Service Delivery,CORPORATE TRAVEL MANAGEMENT NORTH LTD,1011710897,49.34,Travel & Subsistence Week 40,BD1 5HQ,ADMIN
FOOD STANDARDS AGENCY - Westminster,FOOD STANDARDS AGENCY - Westminster,2019-10-07,EXP - PURCHASE OF GOODS/SERVICES - OTHER TRAVEL,Regulatory Delivery,CORPORATE TRAVEL MANAGEMENT NORTH LTD,1011710814,49,Travel & Subsistence Week 39,BD1 5HQ,ADMIN
FOOD STANDARDS AGENCY - Westminster,FOOD STANDARDS AGENCY - Westminster,2019-10-28,EXP - PURCHASE OF GOODS/SERVICES - RAIL TRAVEL,Wales and West 3 ,CORPORATE TRAVEL MANAGEMENT NORTH LTD,1011711008,48.7,Travel & Subsistence Week 42,BD1 5HQ,PROGRAMME
FOOD STANDARDS AGENCY - Westminster,FOOD STANDARDS AGENCY - Westminster,2019-10-28,EXP - PURCHASE OF GOODS/SERVICES - SUBSISTENCE,North 4,CORPORATE TRAVEL MANAGEMENT NORTH LTD,1011711008,48.43,Travel & Subsistence Week 42,BD1 5HQ,PROGRAMME
FOOD STANDARDS AGENCY - Westminster,FOOD STANDARDS AGENCY - Westminster,2019-10-04,EXP - PURCHASE OF GOODS/SERVICES - SUBSISTENCE,Imports & Exports Team (Admin),CORPORATE TRAVEL MANAGEMENT NORTH LTD,1011710806,48.27,Travel & Subsistence Week 38,BD1 5HQ,ADMIN
FOOD STANDARDS AGENCY - Westminster,FOOD STANDARDS AGENCY - Westminster,2019-10-04,EXP - PURCHASE OF GOODS/SERVICES - SUBSISTENCE,Wales and West 2 (Wales),CORPORATE TRAVEL MANAGEMENT NORTH LTD,1011710806,47.6,Travel & Subsistence Week 38,BD1 5HQ,PROGRAMME
FOOD STANDARDS AGENCY - Westminster,FOOD STANDARDS AGENCY - Westminster,2019-10-07,EXP - PURCHASE OF GOODS/SERVICES - OTHER TRAVEL,Comms Directors Office,CORPORATE TRAVEL MANAGEMENT NORTH LTD,1011710814,46.99,Travel & Subsistence Week 39,BD1 5HQ,ADMIN
FOOD STANDARDS AGENCY - Westminster,FOOD STANDARDS AGENCY - Westminster,2019-10-21,EXP - PURCHASE OF GOODS/SERVICES - SUBSISTENCE,Analytics Unit,CORPORATE TRAVEL MANAGEMENT NORTH LTD,1011710958,45.06,Travel & Subsistence Week 41,BD1 5HQ,ADMIN
FOOD STANDARDS AGENCY - Westminster,FOOD STANDARDS AGENCY - Westminster,2019-10-21,EXP - PURCHASE OF GOODS/SERVICES - SUBSISTENCE,Wales and West 1 (Wales),CORPORATE TRAVEL MANAGEMENT NORTH LTD,1011710958,45.06,Travel & Subsistence Week 41,BD1 5HQ,PROGRAMME
FOOD STANDARDS AGENCY - Westminster,FOOD STANDARDS AGENCY - Westminster,2019-10-21,EXP - PURCHASE OF GOODS/SERVICES - SUBSISTENCE,Wales and West 4 ,CORPORATE TRAVEL MANAGEMENT NORTH LTD,1011710958,45.06,Travel & Subsistence Week 41,BD1 5HQ,PROGRAMME
FOOD STANDARDS AGENCY - Westminster,FOOD STANDARDS AGENCY - Westminster,2019-10-04,EXP - PURCHASE OF GOODS/SERVICES - OTHER TRAVEL,"Novel Foods, GM, Radiological and Feed Additives",CORPORATE TRAVEL MANAGEMENT NORTH LTD,1011710806,44,Travel & Subsistence Week 38,BD1 5HQ,ADMIN
FOOD STANDARDS AGENCY - Westminster,FOOD STANDARDS AGENCY - Westminster,2019-10-28,EXP - PURCHASE OF GOODS/SERVICES - RAIL TRAVEL,Resilience - Admin,CORPORATE TRAVEL MANAGEMENT NORTH LTD,1011711008,43.25,Travel & Subsistence Week 42,BD1 5HQ,ADMIN
FOOD STANDARDS AGENCY - Westminster,FOOD STANDARDS AGENCY - Westminster,2019-10-28,EXP - PURCHASE OF GOODS/SERVICES - SUBSISTENCE,Wales and West 2 (Wales),CORPORATE TRAVEL MANAGEMENT NORTH LTD,1011711008,42.1,Travel & Subsistence Week 42,BD1 5HQ,PROGRAMME
FOOD STANDARDS AGENCY - Westminster,FOOD STANDARDS AGENCY - Westminster,2019-10-07,EXP - PURCHASE OF GOODS/SERVICES - RAIL TRAVEL,Wales and West 3 ,CORPORATE TRAVEL MANAGEMENT NORTH LTD,1011710814,42,Travel & Subsistence Week 39,BD1 5HQ,PROGRAMME
FOOD STANDARDS AGENCY - Westminster,FOOD STANDARDS AGENCY - Westminster,2019-10-21,EXP - PURCHASE OF GOODS/SERVICES - OTHER TRAVEL,Wales and West 4 ,CORPORATE TRAVEL MANAGEMENT NORTH LTD,1011710958,40.91,Travel & Subsistence Week 41,BD1 5HQ,PROGRAMME
FOOD STANDARDS AGENCY - Westminster,FOOD STANDARDS AGENCY - Westminster,2019-10-15,EXP - PURCHASE OF GOODS/SERVICES - SUBSISTENCE,Wales and West 1 (England),CORPORATE TRAVEL MANAGEMENT NORTH LTD,1011710897,40.19,Travel & Subsistence Week 40,BD1 5HQ,PROGRAMME
FOOD STANDARDS AGENCY - Westminster,FOOD STANDARDS AGENCY - Westminster,2019-10-28,EXP - PURCHASE OF GOODS/SERVICES - RAIL TRAVEL,"Meat Hygiene, ABP, TSE",CORPORATE TRAVEL MANAGEMENT NORTH LTD,1011711008,38.9,Travel & Subsistence Week 42,BD1 5HQ,ADMIN
FOOD STANDARDS AGENCY - Westminster,FOOD STANDARDS AGENCY - Westminster,2019-10-28,EXP - PURCHASE OF GOODS/SERVICES - RAIL TRAVEL,Food Crime Unit - Admin,CORPORATE TRAVEL MANAGEMENT NORTH LTD,1011711008,38.75,Travel & Subsistence Week 42,BD1 5HQ,ADMIN
FOOD STANDARDS AGENCY - Westminster,FOOD STANDARDS AGENCY - Westminster,2019-10-21,EXP - PURCHASE OF GOODS/SERVICES -  FOREIGN AIR TRAVEL,RDOT,CORPORATE TRAVEL MANAGEMENT NORTH LTD,1011710958,38.6,Travel & Subsistence Week 41,BD1 5HQ,PROGRAMME
FOOD STANDARDS AGENCY - Westminster,FOOD STANDARDS AGENCY - Westminster,2019-10-28,EXP - PURCHASE OF GOODS/SERVICES - OTHER TRAVEL,Operational Delivery,CORPORATE TRAVEL MANAGEMENT NORTH LTD,1011711008,38.05,Travel & Subsistence Week 42,BD1 5HQ,PROGRAMME
FOOD STANDARDS AGENCY - Westminster,FOOD STANDARDS AGENCY - Westminster,2019-10-15,EXP - PURCHASE OF GOODS/SERVICES - SUBSISTENCE,Wales and West 2 (England),CORPORATE TRAVEL MANAGEMENT NORTH LTD,1011710897,36.96,Travel & Subsistence Week 40,BD1 5HQ,PROGRAMME
FOOD STANDARDS AGENCY - Westminster,FOOD STANDARDS AGENCY - Westminster,2019-10-07,EXP - PURCHASE OF GOODS/SERVICES - RAIL TRAVEL,Analytics Unit,CORPORATE TRAVEL MANAGEMENT NORTH LTD,1011710814,36.3,Travel & Subsistence Week 39,BD1 5HQ,ADMIN
FOOD STANDARDS AGENCY - Westminster,FOOD STANDARDS AGENCY - Westminster,2019-10-21,EXP - PURCHASE OF GOODS/SERVICES - TAXI SERVICES,Operational Delivery,CORPORATE TRAVEL MANAGEMENT NORTH LTD,1011710958,35.73,Travel & Subsistence Week 41,BD1 5HQ,PROGRAMME
FOOD STANDARDS AGENCY - Westminster,FOOD STANDARDS AGENCY - Westminster,2019-10-07,EXP - PURCHASE OF GOODS/SERVICES - SUBSISTENCE,Wales and West 3 ,CORPORATE TRAVEL MANAGEMENT NORTH LTD,1011710814,34.94,Travel & Subsistence Week 39,BD1 5HQ,PROGRAMME
FOOD STANDARDS AGENCY - Westminster,FOOD STANDARDS AGENCY - Westminster,2019-10-15,EXP - PURCHASE OF GOODS/SERVICES - RAIL TRAVEL,Resilience - Admin,CORPORATE TRAVEL MANAGEMENT NORTH LTD,1011710897,34.6,Travel & Subsistence Week 40,BD1 5HQ,ADMIN
FOOD STANDARDS AGENCY - Westminster,FOOD STANDARDS AGENCY - Westminster,2019-10-04,EXP - PURCHASE OF GOODS/SERVICES - TAXI SERVICES,Operational Delivery,CORPORATE TRAVEL MANAGEMENT NORTH LTD,1011710806,32.2,Travel & Subsistence Week 38,BD1 5HQ,PROGRAMME
FOOD STANDARDS AGENCY - Westminster,FOOD STANDARDS AGENCY - Westminster,2019-10-04,EXP - PURCHASE OF GOODS/SERVICES - TAXI SERVICES,Regulatory Delivery,CORPORATE TRAVEL MANAGEMENT NORTH LTD,1011710806,31.8,Travel & Subsistence Week 38,BD1 5HQ,ADMIN
FOOD STANDARDS AGENCY - Westminster,FOOD STANDARDS AGENCY - Westminster,2019-10-28,EXP - PURCHASE OF GOODS/SERVICES - TAXI SERVICES,NFCU Phase 2,CORPORATE TRAVEL MANAGEMENT NORTH LTD,1011711008,30.26,Travel & Subsistence Week 42,BD1 5HQ,PROGRAMME
FOOD STANDARDS AGENCY - Westminster,FOOD STANDARDS AGENCY - Westminster,2019-10-07,EXP - PURCHASE OF GOODS/SERVICES - OTHER TRAVEL,Food Incidents & Resilience - Prog,CORPORATE TRAVEL MANAGEMENT NORTH LTD,1011710814,29.15,Travel & Subsistence Week 39,BD1 5HQ,PROGRAMME
FOOD STANDARDS AGENCY - Westminster,FOOD STANDARDS AGENCY - Westminster,2019-10-04,EXP - PURCHASE OF GOODS/SERVICES - OTHER TRAVEL,East 1,CORPORATE TRAVEL MANAGEMENT NORTH LTD,1011710806,27.2,Travel & Subsistence Week 38,BD1 5HQ,PROGRAMME
FOOD STANDARDS AGENCY - Westminster,FOOD STANDARDS AGENCY - Westminster,2019-10-21,EXP - PURCHASE OF GOODS/SERVICES - TAXI SERVICES,RDOT,CORPORATE TRAVEL MANAGEMENT NORTH LTD,1011710958,26.08,Travel & Subsistence Week 41,BD1 5HQ,PROGRAMME
FOOD STANDARDS AGENCY - Westminster,FOOD STANDARDS AGENCY - Westminster,2019-10-04,EXP - PURCHASE OF GOODS/SERVICES - OTHER TRAVEL,NFCU Phase 2,CORPORATE TRAVEL MANAGEMENT NORTH LTD,1011710806,25.1,Travel & Subsistence Week 38,BD1 5HQ,PROGRAMME
FOOD STANDARDS AGENCY - Westminster,FOOD STANDARDS AGENCY - Westminster,2019-10-07,EXP - PURCHASE OF GOODS/SERVICES - RAIL TRAVEL,Chief Executive & Private Office,CORPORATE TRAVEL MANAGEMENT NORTH LTD,1011710814,24.95,Travel & Subsistence Week 39,BD1 5HQ,ADMIN
FOOD STANDARDS AGENCY - Westminster,FOOD STANDARDS AGENCY - Westminster,2019-10-21,EXP - PURCHASE OF GOODS/SERVICES - RAIL TRAVEL,Resilience - Admin,CORPORATE TRAVEL MANAGEMENT NORTH LTD,1011710958,21.15,Travel & Subsistence Week 41,BD1 5HQ,ADMIN
FOOD STANDARDS AGENCY - Westminster,FOOD STANDARDS AGENCY - Westminster,2019-10-07,EXP - PURCHASE OF GOODS/SERVICES - OTHER TRAVEL,Chief Executive & Private Office,CORPORATE TRAVEL MANAGEMENT NORTH LTD,1011710814,20.79,Travel & Subsistence Week 39,BD1 5HQ,ADMIN
FOOD STANDARDS AGENCY - Westminster,FOOD STANDARDS AGENCY - Westminster,2019-10-04,EXP - PURCHASE OF GOODS/SERVICES - OTHER TRAVEL,Analytics Unit,CORPORATE TRAVEL MANAGEMENT NORTH LTD,1011710806,19.6,Travel & Subsistence Week 38,BD1 5HQ,ADMIN
FOOD STANDARDS AGENCY - Westminster,FOOD STANDARDS AGENCY - Westminster,2019-10-15,EXP - PURCHASE OF GOODS/SERVICES - RAIL TRAVEL,Wales and West 1 (Wales),CORPORATE TRAVEL MANAGEMENT NORTH LTD,1011710897,19.4,Travel & Subsistence Week 40,BD1 5HQ,PROGRAMME
FOOD STANDARDS AGENCY - Westminster,FOOD STANDARDS AGENCY - Westminster,2019-10-28,EXP - PURCHASE OF GOODS/SERVICES - TAXI SERVICES,"Meat Hygiene, ABP, TSE",CORPORATE TRAVEL MANAGEMENT NORTH LTD,1011711008,19.24,Travel & Subsistence Week 42,BD1 5HQ,ADMIN
FOOD STANDARDS AGENCY - Westminster,FOOD STANDARDS AGENCY - Westminster,2019-10-28,EXP - PURCHASE OF GOODS/SERVICES - RAIL TRAVEL,Wales and West 1 (Wales),CORPORATE TRAVEL MANAGEMENT NORTH LTD,1011711008,18.65,Travel & Subsistence Week 42,BD1 5HQ,PROGRAMME
FOOD STANDARDS AGENCY - Westminster,FOOD STANDARDS AGENCY - Westminster,2019-10-21,EXP - PURCHASE OF GOODS/SERVICES - RAIL TRAVEL,Internal Audit,CORPORATE TRAVEL MANAGEMENT NORTH LTD,1011710958,17.75,Travel & Subsistence Week 41,BD1 5HQ,ADMIN
FOOD STANDARDS AGENCY - Westminster,FOOD STANDARDS AGENCY - Westminster,2019-10-15,EXP - PURCHASE OF GOODS/SERVICES - TAXI SERVICES,Corporate Support Unit,CORPORATE TRAVEL MANAGEMENT NORTH LTD,1011710897,17.52,Travel & Subsistence Week 40,BD1 5HQ,ADMIN
FOOD STANDARDS AGENCY - Westminster,FOOD STANDARDS AGENCY - Westminster,2019-10-21,EXP - PURCHASE OF GOODS/SERVICES -  FOREIGN AIR TRAVEL,"Meat Hygiene, ABP, TSE",CORPORATE TRAVEL MANAGEMENT NORTH LTD,1011710958,16.7,Travel & Subsistence Week 41,BD1 5HQ,ADMIN
FOOD STANDARDS AGENCY - Westminster,FOOD STANDARDS AGENCY - Westminster,2019-10-21,EXP - PURCHASE OF GOODS/SERVICES - TAXI SERVICES,NFCU Phase 2,CORPORATE TRAVEL MANAGEMENT NORTH LTD,1011710958,15.13,Travel & Subsistence Week 41,BD1 5HQ,PROGRAMME
FOOD STANDARDS AGENCY - Westminster,FOOD STANDARDS AGENCY - Westminster,2019-10-04,EXP - PURCHASE OF GOODS/SERVICES - OTHER TRAVEL,Operational Delivery,CORPORATE TRAVEL MANAGEMENT NORTH LTD,1011710806,14.1,Travel & Subsistence Week 38,BD1 5HQ,PROGRAMME
FOOD STANDARDS AGENCY - Westminster,FOOD STANDARDS AGENCY - Westminster,2019-10-21,EXP - PURCHASE OF GOODS/SERVICES - OTHER TRAVEL,Regulatory Delivery,CORPORATE TRAVEL MANAGEMENT NORTH LTD,1011710958,13.35,Travel & Subsistence Week 41,BD1 5HQ,ADMIN
FOOD STANDARDS AGENCY - Westminster,FOOD STANDARDS AGENCY - Westminster,2019-10-28,EXP - PURCHASE OF GOODS/SERVICES - OTHER TRAVEL,"Animal Feed, Foodborne Disease and Allergy (AFFDA)",CORPORATE TRAVEL MANAGEMENT NORTH LTD,1011711008,13.35,Travel & Subsistence Week 42,BD1 5HQ,ADMIN
FOOD STANDARDS AGENCY - Westminster,FOOD STANDARDS AGENCY - Westminster,2019-10-21,EXP - PURCHASE OF GOODS/SERVICES - TAXI SERVICES,Corporate Support Unit,CORPORATE TRAVEL MANAGEMENT NORTH LTD,1011710958,13.19,Travel & Subsistence Week 41,BD1 5HQ,ADMIN
FOOD STANDARDS AGENCY - Westminster,FOOD STANDARDS AGENCY - Westminster,2019-10-04,EXP - PURCHASE OF GOODS/SERVICES - OTHER TRAVEL,IT Information & Knowledge Management,CORPORATE TRAVEL MANAGEMENT NORTH LTD,1011710806,13.1,Travel & Subsistence Week 38,BD1 5HQ,ADMIN
FOOD STANDARDS AGENCY - Westminster,FOOD STANDARDS AGENCY - Westminster,2019-10-15,EXP - PURCHASE OF GOODS/SERVICES - OTHER TRAVEL,IT Information & Knowledge Management,CORPORATE TRAVEL MANAGEMENT NORTH LTD,1011710897,13.1,Travel & Subsistence Week 40,BD1 5HQ,ADMIN
FOOD STANDARDS AGENCY - Westminster,FOOD STANDARDS AGENCY - Westminster,2019-10-21,EXP - PURCHASE OF GOODS/SERVICES - RAIL TRAVEL,Digital,CORPORATE TRAVEL MANAGEMENT NORTH LTD,1011710958,12.45,Travel & Subsistence Week 41,BD1 5HQ,ADMIN
FOOD STANDARDS AGENCY - Westminster,FOOD STANDARDS AGENCY - Westminster,2019-10-15,EXP - PURCHASE OF GOODS/SERVICES - RAIL TRAVEL,"Animal Feed, Foodborne Disease and Allergy (AFFDA)",CORPORATE TRAVEL MANAGEMENT NORTH LTD,1011710897,10.6,Travel & Subsistence Week 40,BD1 5HQ,ADMIN
FOOD STANDARDS AGENCY - Westminster,FOOD STANDARDS AGENCY - Westminster,2019-10-07,EXP - PURCHASE OF GOODS/SERVICES - SUBSISTENCE,Legal Branch A & Investigations,CORPORATE TRAVEL MANAGEMENT NORTH LTD,1011710814,9.85,Travel & Subsistence Week 39,BD1 5HQ,ADMIN
FOOD STANDARDS AGENCY - Westminster,FOOD STANDARDS AGENCY - Westminster,2019-10-04,EXP - PURCHASE OF GOODS/SERVICES - TAXI SERVICES,RDOT,CORPORATE TRAVEL MANAGEMENT NORTH LTD,1011710806,9.6,Travel & Subsistence Week 38,BD1 5HQ,PROGRAMME
FOOD STANDARDS AGENCY - Westminster,FOOD STANDARDS AGENCY - Westminster,2019-10-15,EXP - PURCHASE OF GOODS/SERVICES - OTHER TRAVEL,East 2,CORPORATE TRAVEL MANAGEMENT NORTH LTD,1011710897,6.9,Travel & Subsistence Week 40,BD1 5HQ,PROGRAMME
FOOD STANDARDS AGENCY - Westminster,FOOD STANDARDS AGENCY - Westminster,2019-10-21,EXP - PURCHASE OF GOODS/SERVICES - TAXI SERVICES,Organisational Development,CORPORATE TRAVEL MANAGEMENT NORTH LTD,1011710958,6.83,Travel & Subsistence Week 41,BD1 5HQ,ADMIN
FOOD STANDARDS AGENCY - Westminster,FOOD STANDARDS AGENCY - Westminster,2019-10-07,EXP - PURCHASE OF GOODS/SERVICES - SUBSISTENCE,Chief Scientific Advisors team,CORPORATE TRAVEL MANAGEMENT NORTH LTD,1011710814,4.72,Travel & Subsistence Week 39,BD1 5HQ,ADMIN
FOOD STANDARDS AGENCY - Westminster,FOOD STANDARDS AGENCY - Westminster,2019-10-04,EXP - PURCHASE OF GOODS/SERVICES - FOREIGN SUBSISTENCE,"Novel Foods, GM, Radiological and Feed Additives",CORPORATE TRAVEL MANAGEMENT NORTH LTD,1011710806,2.93,Travel & Subsistence Week 38,BD1 5HQ,ADMIN
FOOD STANDARDS AGENCY - Westminster,FOOD STANDARDS AGENCY - Westminster,2019-10-04,EXP - PURCHASE OF GOODS/SERVICES - FOREIGN SUBSISTENCE,RDOT,CORPORATE TRAVEL MANAGEMENT NORTH LTD,1011710806,0.6,Travel & Subsistence Week 38,BD1 5HQ,PROGRAMME
FOOD STANDARDS AGENCY - Westminster,FOOD STANDARDS AGENCY - Westminster,2019-10-04,EXP - PURCHASE OF GOODS/SERVICES - SUBSISTENCE,Internal Audit,CORPORATE TRAVEL MANAGEMENT NORTH LTD,1011710806,0.6,Travel & Subsistence Week 38,BD1 5HQ,ADMIN
FOOD STANDARDS AGENCY - Westminster,FOOD STANDARDS AGENCY - Westminster,2019-10-04,EXP - PURCHASE OF GOODS/SERVICES - SUBSISTENCE,East 1,CORPORATE TRAVEL MANAGEMENT NORTH LTD,1011710806,0.6,Travel & Subsistence Week 38,BD1 5HQ,PROGRAMME
FOOD STANDARDS AGENCY - Westminster,FOOD STANDARDS AGENCY - Westminster,2019-10-15,EXP - PURCHASE OF GOODS/SERVICES - FOREIGN SUBSISTENCE,Analytics Unit,CORPORATE TRAVEL MANAGEMENT NORTH LTD,1011710897,0.6,Travel & Subsistence Week 40,BD1 5HQ,ADMIN
FOOD STANDARDS AGENCY - Westminster,FOOD STANDARDS AGENCY - Westminster,2019-10-15,EXP - PURCHASE OF GOODS/SERVICES - RAIL TRAVEL,Finance Director & Branch,CORPORATE TRAVEL MANAGEMENT NORTH LTD,1011710897,-0.7,Travel & Subsistence Week 40,BD1 5HQ,ADMIN
FOOD STANDARDS AGENCY - Westminster,FOOD STANDARDS AGENCY - Westminster,2019-10-21,EXP - PURCHASE OF GOODS/SERVICES - RAIL TRAVEL,Wales and West 1 (England),CORPORATE TRAVEL MANAGEMENT NORTH LTD,1011710958,-1.5,Travel & Subsistence Week 41,BD1 5HQ,PROGRAMME
FOOD STANDARDS AGENCY - Westminster,FOOD STANDARDS AGENCY - Westminster,2019-10-07,EXP - PURCHASE OF GOODS/SERVICES - OTHER TRAVEL,NFCU Phase 2,CORPORATE TRAVEL MANAGEMENT NORTH LTD,1011710814,-3.1,Travel & Subsistence Week 39,BD1 5HQ,PROGRAMME
FOOD STANDARDS AGENCY - Westminster,FOOD STANDARDS AGENCY - Westminster,2019-10-04,EXP - PURCHASE OF GOODS/SERVICES - RAIL TRAVEL,Chemical Contaminants and Residues,CORPORATE TRAVEL MANAGEMENT NORTH LTD,1011710806,-15.1,Travel & Subsistence Week 38,BD1 5HQ,ADMIN
FOOD STANDARDS AGENCY - Westminster,FOOD STANDARDS AGENCY - Westminster,2019-10-15,EXP - PURCHASE OF GOODS/SERVICES - SUBSISTENCE,East 1,CORPORATE TRAVEL MANAGEMENT NORTH LTD,1011710897,-34.25,Travel & Subsistence Week 40,BD1 5HQ,PROGRAMME
FOOD STANDARDS AGENCY - Westminster,FOOD STANDARDS AGENCY - Westminster,2019-10-15,EXP - PURCHASE OF GOODS/SERVICES - RAIL TRAVEL,Wales and West 3 ,CORPORATE TRAVEL MANAGEMENT NORTH LTD,1011710897,-36,Travel & Subsistence Week 40,BD1 5HQ,PROGRAMME
FOOD STANDARDS AGENCY - Westminster,FOOD STANDARDS AGENCY - Westminster,2019-10-21,EXP - PURCHASE OF GOODS/SERVICES - RAIL TRAVEL,North 3,CORPORATE TRAVEL MANAGEMENT NORTH LTD,1011710958,-63.05,Travel & Subsistence Week 41,BD1 5HQ,PROGRAMME
FOOD STANDARDS AGENCY - Westminster,FOOD STANDARDS AGENCY - Westminster,2019-10-07,EXP - PURCHASE OF GOODS/SERVICES - SUBSISTENCE,Non Meat Field Ops,CORPORATE TRAVEL MANAGEMENT NORTH LTD,1011710814,-66.09,Travel & Subsistence Week 39,BD1 5HQ,PROGRAMME
FOOD STANDARDS AGENCY - Westminster,FOOD STANDARDS AGENCY - Westminster,2019-10-21,EXP - PURCHASE OF GOODS/SERVICES - RAIL TRAVEL,Wales and West 4 ,CORPORATE TRAVEL MANAGEMENT NORTH LTD,1011710958,-68.35,Travel & Subsistence Week 41,BD1 5HQ,PROGRAMME
FOOD STANDARDS AGENCY - Westminster,FOOD STANDARDS AGENCY - Westminster,2019-10-21,EXP - PURCHASE OF GOODS/SERVICES - RAIL TRAVEL,Non Meat Field Ops,CORPORATE TRAVEL MANAGEMENT NORTH LTD,1011710958,-119.6,Travel & Subsistence Week 41,BD1 5HQ,PROGRAMME
FOOD STANDARDS AGENCY - Westminster,FOOD STANDARDS AGENCY - Westminster,2019-10-07,EXP - PURCHASE OF GOODS/SERVICES - SUBSISTENCE,Corporate Support Unit,CORPORATE TRAVEL MANAGEMENT NORTH LTD,1011710814,-500.7,Travel & Subsistence Week 39,BD1 5HQ,ADMIN
